Workbook

Sheet Main
B10: 2018-09-27
B12: Sheet No. | C12: Template Name | D12: Summary
B13: 1 | C13: Future Intra | D13: For Intraday trading in F&O segment
B14: 2 | C14: Cash Intra | D14: For Intraday trading in cash market segment
B15: 3 | C15: Mid-cap Intra | D15: For Intraday trading in Mid-cap stocks
B16: 4 | C16: Bulk Deals | D16: Reveals Bulk Deals carried on NSE & BSE
B17: 5 | C17: Call Tracker

Sheet Future Intra
M5: Back to Main Page
A6: FOR INTRA DAY TRADING | L6: =Main!B10 -> 2018-09-27
A9: Sr.no | B9: Sector | C9: Scrip | D9: CLOSE RATE | E9: Pivot Point | F9: Supports | I9: Resistances
B10: Sector | D10: Point | E10: Point | F10: S1 | G10: S2 | H10: S3 | I10: R1 | J10: R2 | K10: R3 | L10: HIGH | M10: LOW | N10: OI | O10: % Change in OI
A11: 1 | B11: Index | C11: BANKNIFTY | D11: 25367.40 | E11: 25395.93 | F11: 25171.92 | G11: 24976.43 | H11: 24752.42 | I11: 25591.42 | J11: 25815.43 | K11: 26010.92 | L11: 25619.95 | M11: 25200.45 | N11: 1921120 | O11: -9.20%
A12: 2 | B12: Index | C12: NIFTY | D12: 11062.45 | E12: 11070.85 | F12: 10992.70 | G12: 10922.95 | H12: 10844.80 | I12: 11140.60 | J12: 11218.75 | K12: 11288.50 | L12: 11149 | M12: 11001.1 | N12: 25326375 | O12: 2.73%
A13: 3 | B13: Index | C13: NIFTYCPSE | D13: 2187.40 | E13: 729.13 | F13: 1458.27 | G13: 729.13 | H13: 1458.27 | I13: 1458.27 | J13: 729.13 | K13: 1458.27 | L13: 0 | M13: 0 | N13: 0 | O13: 0.00%
A14: 4 | B14: Index | C14: NIFTYINFRA | D14: 3108.75 | E14: 1036.25 | F14: 2072.50 | G14: 1036.25 | H14: 2072.50 | I14: 2072.50 | J14: 1036.25 | K14: 2072.50 | L14: 0 | M14: 0 | N14: 0 | O14: 0.00%
A15: 5 | B15: Index | C15: NIFTYIT | D15: 15957.00 | E15: 16042.67 | F15: 15836.33 | G15: 15715.67 | H15: 15509.33 | I15: 16163.33 | J15: 16369.67 | K15: 16490.33 | L15: 16249 | M15: 15922 | N15: 54850 | O15: 5.18%
A16: 6 | B16: Index | C16: NIFTYMID50 | D16: 4809.90 | E16: 1603.30 | F16: 3206.60 | G16: 1603.30 | H16: 3206.60 | I16: 3206.60 | J16: 1603.30 | K16: 3206.60 | L16: 0 | M16: 0 | N16: 761310 | O16: 0.00%
A17: 7 | B17: Index | C17: NIFTYPSE | D17: 3501.05 | E17: 1167.02 | F17: 2334.03 | G17: 1167.02 | H17: 2334.03 | I17: 2334.03 | J17: 1167.02 | K17: 2334.03 | L17: 0 | M17: 0 | N17: 0 | O17: 0.00%
A18: 8 | B18: Cement | C18: ACC | D18: 1586.20 | E18: 1576.03 | F18: 1562.17 | G18: 1538.13 | H18: 1524.27 | I18: 1600.07 | J18: 1613.93 | K18: 1637.97 | L18: 1589.9 | M18: 1552 | N18: 1595200 | O18: -1.24%
A19: 9 | B19: Others | C19: ADANIENT | D19: 136.80 | E19: 137.93 | F19: 132.87 | G19: 128.93 | H19: 123.87 | I19: 141.87 | J19: 146.93 | K19: 150.87 | L19: 143 | M19: 134 | N19: 38668000 | O19: 2.65%
A20: 10 | B20: Others | C20: ADANIPORTS | D20: 339.20 | E20: 337.10 | F20: 329.75 | G20: 320.30 | H20: 312.95 | I20: 346.55 | J20: 353.90 | K20: 363.35 | L20: 344.45 | M20: 327.65 | N20: 11055000 | O20: -0.45%
A21: 11 | B21: Power | C21: ADANIPOWER | D21: 25.85 | E21: 25.67 | F21: 24.83 | G21: 23.82 | H21: 22.98 | I21: 26.68 | J21: 27.52 | K21: 28.53 | L21: 26.5 | M21: 24.65 | N21: 175460000 | O21: 2.69%
A22: 12 | B22: Pharma | C22: AJANTPHARM | D22: 1114.80 | E22: 1114.15 | F22: 1095.35 | G22: 1075.90 | H22: 1057.10 | I22: 1133.60 | J22: 1152.40 | K22: 1171.85 | L22: 1132.95 | M22: 1094.7 | N22: 746000 | O22: -3.37%
A23: 13 | B23: Banking | C23: ALBK | D23: 37.10 | E23: 37.17 | F23: 36.68 | G23: 36.27 | H23: 35.78 | I23: 37.58 | J23: 38.07 | K23: 38.48 | L23: 37.65 | M23: 36.75 | N23: 21483000 | O23: -2.84%
A24: 14 | B24: Automobile | C24: AMARAJABAT | D24: 781.55 | E24: 778.80 | F24: 766.35 | G24: 751.15 | H24: 738.70 | I24: 794.00 | J24: 806.45 | K24: 821.65 | L24: 791.25 | M24: 763.6 | N24: 1390200 | O24: -0.45%
A25: 15 | B25: Cement | C25: AMBUJACEM | D25: 226.65 | E25: 226.43 | F25: 224.02 | G25: 221.38 | H25: 218.97 | I25: 229.07 | J25: 231.48 | K25: 234.12 | L25: 228.85 | M25: 223.8 | N25: 13400000 | O25: 7.76%
A26: 16 | B26: Banking | C26: ANDHRABANK | D26: 30.30 | E26: 29.95 | F26: 29.35 | G26: 28.40 | H26: 27.80 | I26: 30.90 | J26: 31.50 | K26: 32.45 | L26: 30.55 | M26: 29 | N26: 4797000 | O26: -37.14%
A27: 17 | B27: Others | C27: APOLLOHOSP | D27: 1040.85 | E27: 1045.38 | F27: 1029.12 | G27: 1017.38 | H27: 1001.12 | I27: 1057.12 | J27: 1073.38 | K27: 1085.12 | L27: 1061.65 | M27: 1033.65 | N27: 1252500 | O27: -3.13%
A28: 18 | B28: Automobile | C28: APOLLOTYRE | D28: 229.05 | E28: 230.22 | F28: 225.88 | G28: 222.72 | H28: 218.38 | I28: 233.38 | J28: 237.72 | K28: 240.88 | L28: 234.55 | M28: 227.05 | N28: 12732000 | O28: 0.98%
A29: 19 | B29: Textile | C29: ARVIND | D29: 352.10 | E29: 351.62 | F29: 345.23 | G29: 338.37 | H29: 331.98 | I29: 358.48 | J29: 364.87 | K29: 371.73 | L29: 358 | M29: 344.75 | N29: 9604000 | O29: -6.19%
A30: 20 | B30: Automobile | C30: ASHOKLEY | D30: 121.10 | E30: 121.48 | F30: 119.42 | G30: 117.73 | H30: 115.67 | I30: 123.17 | J30: 125.23 | K30: 126.92 | L30: 123.55 | M30: 119.8 | N30: 64348000 | O30: 1.46%
A31: 21 | B31: FMCG | C31: ASIANPAINT | D31: 1281.55 | E31: 1285.62 | F31: 1270.78 | G31: 1260.02 | H31: 1245.18 | I31: 1296.38 | J31: 1311.22 | K31: 1321.98 | L31: 1300.45 | M31: 1274.85 | N31: 6786600 | O31: 18.04%
A32: 22 | B32: Pharma | C32: AUROPHARMA | D32: 760.35 | E32: 767.22 | F32: 749.48 | G32: 738.62 | H32: 720.88 | I32: 778.08 | J32: 795.82 | K32: 806.68 | L32: 784.95 | M32: 756.35 | N32: 23447000 | O32: 0.24%
A33: 23 | B33: Banking | C33: AXISBANK | D33: 617.10 | E33: 617.82 | F33: 611.28 | G33: 605.47 | H33: 598.93 | I33: 623.63 | J33: 630.17 | K33: 635.98 | L33: 624.35 | M33: 612 | N33: 42646800 | O33: -2.62%
A34: 24 | B34: Automobile | C34: BAJAJ-AUTO | D34: 2772.55 | E34: 2776.32 | F34: 2744.63 | G34: 2716.72 | H34: 2685.03 | I34: 2804.23 | J34: 2835.92 | K34: 2863.83 | L34: 2808 | M34: 2748.4 | N34: 2762500 | O34: -2.79%
A35: 25 | B35: Others | C35: BAJAJFINSV | D35: 6208.55 | E35: 6228.75 | F35: 6162.50 | G35: 6116.45 | H35: 6050.20 | I35: 6274.80 | J35: 6341.05 | K35: 6387.10 | L35: 6295 | M35: 6182.7 | N35: 748625 | O35: -3.37%
A36: 26 | B36: Finance | C36: BAJFINANCE | D36: 2318.35 | E36: 2324.88 | F36: 2295.77 | G36: 2273.18 | H36: 2244.07 | I36: 2347.47 | J36: 2376.58 | K36: 2399.17 | L36: 2354 | M36: 2302.3 | N36: 8019500 | O36: -5.29%
A37: 27 | B37: Others | C37: BALKRISIND | D37: 1105.90 | E37: 1102.57 | F37: 1093.23 | G37: 1080.57 | H37: 1071.23 | I37: 1115.23 | J37: 1124.57 | K37: 1137.23 | L37: 1111.9 | M37: 1089.9 | N37: 2247200 | O37: -3.34%
A38: 28 | B38: Others | C38: BALRAMCHIN | D38: 77.80 | E38: 80.27 | F38: 74.13 | G38: 70.47 | H38: 64.33 | I38: 83.93 | J38: 90.07 | K38: 93.73 | L38: 86.4 | M38: 76.6 | N38: 4186000 | O38: -47.17%
A39: 29 | B39: Banking | C39: BANKBARODA | D39: 109.20 | E39: 110.43 | F39: 106.22 | G39: 103.23 | H39: 99.02 | I39: 113.42 | J39: 117.63 | K39: 120.62 | L39: 114.65 | M39: 107.45 | N39: 74956000 | O39: -3.64%
A40: 30 | B40: Banking | C40: BANKINDIA | D40: 83.95 | E40: 84.35 | F40: 80.80 | G40: 77.65 | H40: 74.10 | I40: 87.50 | J40: 91.05 | K40: 94.20 | L40: 87.9 | M40: 81.2 | N40: 22188000 | O40: -6.14%
A41: 31 | B41: FMCG | C41: BATAINDIA | D41: 957.70 | E41: 959.02 | F41: 948.73 | G41: 939.77 | H41: 929.48 | I41: 967.98 | J41: 978.27 | K41: 987.23 | L41: 969.3 | M41: 950.05 | N41: 1804000 | O41: 2.05%
A42: 32 | B42: Capital_Goods | C42: BEL | D42: 84.25 | E42: 83.13 | F42: 79.77 | G42: 75.28 | H42: 71.92 | I42: 87.62 | J42: 90.98 | K42: 95.47 | L42: 86.5 | M42: 78.65 | N42: 43164000 | O42: -5.92%
A43: 33 | B43: Infrastructure | C43: BEML | D43: 662.65 | E43: 659.20 | F43: 644.40 | G43: 626.15 | H43: 611.35 | I43: 677.45 | J43: 692.25 | K43: 710.50 | L43: 674 | M43: 640.95 | N43: 1993000 | O43: -13.69%
A44: 34 | B44: Others | C44: BERGEPAINT | D44: 295.85 | E44: 298.32 | F44: 291.63 | G44: 287.42 | H44: 280.73 | I44: 302.53 | J44: 309.22 | K44: 313.43 | L44: 305 | M44: 294.1 | N44: 2021800 | O44: -8.28%
A45: 35 | B45: Finance | C45: BHARATFIN | D45: 1061.50 | E45: 1057.55 | F45: 1051.10 | G45: 1040.70 | H45: 1034.25 | I45: 1067.95 | J45: 1074.40 | K45: 1084.80 | L45: 1064 | M45: 1047.15 | N45: 4335500 | O45: -6.61%
A46: 36 | B46: Automobile | C46: BHARATFORG | D46: 625.00 | E46: 625.47 | F46: 619.18 | G46: 613.37 | H46: 607.08 | I46: 631.28 | J46: 637.57 | K46: 643.38 | L46: 631.75 | M46: 619.65 | N46: 8428800 | O46: 0.29%
A47: 37 | B47: Telecom | C47: BHARTIARTL | D47: 361.70 | E47: 361.50 | F47: 357.50 | G47: 353.30 | H47: 349.30 | I47: 365.70 | J47: 369.70 | K47: 373.90 | L47: 365.5 | M47: 357.3 | N47: 51069700 | O47: 0.10%
A48: 38 | B48: Capital_Goods | C48: BHEL | D48: 72.10 | E48: 72.23 | F48: 71.57 | G48: 71.03 | H48: 70.37 | I48: 72.77 | J48: 73.43 | K48: 73.97 | L48: 72.9 | M48: 71.7 | N48: 39667500 | O48: -5.25%
A49: 39 | B49: Pharma | C49: BIOCON | D49: 705.90 | E49: 706.73 | F49: 695.77 | G49: 685.63 | H49: 674.67 | I49: 716.87 | J49: 727.83 | K49: 737.97 | L49: 717.7 | M49: 696.6 | N49: 8217000 | O49: 2.32%
A50: 40 | B50: Automobile | C50: BOSCHLTD | D50: 19782.90 | E50: 19823.72 | F50: 19376.13 | G50: 18969.37 | H50: 18521.78 | I50: 20230.48 | J50: 20678.07 | K50: 21084.83 | L50: 20271.3 | M50: 19416.95 | N50: 135870 | O50: 2.89%
A51: 41 | B51: Oil_Gas | C51: BPCL | D51: 368.75 | E51: 367.57 | F51: 363.13 | G51: 357.52 | H51: 353.08 | I51: 373.18 | J51: 377.62 | K51: 383.23 | L51: 372 | M51: 361.95 | N51: 10459800 | O51: 6.60%
A52: 42 | B52: FMCG | C52: BRITANNIA | D52: 5681.70 | E52: 5730.90 | F52: 5614.85 | G52: 5548.00 | H52: 5431.95 | I52: 5797.75 | J52: 5913.80 | K52: 5980.65 | L52: 5846.95 | M52: 5664.05 | N52: 1399800 | O52: 1.17%
A53: 43 | B53: Pharma | C53: CADILAHC | D53: 399.40 | E53: 398.53 | F53: 393.87 | G53: 388.33 | H53: 383.67 | I53: 404.07 | J53: 408.73 | K53: 414.27 | L53: 403.2 | M53: 393 | N53: 11742400 | O53: -3.19%
A54: 44 | B54: Banking | C54: CANBK | D54: 235.35 | E54: 235.22 | F54: 231.53 | G54: 227.72 | H54: 224.03 | I54: 239.03 | J54: 242.72 | K54: 246.53 | L54: 238.9 | M54: 231.4 | N54: 9862000 | O54: -10.26%
A55: 45 | B55: Others | C55: CANFINHOME | D55: 248.30 | E55: 251.90 | F55: 243.10 | G55: 237.90 | H55: 229.10 | I55: 257.10 | J55: 265.90 | K55: 271.10 | L55: 260.7 | M55: 246.7 | N55: 4270000 | O55: 0.53%
A56: 46 | B56: Finance | C56: CAPF | D56: 519.05 | E56: 517.62 | F56: 507.93 | G56: 496.82 | H56: 487.13 | I56: 528.73 | J56: 538.42 | K56: 549.53 | L56: 527.3 | M56: 506.5 | N56: 5396800 | O56: -2.78%
A57: 47 | B57: Oil_Gas | C57: CASTROLIND | D57: 149.90 | E57: 150.50 | F57: 148.80 | G57: 147.70 | H57: 146.00 | I57: 151.60 | J57: 153.30 | K57: 154.40 | L57: 152.2 | M57: 149.4 | N57: 10410400 | O57: -0.67%
A58: 48 | B58: Automobile | C58: CEATLTD | D58: 1236.30 | E58: 1235.93 | F58: 1224.42 | G58: 1212.53 | H58: 1201.02 | I58: 1247.82 | J58: 1259.33 | K58: 1271.22 | L58: 1247.45 | M58: 1224.05 | N58: 1176350 | O58: -1.21%
A59: 49 | B59: Textile | C59: CENTURYTEX | D59: 878.45 | E59: 875.92 | F59: 864.13 | G59: 849.82 | H59: 838.03 | I59: 890.23 | J59: 902.02 | K59: 916.33 | L59: 887.7 | M59: 861.6 | N59: 6751250 | O59: -0.58%
A60: 50 | B60: Power | C60: CESC | D60: 905.05 | E60: 903.28 | F60: 888.97 | G60: 872.88 | H60: 858.57 | I60: 919.37 | J60: 933.68 | K60: 949.77 | L60: 917.6 | M60: 887.2 | N60: 6125350 | O60: -0.02%
A61: 51 | B61: Power | C61: CGPOWER | D61: 48.65 | E61: 48.52 | F61: 47.03 | G61: 45.42 | H61: 43.93 | I61: 50.13 | J61: 51.62 | K61: 53.23 | L61: 50 | M61: 46.9 | N61: 39144000 | O61: -6.48%
A62: 52 | B62: Others | C62: CHENNPETRO | D62: 270.90 | E62: 274.17 | F62: 264.83 | G62: 258.77 | H62: 249.43 | I62: 280.23 | J62: 289.57 | K62: 295.63 | L62: 283.5 | M62: 268.1 | N62: 1356000 | O62: 6.60%
A63: 53 | B63: Others | C63: CHOLAFIN | D63: 1215.90 | E63: 1222.48 | F63: 1202.12 | G63: 1188.33 | H63: 1167.97 | I63: 1236.27 | J63: 1256.63 | K63: 1270.42 | L63: 1242.85 | M63: 1208.7 | N63: 1140000 | O63: 5.31%
A64: 54 | B64: Pharma | C64: CIPLA | D64: 670.45 | E64: 667.78 | F64: 661.57 | G64: 652.68 | H64: 646.47 | I64: 676.67 | J64: 682.88 | K64: 691.77 | L64: 674 | M64: 658.9 | N64: 12500000 | O64: 0.69%
A65: 55 | B65: Others | C65: COALINDIA | D65: 273.10 | E65: 273.68 | F65: 270.07 | G65: 267.03 | H65: 263.42 | I65: 276.72 | J65: 280.33 | K65: 283.37 | L65: 277.3 | M65: 270.65 | N65: 21254200 | O65: 0.04%
A66: 56 | B66: FMCG | C66: COLPAL | D66: 1098.70 | E66: 1101.43 | F66: 1087.77 | G66: 1076.83 | H66: 1063.17 | I66: 1112.37 | J66: 1126.03 | K66: 1136.97 | L66: 1115.1 | M66: 1090.5 | N66: 1481200 | O66: 2.42%
A67: 57 | B67: Others | C67: CONCOR | D67: 627.35 | E67: 624.55 | F67: 615.80 | G67: 604.25 | H67: 595.50 | I67: 636.10 | J67: 644.85 | K67: 656.40 | L67: 633.3 | M67: 613 | N67: 2441250 | O67: -3.13%
A68: 58 | B68: Capital_Goods | C68: CUMMINSIND | D68: 695.05 | E68: 696.62 | F68: 689.78 | G68: 684.52 | H68: 677.68 | I68: 701.88 | J68: 708.72 | K68: 713.98 | L68: 703.45 | M68: 691.35 | N68: 1341900 | O68: 21.33%
A69: 59 | B69: FMCG | C69: DABUR | D69: 437.15 | E69: 438.00 | F69: 432.85 | G69: 428.55 | H69: 423.40 | I69: 442.30 | J69: 447.45 | K69: 451.75 | L69: 443.15 | M69: 433.7 | N69: 15350000 | O69: 0.08%
A70: 60 | B70: Cement | C70: DALMIABHA | D70: 2437.25 | E70: 2433.75 | F70: 2419.50 | G70: 2401.75 | H70: 2387.50 | I70: 2451.50 | J70: 2465.75 | K70: 2483.50 | L70: 2448 | M70: 2416 | N70: 450000 | O70: -2.34%
A71: 61 | B71: Banking | C71: DCBBANK | D71: 153.65 | E71: 153.08 | F71: 151.37 | G71: 149.08 | H71: 147.37 | I71: 155.37 | J71: 157.08 | K71: 159.37 | L71: 154.8 | M71: 150.8 | N71: 5179500 | O71: -13.33%
A72: 62 | B72: Finance | C72: DHFL | D72: 305.90 | E72: 301.60 | F72: 282.05 | G72: 258.20 | H72: 238.65 | I72: 325.45 | J72: 345.00 | K72: 368.85 | L72: 321.15 | M72: 277.75 | N72: 16734000 | O72: -17.75%
A73: 63 | B73: Media | C73: DISHTV | D73: 57.05 | E73: 57.65 | F73: 55.75 | G73: 54.45 | H73: 52.55 | I73: 58.95 | J73: 60.85 | K73: 62.15 | L73: 59.55 | M73: 56.35 | N73: 40392000 | O73: -2.57%
A74: 64 | B74: Pharma | C74: DIVISLAB | D74: 1387.95 | E74: 1397.80 | F74: 1366.00 | G74: 1344.05 | H74: 1312.25 | I74: 1419.75 | J74: 1451.55 | K74: 1473.50 | L74: 1429.6 | M74: 1375.85 | N74: 2562400 | O74: 7.27%
A75: 65 | B75: Realty | C75: DLF | D75: 182.30 | E75: 181.03 | F75: 177.77 | G75: 173.23 | H75: 169.97 | I75: 185.57 | J75: 188.83 | K75: 193.37 | L75: 184.3 | M75: 176.5 | N75: 27127500 | O75: -6.78%
A76: 66 | B76: Pharma | C76: DRREDDY | D76: 2603.55 | E76: 2621.18 | F76: 2577.37 | G76: 2551.18 | H76: 2507.37 | I76: 2647.37 | J76: 2691.18 | K76: 2717.37 | L76: 2665 | M76: 2595 | N76: 4196000 | O76: -2.60%
A77: 67 | B77: Automobile | C77: EICHERMOT | D77: 25254.70 | E77: 25562.33 | F77: 24839.62 | G77: 24424.53 | H77: 23701.82 | I77: 25977.42 | J77: 26700.13 | K77: 27115.22 | L77: 26285.05 | M77: 25147.25 | N77: 295175 | O77: 1.49%
A78: 68 | B78: Infrastructure | C78: ENGINERSIN | D78: 122.40 | E78: 121.22 | F78: 119.73 | G78: 117.07 | H78: 115.58 | I78: 123.88 | J78: 125.37 | K78: 128.03 | L78: 122.7 | M78: 118.55 | N78: 13653500 | O78: 1.25%
A79: 69 | B79: Finance | C79: EQUITAS | D79: 133.35 | E79: 133.80 | F79: 130.30 | G79: 127.25 | H79: 123.75 | I79: 136.85 | J79: 140.35 | K79: 143.40 | L79: 137.3 | M79: 130.75 | N79: 14540000 | O79: 0.61%
A80: 70 | B80: Automobile | C80: ESCORTS | D80: 661.90 | E80: 665.38 | F80: 655.27 | G80: 648.63 | H80: 638.52 | I80: 672.02 | J80: 682.13 | K80: 688.77 | L80: 675.5 | M80: 658.75 | N80: 6496600 | O80: -1.78%
A81: 71 | B81: Automobile | C81: EXIDEIND | D81: 272.55 | E81: 267.77 | F81: 261.13 | G81: 249.72 | H81: 243.08 | I81: 279.18 | J81: 285.82 | K81: 297.23 | L81: 274.4 | M81: 256.35 | N81: 5988000 | O81: -10.20%
A82: 72 | B82: Banking | C82: FEDERALBNK | D82: 71.55 | E82: 71.48 | F82: 70.42 | G82: 69.28 | H82: 68.22 | I82: 72.62 | J82: 73.68 | K82: 74.82 | L82: 72.55 | M82: 70.35 | N82: 57271500 | O82: -5.26%
A83: 73 | B83: Oil_Gas | C83: GAIL | D83: 375.80 | E83: 376.45 | F83: 370.50 | G83: 365.20 | H83: 359.25 | I83: 381.75 | J83: 387.70 | K83: 393.00 | L83: 382.4 | M83: 371.15 | N83: 17063466 | O83: 3.81%
A84: 74 | B84: Pharma | C84: GLENMARK | D84: 655.70 | E84: 652.92 | F84: 646.13 | G84: 636.57 | H84: 629.78 | I84: 662.48 | J84: 669.27 | K84: 678.83 | L84: 659.7 | M84: 643.35 | N84: 3662000 | O84: -2.71%
A85: 75 | B85: Infrastructure | C85: GMRINFRA | D85: 17.50 | E85: 17.28 | F85: 16.97 | G85: 16.43 | H85: 16.12 | I85: 17.82 | J85: 18.13 | K85: 18.67 | L85: 17.6 | M85: 16.75 | N85: 270000000 | O85: 13.53%
A86: 76 | B86: Others | C86: GODFRYPHLP | D86: 760.85 | E86: 765.75 | F86: 750.50 | G86: 740.15 | H86: 724.90 | I86: 776.10 | J86: 791.35 | K86: 801.70 | L86: 781 | M86: 755.4 | N86: 656600 | O86: -1.26%
A87: 77 | B87: FMCG | C87: GODREJCP | D87: 773.75 | E87: 780.37 | F87: 761.28 | G87: 748.82 | H87: 729.73 | I87: 792.83 | J87: 811.92 | K87: 824.38 | L87: 799.45 | M87: 767.9 | N87: 4737600 | O87: 6.79%
A88: 78 | B88: FMCG | C88: GODREJIND | D88: 532.05 | E88: 535.07 | F88: 521.98 | G88: 511.92 | H88: 498.83 | I88: 545.13 | J88: 558.22 | K88: 568.28 | L88: 548.15 | M88: 525 | N88: 1971000 | O88: -1.57%
A89: 79 | B89: Pharma | C89: GRANULES | D89: 102.85 | E89: 102.30 | F89: 100.15 | G89: 97.45 | H89: 95.30 | I89: 105.00 | J89: 107.15 | K89: 109.85 | L89: 104.45 | M89: 99.6 | N89: 15050000 | O89: -7.64%
A90: 80 | B90: Cement | C90: GRASIM | D90: 1044.85 | E90: 1043.28 | F90: 1035.57 | G90: 1026.28 | H90: 1018.57 | I90: 1052.57 | J90: 1060.28 | K90: 1069.57 | L90: 1051 | M90: 1034 | N90: 4320750 | O90: -0.83%
A91: 81 | B91: Others | C91: GSFC | D91: 98.20 | E91: 98.60 | F91: 96.45 | G91: 94.70 | H91: 92.55 | I91: 100.35 | J91: 102.50 | K91: 104.25 | L91: 100.75 | M91: 96.85 | N91: 14175000 | O91: -1.04%
A92: 82 | B92: Others | C92: HAVELLS | D92: 646.25 | E92: 639.00 | F92: 629.10 | G92: 611.95 | H92: 602.05 | I92: 656.15 | J92: 666.05 | K92: 683.20 | L92: 648.9 | M92: 621.85 | N92: 4215000 | O92: 1.81%
A93: 83 | B93: Others | C93: HCC | D93: 11.90 | E93: 11.80 | F93: 11.45 | G93: 11.00 | H93: 10.65 | I93: 12.25 | J93: 12.60 | K93: 13.05 | L93: 12.15 | M93: 11.35 | N93: 41688000 | O93: 6.34%
A94: 84 | B94: Technology | C94: HCLTECH | D94: 1091.55 | E94: 1099.58 | F94: 1078.07 | G94: 1064.58 | H94: 1043.07 | I94: 1113.07 | J94: 1134.58 | K94: 1148.07 | L94: 1121.1 | M94: 1086.1 | N94: 9468900 | O94: -2.19%
A95: 85 | B95: Finance | C95: HDFC | D95: 1766.95 | E95: 1777.08 | F95: 1749.22 | G95: 1731.48 | H95: 1703.62 | I95: 1794.82 | J95: 1822.68 | K95: 1840.42 | L95: 1804.95 | M95: 1759.35 | N95: 27613000 | O95: 4.01%
A96: 86 | B96: Banking | C96: HDFCBANK | D96: 1967.10 | E96: 1966.90 | F96: 1955.65 | G96: 1944.20 | H96: 1932.95 | I96: 1978.35 | J96: 1989.60 | K96: 2001.05 | L96: 1978.15 | M96: 1955.45 | N96: 18548500 | O96: -3.21%
A97: 88 | B97: Automobile | C97: HEROMOTOCO | D97: 3093.35 | E97: 3103.33 | F97: 3070.87 | G97: 3048.38 | H97: 3015.92 | I97: 3125.82 | J97: 3158.28 | K97: 3180.77 | L97: 3135.8 | M97: 3080.85 | N97: 1808800 | O97: 4.57%
A98: 89 | B98: Technology | C98: HEXAWARE | D98: 435.90 | E98: 434.20 | F98: 419.65 | G98: 403.40 | H98: 388.85 | I98: 450.45 | J98: 465.00 | K98: 481.25 | L98: 448.75 | M98: 417.95 | N98: 4989000 | O98: 3.29%
A99: 90 | B99: Metals | C99: HINDALCO | D99: 248.00 | E99: 246.57 | F99: 242.83 | G99: 237.67 | H99: 233.93 | I99: 251.73 | J99: 255.47 | K99: 260.63 | L99: 250.3 | M99: 241.4 | N99: 39543000 | O99: -1.37%
A100: 91 | B100: Oil_Gas | C100: HINDPETRO | D100: 247.55 | E100: 245.93 | F100: 243.52 | G100: 239.48 | H100: 237.07 | I100: 249.97 | J100: 252.38 | K100: 256.42 | L100: 248.35 | M100: 241.9 | N100: 25981200 | O100: -0.13%
A101: 92 | B101: FMCG | C101: HINDUNILVR | D101: 1613.80 | E101: 1622.77 | F101: 1593.03 | G101: 1572.27 | H101: 1542.53 | I101: 1643.53 | J101: 1673.27 | K101: 1694.03 | L101: 1652.5 | M101: 1602 | N101: 10180800 | O101: 1.07%
A102: 93 | B102: Metals | C102: HINDZINC | D102: 306.25 | E102: 305.33 | F102: 300.77 | G102: 295.28 | H102: 290.72 | I102: 310.82 | J102: 315.38 | K102: 320.87 | L102: 309.9 | M102: 299.85 | N102: 8544000 | O102: 6.04%
A103: 94 | B103: Finance | C103: IBULHSGFIN | D103: 999.05 | E103: 984.28 | F103: 943.57 | G103: 888.08 | H103: 847.37 | I103: 1039.77 | J103: 1080.48 | K103: 1135.97 | L103: 1025 | M103: 928.8 | N103: 14960000 | O103: -6.40%
A104: 95 | B104: Banking | C104: ICICIBANK | D104: 313.00 | E104: 311.43 | F104: 306.97 | G104: 300.93 | H104: 296.47 | I104: 317.47 | J104: 321.93 | K104: 327.97 | L104: 315.9 | M104: 305.4 | N104: 111542750 | O104: 0.15%
A105: 96 | B105: Others | C105: ICICIPRULI | D105: 344.15 | E105: 345.37 | F105: 339.58 | G105: 335.02 | H105: 329.23 | I105: 349.93 | J105: 355.72 | K105: 360.28 | L105: 351.15 | M105: 340.8 | N105: 4915300 | O105: 2.66%
A106: 97 | B106: Banking | C106: IDBI | D106: 52.50 | E106: 52.62 | F106: 51.48 | G106: 50.47 | H106: 49.33 | I106: 53.63 | J106: 54.77 | K106: 55.78 | L106: 53.75 | M106: 51.6 | N106: 57200000 | O106: -6.79%
A107: 98 | B107: Telecom | C107: IDEA | D107: 41.55 | E107: 41.42 | F107: 40.43 | G107: 39.32 | H107: 38.33 | I107: 42.53 | J107: 43.52 | K107: 44.63 | L107: 42.4 | M107: 40.3 | N107: 164458000 | O107: 0.88%
A108: 99 | B108: Finance | C108: IDFC | D108: 42.45 | E108: 42.27 | F108: 41.68 | G108: 40.92 | H108: 40.33 | I108: 43.03 | J108: 43.62 | K108: 44.38 | L108: 42.85 | M108: 41.5 | N108: 125334000 | O108: -5.23%
A109: 100 | B109: Banking | C109: IDFCBANK | D109: 38.30 | E109: 38.28 | F109: 37.67 | G109: 37.03 | H109: 36.42 | I109: 38.92 | J109: 39.53 | K109: 40.17 | L109: 38.9 | M109: 37.65 | N109: 140294000 | O109: 3.60%
A110: 101 | B110: Finance | C110: IFCI | D110: 12.90 | E110: 12.90 | F110: 12.60 | G110: 12.30 | H110: 12.00 | I110: 13.20 | J110: 13.50 | K110: 13.80 | L110: 13.2 | M110: 12.6 | N110: 75350000 | O110: 12.04%
A111: 102 | B111: Oil_Gas | C111: IGL | D111: 267.55 | E111: 267.83 | F111: 261.47 | G111: 255.38 | H111: 249.02 | I111: 273.92 | J111: 280.28 | K111: 286.37 | L111: 274.2 | M111: 261.75 | N111: 4342250 | O111: -0.57%
A112: 103 | B112: Cement | C112: INDIACEM | D112: 109.10 | E112: 108.97 | F112: 107.08 | G112: 105.07 | H112: 103.18 | I112: 110.98 | J112: 112.87 | K112: 114.88 | L112: 110.85 | M112: 106.95 | N112: 19589500 | O112: -0.94%
A113: 104 | B113: Banking | C113: INDIANB | D113: 239.25 | E113: 239.33 | F113: 234.97 | G113: 230.68 | H113: 226.32 | I113: 243.62 | J113: 247.98 | K113: 252.27 | L113: 243.7 | M113: 235.05 | N113: 5662000 | O113: -2.85%
A114: 105 | B114: Others | C114: INDIGO | D114: 854.65 | E114: 850.80 | F114: 841.35 | G114: 828.05 | H114: 818.60 | I114: 864.10 | J114: 873.55 | K114: 886.85 | L114: 860.25 | M114: 837.5 | N114: 3774000 | O114: 1.09%
A115: 106 | B115: Banking | C115: INDUSINDBK | D115: 1705.00 | E115: 1703.03 | F115: 1686.72 | G115: 1668.43 | H115: 1652.12 | I115: 1721.32 | J115: 1737.63 | K115: 1755.92 | L115: 1719.35 | M115: 1684.75 | N115: 6871200 | O115: 3.29%
A116: 107 | B116: Technology | C116: INFIBEAM | D116: 215.50 | E116: 215.42 | F116: 210.83 | G116: 206.17 | H116: 201.58 | I116: 220.08 | J116: 224.67 | K116: 229.33 | L116: 220 | M116: 210.75 | N116: 50568000 | O116: -3.66%
A117: 108 | B117: Telecom | C117: INFRATEL | D117: 262.15 | E117: 265.07 | F117: 255.78 | G117: 249.42 | H117: 240.13 | I117: 271.43 | J117: 280.72 | K117: 287.08 | L117: 274.35 | M117: 258.7 | N117: 6621500 | O117: -0.66%
A118: 109 | B118: Technology | C118: INFY | D118: 718.95 | E118: 721.47 | F118: 710.13 | G118: 701.32 | H118: 689.98 | I118: 730.28 | J118: 741.62 | K118: 750.43 | L118: 732.8 | M118: 712.65 | N118: 40808400 | O118: -3.61%
A119: 110 | B119: Oil_Gas | C119: IOC | D119: 154.80 | E119: 154.40 | F119: 153.05 | G119: 151.30 | H119: 149.95 | I119: 156.15 | J119: 157.50 | K119: 159.25 | L119: 155.75 | M119: 152.65 | N119: 28932000 | O119: 1.22%
A120: 111 | B120: Infrastructure | C120: IRB | D120: 141.40 | E120: 140.20 | F120: 138.05 | G120: 134.70 | H120: 132.55 | I120: 143.55 | J120: 145.70 | K120: 149.05 | L120: 142.35 | M120: 136.85 | N120: 14792500 | O120: -3.55%
A121: 112 | B121: FMCG | C121: ITC | D121: 293.60 | E121: 295.55 | F121: 288.30 | G121: 283.00 | H121: 275.75 | I121: 300.85 | J121: 308.10 | K121: 313.40 | L121: 302.8 | M121: 290.25 | N121: 78561600 | O121: 3.20%
A122: 113 | B122: Others | C122: JETAIRWAYS | D122: 192.35 | E122: 192.35 | F122: 187.35 | G122: 182.35 | H122: 177.35 | I122: 197.35 | J122: 202.35 | K122: 207.35 | L122: 197.35 | M122: 187.35 | N122: 8238000 | O122: 5.15%
A123: 114 | B123: Metals | C123: JINDALSTEL | D123: 230.60 | E123: 229.18 | F123: 224.57 | G123: 218.53 | H123: 213.92 | I123: 235.22 | J123: 239.83 | K123: 245.87 | L123: 233.8 | M123: 223.15 | N123: 31187250 | O123: -0.54%
A124: 115 | B124: Others | C124: JISLJALEQS | D124: 76.30 | E124: 76.52 | F124: 75.33 | G124: 74.37 | H124: 73.18 | I124: 77.48 | J124: 78.67 | K124: 79.63 | L124: 77.7 | M124: 75.55 | N124: 38601000 | O124: 1.80%
A125: 116 | B125: Realty | C125: JPASSOCIAT | D125: 7.40 | E125: 7.33 | F125: 7.07 | G125: 6.73 | H125: 6.47 | I125: 7.67 | J125: 7.93 | K125: 8.27 | L125: 7.6 | M125: 7 | N125: 150892000 | O125: 7.95%
A126: 117 | B126: Metals | C126: JSWSTEEL | D126: 408.60 | E126: 407.12 | F126: 402.63 | G126: 396.67 | H126: 392.18 | I126: 413.08 | J126: 417.57 | K126: 423.53 | L126: 411.6 | M126: 401.15 | N126: 57201000 | O126: -0.59%
A127: 118 | B127: Others | C127: JUBLFOOD | D127: 1290.10 | E127: 1285.52 | F127: 1266.68 | G127: 1243.27 | H127: 1224.43 | I127: 1308.93 | J127: 1327.77 | K127: 1351.18 | L127: 1304.35 | M127: 1262.1 | N127: 3512000 | O127: -0.65%
A128: 119 | B128: Others | C128: JUSTDIAL | D128: 506.60 | E128: 506.72 | F128: 496.88 | G128: 487.17 | H128: 477.33 | I128: 516.43 | J128: 526.27 | K128: 535.98 | L128: 516.55 | M128: 497 | N128: 2667000 | O128: -25.88%
A129: 120 | B129: Others | C129: KAJARIACER | D129: 398.90 | E129: 398.03 | F129: 391.92 | G129: 384.93 | H129: 378.82 | I129: 405.02 | J129: 411.13 | K129: 418.12 | L129: 404.15 | M129: 391.05 | N129: 2664000 | O129: 1.60%
A130: 121 | B130: Banking | C130: KOTAKBANK | D130: 1168.05 | E130: 1172.70 | F130: 1156.40 | G130: 1144.75 | H130: 1128.45 | I130: 1184.35 | J130: 1200.65 | K130: 1212.30 | L130: 1189 | M130: 1161.05 | N130: 13684000 | O130: -0.93%
A131: 122 | B131: Technology | C131: KPIT | D131: 247.60 | E131: 246.27 | F131: 224.43 | G131: 201.27 | H131: 179.43 | I131: 269.43 | J131: 291.27 | K131: 314.43 | L131: 268.1 | M131: 223.1 | N131: 10071000 | O131: 4.92%
A132: 123 | B132: Others | C132: KSCL | D132: 621.20 | E132: 615.02 | F132: 606.18 | G132: 591.17 | H132: 582.33 | I132: 630.03 | J132: 638.87 | K132: 653.88 | L132: 623.85 | M132: 600 | N132: 798000 | O132: -9.52%
A133: 124 | B133: Banking | C133: KTKBANK | D133: 102.10 | E133: 101.75 | F133: 100.10 | G133: 98.10 | H133: 96.45 | I133: 103.75 | J133: 105.40 | K133: 107.40 | L133: 103.4 | M133: 99.75 | N133: 17649000 | O133: -2.19%
A134: 125 | B134: Finance | C134: L&TFH | D134: 132.20 | E134: 133.08 | F134: 128.67 | G134: 125.13 | H134: 120.72 | I134: 136.62 | J134: 141.03 | K134: 144.57 | L134: 137.5 | M134: 129.55 | N134: 43303500 | O134: 2.71%
A135: 126 | B135: Finance | C135: LICHSGFIN | D135: 433.40 | E135: 436.15 | F135: 427.60 | G135: 421.80 | H135: 413.25 | I135: 441.95 | J135: 450.50 | K135: 456.30 | L135: 444.7 | M135: 430.35 | N135: 12054900 | O135: -0.76%
A136: 127 | B136: Capital_Goods | C136: LT | D136: 1333.80 | E136: 1327.72 | F136: 1317.73 | G136: 1301.67 | H136: 1291.68 | I136: 1343.78 | J136: 1353.77 | K136: 1369.83 | L136: 1337.7 | M136: 1311.65 | N136: 14625000 | O136: 1.39%
A137: 128 | B137: Pharma | C137: LUPIN | D137: 891.25 | E137: 895.68 | F137: 880.57 | G137: 869.88 | H137: 854.77 | I137: 906.37 | J137: 921.48 | K137: 932.17 | L137: 910.8 | M137: 885 | N137: 11569600 | O137: 1.44%
A138: 129 | B138: Automobile | C138: M&M | D138: 891.60 | E138: 898.35 | F138: 879.70 | G138: 867.80 | H138: 849.15 | I138: 910.25 | J138: 928.90 | K138: 940.80 | L138: 917 | M138: 886.45 | N138: 15155000 | O138: -0.60%
A139: 130 | B139: Finance | C139: M&MFIN | D139: 420.95 | E139: 421.72 | F139: 413.43 | G139: 405.92 | H139: 397.63 | I139: 429.23 | J139: 437.52 | K139: 445.03 | L139: 430 | M139: 414.2 | N139: 10106250 | O139: 3.57%
A140: 131 | B140: Others | C140: MANAPPURAM | D140: 79.40 | E140: 79.10 | F140: 78.35 | G140: 77.30 | H140: 76.55 | I140: 80.15 | J140: 80.90 | K140: 81.95 | L140: 79.85 | M140: 78.05 | N140: 20322000 | O140: -4.32%
A141: 132 | B141: FMCG | C141: MARICO | D141: 338.95 | E141: 338.32 | F141: 335.63 | G141: 332.32 | H141: 329.63 | I141: 341.63 | J141: 344.32 | K141: 347.63 | L141: 341 | M141: 335 | N141: 8660600 | O141: -2.57%
A142: 133 | B142: Automobile | C142: MARUTI | D142: 7855.05 | E142: 7929.75 | F142: 7761.90 | G142: 7668.75 | H142: 7500.90 | I142: 8022.90 | J142: 8190.75 | K142: 8283.90 | L142: 8097.6 | M142: 7836.6 | N142: 3171600 | O142: 3.83%
A143: 134 | B143: FMCG | C143: MCDOWELL-N | D143: 535.00 | E143: 536.38 | F143: 527.57 | G143: 520.13 | H143: 511.32 | I143: 543.82 | J143: 552.63 | K143: 560.07 | L143: 545.2 | M143: 528.95 | N143: 11215000 | O143: -0.08%
A144: 135 | B144: Others | C144: MCX | D144: 752.10 | E144: 748.53 | F144: 732.07 | G144: 712.03 | H144: 695.57 | I144: 768.57 | J144: 785.03 | K144: 805.07 | L144: 765 | M144: 728.5 | N144: 4508700 | O144: 1.61%
A145: 136 | B145: Finance | C145: MFSL | D145: 442.95 | E145: 448.90 | F145: 432.55 | G145: 422.15 | H145: 405.80 | I145: 459.30 | J145: 475.65 | K145: 486.05 | L145: 465.25 | M145: 438.5 | N145: 2715600 | O145: -2.16%
A146: 137 | B146: Others | C146: MGL | D146: 827.05 | E146: 824.37 | F146: 813.73 | G146: 800.42 | H146: 789.78 | I146: 837.68 | J146: 848.32 | K146: 861.63 | L146: 835 | M146: 811.05 | N146: 2736600 | O146: 2.33%
A147: 138 | B147: Technology | C147: MINDTREE | D147: 1073.75 | E147: 1071.08 | F147: 1044.17 | G147: 1014.58 | H147: 987.67 | I147: 1100.67 | J147: 1127.58 | K147: 1157.17 | L147: 1098 | M147: 1041.5 | N147: 4395600 | O147: 1.33%
A148: 139 | B148: Automobile | C148: MOTHERSUMI | D148: 257.75 | E148: 256.77 | F148: 245.58 | G148: 233.42 | H148: 222.23 | I148: 268.93 | J148: 280.12 | K148: 292.28 | L148: 267.95 | M148: 244.6 | N148: 17038400 | O148: 8.01%
A149: 140 | B149: Automobile | C149: MRF | D149: 66339.30 | E149: 66414.42 | F149: 65724.88 | G149: 65110.47 | H149: 64420.93 | I149: 67028.83 | J149: 67718.37 | K149: 68332.78 | L149: 67103.95 | M149: 65800 | N149: 29260 | O149: -5.03%
A150: 141 | B150: Others | C150: MRPL | D150: 74.90 | E150: 74.33 | F150: 73.12 | G150: 71.33 | H150: 70.12 | I150: 76.12 | J150: 77.33 | K150: 79.12 | L150: 75.55 | M150: 72.55 | N150: 5089500 | O150: -10.94%
A151: 142 | B151: Finance | C151: MUTHOOTFIN | D151: 432.10 | E151: 427.67 | F151: 420.68 | G151: 409.27 | H151: 402.28 | I151: 439.08 | J151: 446.07 | K151: 457.48 | L151: 434.65 | M151: 416.25 | N151: 3105000 | O151: -9.17%
A152: 143 | B152: Others | C152: NATIONALUM | D152: 66.95 | E152: 67.03 | F152: 66.17 | G152: 65.38 | H152: 64.52 | I152: 67.82 | J152: 68.68 | K152: 69.47 | L152: 67.9 | M152: 66.25 | N152: 53816000 | O152: -6.72%
A153: 144 | B153: Others | C153: NBCC | D153: 64.20 | E153: 64.23 | F153: 63.52 | G153: 62.83 | H153: 62.12 | I153: 64.92 | J153: 65.63 | K153: 66.32 | L153: 64.95 | M153: 63.55 | N153: 23814000 | O153: 1.02%
A154: 145 | B154: Infrastructure | C154: NCC | D154: 80.40 | E154: 80.43 | F154: 79.57 | G154: 78.73 | H154: 77.87 | I154: 81.27 | J154: 82.13 | K154: 82.97 | L154: 81.3 | M154: 79.6 | N154: 50320000 | O154: -0.05%
A155: 146 | B155: Others | C155: NESTLEIND | D155: 9729.50 | E155: 9702.87 | F155: 9588.58 | G155: 9447.67 | H155: 9333.38 | I155: 9843.78 | J155: 9958.07 | K155: 10098.98 | L155: 9817.15 | M155: 9561.95 | N155: 358800 | O155: 5.07%
A156: 147 | B156: Power | C156: NHPC | D156: 23.45 | E156: 23.47 | F156: 23.33 | G156: 23.22 | H156: 23.08 | I156: 23.58 | J156: 23.72 | K156: 23.83 | L156: 23.6 | M156: 23.35 | N156: 27351000 | O156: -12.60%
A157: 148 | B157: Technology | C157: NIITTECH | D157: 1168.55 | E157: 1176.33 | F157: 1127.27 | G157: 1085.98 | H157: 1036.92 | I157: 1217.62 | J157: 1266.68 | K157: 1307.97 | L157: 1225.4 | M157: 1135.05 | N157: 1603500 | O157: 14.95%
A158: 149 | B158: Metals | C158: NMDC | D158: 117.25 | E158: 116.02 | F158: 113.83 | G158: 110.42 | H158: 108.23 | I158: 119.43 | J158: 121.62 | K158: 125.03 | L158: 118.2 | M158: 112.6 | N158: 26928000 | O158: 0.07%
A159: 150 | B159: Power | C159: NTPC | D159: 168.25 | E159: 168.75 | F159: 165.95 | G159: 163.65 | H159: 160.85 | I159: 171.05 | J159: 173.85 | K159: 176.15 | L159: 171.55 | M159: 166.45 | N159: 40720000 | O159: -2.19%
A160: 151 | B160: Technology | C160: OFSS | D160: 3927.40 | E160: 3988.35 | F160: 3846.60 | G160: 3765.80 | H160: 3624.05 | I160: 4069.15 | J160: 4210.90 | K160: 4291.70 | L160: 4130.1 | M160: 3907.55 | N160: 516000 | O160: 32.10%
A161: 152 | B161: Oil_Gas | C161: OIL | D161: 218.55 | E161: 218.75 | F161: 215.65 | G161: 212.75 | H161: 209.65 | I161: 221.65 | J161: 224.75 | K161: 227.65 | L161: 221.85 | M161: 215.85 | N161: 3596142 | O161: -14.05%
A162: 153 | B162: Oil_Gas | C162: ONGC | D162: 180.95 | E162: 181.42 | F162: 178.83 | G162: 176.72 | H162: 174.13 | I162: 183.53 | J162: 186.12 | K162: 188.23 | L162: 184 | M162: 179.3 | N162: 48476250 | O162: 1.47%
A163: 154 | B163: Banking | C163: ORIENTBANK | D163: 67.45 | E163: 67.15 | F163: 65.80 | G163: 64.15 | H163: 62.80 | I163: 68.80 | J163: 70.15 | K163: 71.80 | L163: 68.5 | M163: 65.5 | N163: 14532000 | O163: -9.73%
A164: 155 | B164: Textile | C164: PAGEIND | D164: 32850.70 | E164: 32860.85 | F164: 32322.05 | G164: 31793.40 | H164: 31254.60 | I164: 33389.50 | J164: 33928.30 | K164: 34456.95 | L164: 33399.65 | M164: 32332.2 | N164: 131225 | O164: -4.27%
A165: 156 | B165: Others | C165: PCJEWELLER | D165: 69.65 | E165: 70.22 | F165: 68.28 | G165: 66.92 | H165: 64.98 | I165: 71.58 | J165: 73.52 | K165: 74.88 | L165: 72.15 | M165: 68.85 | N165: 9925500 | O165: -0.99%
A166: 157 | B166: Pharma | C166: PEL | D166: 2542.40 | E166: 2546.85 | F166: 2510.70 | G166: 2479.00 | H166: 2442.85 | I166: 2578.55 | J166: 2614.70 | K166: 2646.40 | L166: 2583 | M166: 2515.15 | N166: 3446122 | O166: -0.71%
A167: 158 | B167: Oil_Gas | C167: PETRONET | D167: 225.55 | E167: 225.05 | F167: 218.90 | G167: 212.25 | H167: 206.10 | I167: 231.70 | J167: 237.85 | K167: 244.50 | L167: 231.2 | M167: 218.4 | N167: 13137000 | O167: 4.41%
A168: 159 | B168: Finance | C168: PFC | D168: 82.65 | E168: 82.05 | F168: 81.10 | G168: 79.55 | H168: 78.60 | I168: 83.60 | J168: 84.55 | K168: 86.10 | L168: 83 | M168: 80.5 | N168: 84864000 | O168: -1.83%
A169: 160 | B169: FMCG | C169: PIDILITIND | D169: 1077.15 | E169: 1087.45 | F169: 1059.80 | G169: 1042.45 | H169: 1014.80 | I169: 1104.80 | J169: 1132.45 | K169: 1149.80 | L169: 1115.1 | M169: 1070.1 | N169: 3533000 | O169: -10.06%
A170: 161 | B170: Banking | C170: PNB | D170: 67.20 | E170: 67.62 | F170: 65.93 | G170: 64.67 | H170: 62.98 | I170: 68.88 | J170: 70.57 | K170: 71.83 | L170: 69.3 | M170: 66.35 | N170: 142670000 | O170: 1.51%
A171: 162 | B171: Power | C171: POWERGRID | D171: 193.15 | E171: 192.00 | F171: 189.80 | G171: 186.45 | H171: 184.25 | I171: 195.35 | J171: 197.55 | K171: 200.90 | L171: 194.2 | M171: 188.65 | N171: 45852000 | O171: -3.67%
A172: 163 | B172: Power | C172: PTC | D172: 69.90 | E172: 69.38 | F172: 68.42 | G172: 66.93 | H172: 65.97 | I172: 70.87 | J172: 71.83 | K172: 73.32 | L172: 70.35 | M172: 67.9 | N172: 12936000 | O172: 2.08%
A173: 164 | B173: Others | C173: PVR | D173: 1281.05 | E173: 1272.03 | F173: 1258.22 | G173: 1235.38 | H173: 1221.57 | I173: 1294.87 | J173: 1308.68 | K173: 1331.52 | L173: 1285.85 | M173: 1249.2 | N173: 1061600 | O173: 0.61%
A174: 165 | B174: Cement | C174: RAMCOCEM | D174: 654.15 | E174: 650.75 | F174: 643.50 | G174: 632.85 | H174: 625.60 | I174: 661.40 | J174: 668.65 | K174: 679.30 | L174: 658 | M174: 640.1 | N174: 981600 | O174: -1.29%
A175: 166 | B175: Others | C175: RAYMOND | D175: 727.45 | E175: 727.93 | F175: 719.02 | G175: 710.58 | H175: 701.67 | I175: 736.37 | J175: 745.28 | K175: 753.72 | L175: 736.85 | M175: 719.5 | N175: 5149600 | O175: -1.08%
A176: 167 | B176: Banking | C176: RBLBANK | D176: 536.35 | E176: 532.08 | F176: 524.42 | G176: 512.48 | H176: 504.82 | I176: 544.02 | J176: 551.68 | K176: 563.62 | L176: 539.75 | M176: 520.15 | N176: 5578800 | O176: -5.24%
A177: 168 | B177: Telecom | C177: RCOM | D177: 12.85 | E177: 12.50 | F177: 11.80 | G177: 10.75 | H177: 10.05 | I177: 13.55 | J177: 14.25 | K177: 15.30 | L177: 13.2 | M177: 11.45 | N177: 125664000 | O177: 2.51%
A178: 169 | B178: Power | C178: RECLTD | D178: 102.35 | E178: 101.57 | F178: 100.13 | G178: 97.92 | H178: 96.48 | I178: 103.78 | J178: 105.22 | K178: 107.43 | L178: 103 | M178: 99.35 | N178: 44250000 | O178: -0.39%
A179: 170 | B179: Finance | C179: RELCAPITAL | D179: 318.45 | E179: 318.00 | F179: 312.25 | G179: 306.05 | H179: 300.30 | I179: 324.20 | J179: 329.95 | K179: 336.15 | L179: 323.75 | M179: 311.8 | N179: 11578500 | O179: 4.95%
A180: 171 | B180: Oil_Gas | C180: RELIANCE | D180: 1252.65 | E180: 1245.50 | F180: 1236.15 | G180: 1219.65 | H180: 1210.30 | I180: 1262.00 | J180: 1271.35 | K180: 1287.85 | L180: 1254.85 | M180: 1229 | N180: 52796000 | O180: -0.27%
A181: 172 | B181: Power | C181: RELINFRA | D181: 321.45 | E181: 320.58 | F181: 314.22 | G181: 306.98 | H181: 300.62 | I181: 327.82 | J181: 334.18 | K181: 341.42 | L181: 326.95 | M181: 313.35 | N181: 8931000 | O181: -2.47%
A182: 173 | B182: Others | C182: REPCOHOME | D182: 434.90 | E182: 438.93 | F182: 420.97 | G182: 407.03 | H182: 389.07 | I182: 452.87 | J182: 470.83 | K182: 484.77 | L182: 456.9 | M182: 425 | N182: 658800 | O182: 3.24%
A183: 174 | B183: Power | C183: RPOWER | D183: 27.15 | E183: 27.15 | F183: 26.70 | G183: 26.25 | H183: 25.80 | I183: 27.60 | J183: 28.05 | K183: 28.50 | L183: 27.6 | M183: 26.7 | N183: 57395000 | O183: 1.75%
A184: 175 | B184: Metals | C184: SAIL | D184: 76.35 | E184: 76.17 | F184: 75.13 | G184: 73.92 | H184: 72.88 | I184: 77.38 | J184: 78.42 | K184: 79.63 | L184: 77.2 | M184: 74.95 | N184: 75456000 | O184: -6.78%
A185: 176 | B185: Banking | C185: SBIN | D185: 264.40 | E185: 267.17 | F185: 260.43 | G185: 256.47 | H185: 249.73 | I185: 271.13 | J185: 277.87 | K185: 281.83 | L185: 273.9 | M185: 263.2 | N185: 91965000 | O185: 4.56%
A186: 177 | B186: Cement | C186: SHREECEM | D186: 17435.00 | E186: 17252.47 | F186: 17006.83 | G186: 16578.67 | H186: 16333.03 | I186: 17680.63 | J186: 17926.27 | K186: 18354.43 | L186: 17498.1 | M186: 16824.3 | N186: 104850 | O186: 0.10%
A187: 178 | B187: Capital_Goods | C187: SIEMENS | D187: 943.25 | E187: 937.62 | F187: 927.23 | G187: 911.22 | H187: 900.83 | I187: 953.63 | J187: 964.02 | K187: 980.03 | L187: 948 | M187: 921.6 | N187: 1555500 | O187: -4.89%
A188: 179 | B188: Banking | C188: SOUTHBANK | D188: 14.55 | E188: 14.52 | F188: 14.33 | G188: 14.12 | H188: 13.93 | I188: 14.73 | J188: 14.92 | K188: 15.13 | L188: 14.7 | M188: 14.3 | N188: 165340449 | O188: 5.23%
A189: 180 | B189: Others | C189: SREINFRA | D189: 40.15 | E189: 40.63 | F189: 39.32 | G189: 38.48 | H189: 37.17 | I189: 41.47 | J189: 42.78 | K189: 43.62 | L189: 41.95 | M189: 39.8 | N189: 18970000 | O189: 3.00%
A190: 181 | B190: Textile | C190: SRF | D190: 1888.05 | E190: 1901.82 | F190: 1868.98 | G190: 1849.92 | H190: 1817.08 | I190: 1920.88 | J190: 1953.72 | K190: 1972.78 | L190: 1934.65 | M190: 1882.75 | N190: 799500 | O190: -1.54%
A191: 182 | B191: Finance | C191: SRTRANSFIN | D191: 1187.70 | E191: 1185.75 | F191: 1165.95 | G191: 1144.20 | H191: 1124.40 | I191: 1207.50 | J191: 1227.30 | K191: 1249.05 | L191: 1205.55 | M191: 1164 | N191: 5265600 | O191: -1.29%
A192: 183 | B192: Pharma | C192: STAR | D192: 481.25 | E192: 478.03 | F192: 472.42 | G192: 463.58 | H192: 457.97 | I192: 486.87 | J192: 492.48 | K192: 501.32 | L192: 483.65 | M192: 469.2 | N192: 4936800 | O192: 0.11%
A193: 184 | B193: Pharma | C193: SUNPHARMA | D193: 639.70 | E193: 640.57 | F193: 632.43 | G193: 625.17 | H193: 617.03 | I193: 647.83 | J193: 655.97 | K193: 663.23 | L193: 648.7 | M193: 633.3 | N193: 34464100 | O193: 0.17%
A194: 185 | B194: Media | C194: SUNTV | D194: 636.15 | E194: 641.80 | F194: 628.40 | G194: 620.65 | H194: 607.25 | I194: 649.55 | J194: 662.95 | K194: 670.70 | L194: 655.2 | M194: 634.05 | N194: 7599000 | O194: 0.14%
A195: 186 | B195: Power | C195: SUZLON | D195: 6.20 | E195: 6.18 | F195: 5.97 | G195: 5.73 | H195: 5.52 | I195: 6.42 | J195: 6.63 | K195: 6.87 | L195: 6.4 | M195: 5.95 | N195: 413460000 | O195: 8.23%
A196: 187 | B196: Banking | C196: SYNDIBANK | D196: 33.30 | E196: 33.23 | F196: 32.77 | G196: 32.23 | H196: 31.77 | I196: 33.77 | J196: 34.23 | K196: 34.77 | L196: 33.7 | M196: 32.7 | N196: 28431000 | O196: -11.86%
A197: 188 | B197: Fertilisers | C197: TATACHEM | D197: 700.90 | E197: 703.18 | F197: 693.27 | G197: 685.63 | H197: 675.72 | I197: 710.82 | J197: 720.73 | K197: 728.37 | L197: 713.1 | M197: 695.55 | N197: 3113250 | O197: -4.35%
A198: 189 | B198: Telecom | C198: TATACOMM | D198: 512.00 | E198: 509.92 | F198: 503.08 | G198: 494.17 | H198: 487.33 | I198: 518.83 | J198: 525.67 | K198: 534.58 | L198: 516.75 | M198: 501 | N198: 3177600 | O198: -1.27%
A199: 190 | B199: Technology | C199: TATAELXSI | D199: 1188.70 | E199: 1202.90 | F199: 1166.85 | G199: 1145.00 | H199: 1108.95 | I199: 1224.75 | J199: 1260.80 | K199: 1282.65 | L199: 1238.95 | M199: 1181.05 | N199: 2076800 | O199: 16.46%
A200: 191 | B200: FMCG | C200: TATAGLOBAL | D200: 234.75 | E200: 235.67 | F200: 231.53 | G200: 228.32 | H200: 224.18 | I200: 238.88 | J200: 243.02 | K200: 246.23 | L200: 239.8 | M200: 232.45 | N200: 12228750 | O200: -5.48%
A201: 192 | B201: Automobile | C201: TATAMOTORS | D201: 233.95 | E201: 235.80 | F201: 228.20 | G201: 222.45 | H201: 214.85 | I201: 241.55 | J201: 249.15 | K201: 254.90 | L201: 243.4 | M201: 230.05 | N201: 85216500 | O201: 2.86%
A202: 193 | B202: Automobile | C202: TATAMTRDVR | D202: 123.35 | E202: 124.87 | F202: 120.98 | G202: 118.62 | H202: 114.73 | I202: 127.23 | J202: 131.12 | K202: 133.48 | L202: 128.75 | M202: 122.5 | N202: 32832800 | O202: 1.36%
A203: 194 | B203: Power | C203: TATAPOWER | D203: 70.05 | E203: 69.92 | F203: 69.08 | G203: 68.12 | H203: 67.28 | I203: 70.88 | J203: 71.72 | K203: 72.68 | L203: 70.75 | M203: 68.95 | N203: 49860000 | O203: -1.23%
A204: 195 | B204: Metals | C204: TATASTEEL | D204: 610.15 | E204: 607.72 | F204: 600.93 | G204: 591.72 | H204: 584.93 | I204: 616.93 | J204: 623.72 | K204: 632.93 | L204: 614.5 | M204: 598.5 | N204: 39305806 | O204: 2.05%
A205: 196 | B205: Technology | C205: TCS | D205: 2146.70 | E205: 2161.77 | F205: 2125.63 | G205: 2104.57 | H205: 2068.43 | I205: 2182.83 | J205: 2218.97 | K205: 2240.03 | L205: 2197.9 | M205: 2140.7 | N205: 9272000 | O205: -1.10%
A206: 197 | B206: Technology | C206: TECHM | D206: 749.35 | E206: 752.77 | F206: 736.93 | G206: 724.52 | H206: 708.68 | I206: 765.18 | J206: 781.02 | K206: 793.43 | L206: 768.6 | M206: 740.35 | N206: 16060800 | O206: -1.23%
... 35 more rows

Sheet Cash Intra
M5: Back to Main Page
A6: FOR INTRA DAY TRADING | K6: =Main!B10 -> 2018-09-27
A8: Sr.no | B8: Scrip | C8: CLOSE RATE | D8: Pivot Point | E8: Supports | H8: Resistances
C9: Point | E9: S1 | F9: S2 | G9: S3 | H9: R1 | I9: R2 | J9: R3 | K9: HIGH | L9: LOW | M9: Total Trade Quanity in Lakhs
A10: 1 | B10: Nifty 50 | C10: 11053.8 | D10: 11064.13 | E10: 10982.72 | F10: 10911.63 | G10: 10830.22 | H10: 11135.22 | I10: 11216.63 | J10: 11287.72 | K10: 11145.55 | L10: 10993.05
A11: 2 | B11: Nifty Bank | C11: 25376.3 | D11: 25366.25 | E11: 25207.40 | F11: 25038.50 | G11: 24879.65 | H11: 25535.15 | I11: 25694.00 | J11: 25862.90 | K11: 25525.1 | L11: 25197.35
A12: 3 | B12: Nifty CPSE | C12: 2315.75 | D12: 2314.82 | E12: 2299.13 | F12: 2282.52 | G12: 2266.83 | H12: 2331.43 | I12: 2347.12 | J12: 2363.73 | K12: 2330.5 | L12: 2298.2
A13: 4 | B13: Nifty Infra | C13: 3084.55 | D13: 3077.18 | E13: 3055.77 | F13: 3026.98 | G13: 3005.57 | H13: 3105.97 | I13: 3127.38 | J13: 3156.17 | K13: 3098.6 | L13: 3048.4
A14: 5 | B14: Nifty IT | C14: 15932.45 | D14: 16034.22 | E14: 15776.13 | F14: 15619.82 | G14: 15361.73 | H14: 16190.53 | I14: 16448.62 | J14: 16604.93 | K14: 16292.3 | L14: 15877.9
A15: 6 | B15: Nifty PSE | C15: 3617.8 | D15: 3614.50 | E15: 3588.25 | F15: 3558.70 | G15: 3532.45 | H15: 3644.05 | I15: 3670.30 | J15: 3699.85 | K15: 3640.75 | L15: 3584.95
A16: 7 | B16: Nifty Midcap 50 | C16: 4837.55 | D16: 4830.33 | E16: 4798.27 | F16: 4758.98 | G16: 4726.92 | H16: 4869.62 | I16: 4901.68 | J16: 4940.97 | K16: 4862.4 | L16: 4791.05
A17: 8 | B17: ABB | C17: 1436 | D17: 1441.88 | E17: 1413.77 | F17: 1391.53 | G17: 1363.42 | H17: 1464.12 | I17: 1492.23 | J17: 1514.47 | K17: 1470 | L17: 1419.65 | M17: 1.06689
A18: 9 | B18: ACC | C18: 1582.15 | D18: 1574.75 | E18: 1557.40 | F18: 1532.65 | G18: 1515.30 | H18: 1599.50 | I18: 1616.85 | J18: 1641.60 | K18: 1592.1 | L18: 1550 | M18: 5.89965
A19: 10 | B19: AIAENG | C19: 1763.35 | D19: 1763.12 | E19: 1737.23 | F19: 1711.12 | G19: 1685.23 | H19: 1789.23 | I19: 1815.12 | J19: 1841.23 | K19: 1789 | L19: 1737 | M19: 0.15336
A20: 11 | B20: AUBANK | C20: 617.8 | D20: 622.00 | E20: 609.10 | F20: 600.40 | G20: 587.50 | H20: 630.70 | I20: 643.60 | J20: 652.30 | K20: 634.9 | L20: 613.3 | M20: 4.4137
A21: 12 | B21: ADANIENT | C21: 136.5 | D21: 137.57 | E21: 132.63 | F21: 128.77 | G21: 123.83 | H21: 141.43 | I21: 146.37 | J21: 150.23 | K21: 142.5 | L21: 133.7 | M21: 67.68299
A22: 13 | B22: ADANIPORTS | C22: 338.55 | D22: 338.02 | E22: 331.13 | F22: 323.72 | G22: 316.83 | H22: 345.43 | I22: 352.32 | J22: 359.73 | K22: 344.9 | L22: 330.6 | M22: 34.24347
A23: 14 | B23: ADANIPOWER | C23: 26 | D23: 25.77 | E23: 24.93 | F23: 23.87 | G23: 23.03 | H23: 26.83 | I23: 27.67 | J23: 28.73 | K23: 26.6 | L23: 24.7 | M23: 190.3463
A24: 15 | B24: ABFRL | C24: 184.4 | D24: 184.17 | E24: 180.33 | F24: 176.27 | G24: 172.43 | H24: 188.23 | I24: 192.07 | J24: 196.13 | K24: 188 | L24: 180.1 | M24: 3.45016
A25: 16 | B25: AJANTPHARM | C25: 1114.45 | D25: 1113.00 | E25: 1095.00 | F25: 1075.55 | G25: 1057.55 | H25: 1132.45 | I25: 1150.45 | J25: 1169.90 | K25: 1131 | L25: 1093.55 | M25: 2.75687
A26: 17 | B26: ALKEM | C26: 2069 | D26: 2069.85 | E26: 2042.15 | F26: 2015.30 | G26: 1987.60 | H26: 2096.70 | I26: 2124.40 | J26: 2151.25 | K26: 2097.55 | L26: 2043 | M26: 0.16395
A27: 18 | B27: AMARAJABAT | C27: 786.45 | D27: 781.47 | E27: 770.08 | F27: 753.72 | G27: 742.33 | H27: 797.83 | I27: 809.22 | J27: 825.58 | K27: 792.85 | L27: 765.1 | M27: 5.32443
A28: 19 | B28: AMBUJACEM | C28: 226.1 | D28: 226.25 | E28: 223.30 | F28: 220.50 | G28: 217.55 | H28: 229.05 | I28: 232.00 | J28: 234.80 | K28: 229.2 | L28: 223.45 | M28: 24.20982
A29: 20 | B29: APOLLOHOSP | C29: 1043.3 | D29: 1045.10 | E29: 1030.20 | F29: 1017.10 | G29: 1002.20 | H29: 1058.20 | I29: 1073.10 | J29: 1086.20 | K29: 1060 | L29: 1032 | M29: 6.68783
A30: 21 | B30: APOLLOTYRE | C30: 228.3 | D30: 229.95 | E30: 224.90 | F30: 221.50 | G30: 216.45 | H30: 233.35 | I30: 238.40 | J30: 241.80 | K30: 235 | L30: 226.55 | M30: 23.97083
A31: 22 | B31: ARVIND | C31: 352.2 | D31: 351.48 | E31: 344.22 | F31: 336.23 | G31: 328.97 | H31: 359.47 | I31: 366.73 | J31: 374.72 | K31: 358.75 | L31: 343.5 | M31: 27.24729
A32: 23 | B32: ASHOKLEY | C32: 120.65 | D32: 121.15 | E32: 119.00 | F32: 117.35 | G32: 115.20 | H32: 122.80 | I32: 124.95 | J32: 126.60 | K32: 123.3 | L32: 119.5 | M32: 110.8233
A33: 24 | B33: ASIANPAINT | C33: 1282 | D33: 1286.50 | E33: 1269.50 | F33: 1257.00 | G33: 1240.00 | H33: 1299.00 | I33: 1316.00 | J33: 1328.50 | K33: 1303.5 | L33: 1274 | M33: 13.38324
A34: 25 | B34: AUROPHARMA | C34: 759.1 | D34: 766.43 | E34: 747.77 | F34: 736.43 | G34: 717.77 | H34: 777.77 | I34: 796.43 | J34: 807.77 | K34: 785.1 | L34: 755.1 | M34: 49.47221
A35: 26 | B35: DMART | C35: 1420.8 | D35: 1431.93 | E35: 1403.87 | F35: 1386.93 | G35: 1358.87 | H35: 1448.87 | I35: 1476.93 | J35: 1493.87 | K35: 1460 | L35: 1415 | M35: 2.98196
A36: 27 | B36: AXISBANK | C36: 617.45 | D36: 617.95 | E36: 611.55 | F36: 605.65 | G36: 599.25 | H36: 623.85 | I36: 630.25 | J36: 636.15 | K36: 624.35 | L36: 612.05 | M36: 87.25133
A37: 28 | B37: BAJAJ-AUTO | C37: 2773.3 | D37: 2775.22 | E37: 2741.68 | F37: 2710.07 | G37: 2676.53 | H37: 2806.83 | I37: 2840.37 | J37: 2871.98 | K37: 2808.75 | L37: 2743.6 | M37: 4.94874
A38: 29 | B38: BAJFINANCE | C38: 2315.55 | D38: 2321.53 | E38: 2289.12 | F38: 2262.68 | G38: 2230.27 | H38: 2347.97 | I38: 2380.38 | J38: 2406.82 | K38: 2353.95 | L38: 2295.1 | M38: 27.28756
A39: 30 | B39: BAJAJFINSV | C39: 6212.55 | D39: 6229.85 | E39: 6170.70 | F39: 6128.85 | G39: 6069.70 | H39: 6271.70 | I39: 6330.85 | J39: 6372.70 | K39: 6289 | L39: 6188 | M39: 1.64588
A40: 31 | B40: BALKRISIND | C40: 1104.6 | D40: 1101.40 | E40: 1091.80 | F40: 1079.00 | G40: 1069.40 | H40: 1114.20 | I40: 1123.80 | J40: 1136.60 | K40: 1111 | L40: 1088.6 | M40: 3.18022
A41: 32 | B41: BANKBARODA | C41: 109.15 | D41: 109.27 | E41: 107.28 | F41: 105.42 | G41: 103.43 | H41: 111.13 | I41: 113.12 | J41: 114.98 | K41: 111.25 | L41: 107.4 | M41: 256.92758
A42: 33 | B42: BANKINDIA | C42: 83.85 | D42: 83.67 | E42: 81.93 | F42: 80.02 | G42: 78.28 | H42: 85.58 | I42: 87.32 | J42: 89.23 | K42: 85.4 | L42: 81.75 | M42: 88.49865
A43: 34 | B43: BATAINDIA | C43: 956.5 | D43: 957.62 | E43: 947.38 | F43: 938.27 | G43: 928.03 | H43: 966.73 | I43: 976.97 | J43: 986.08 | K43: 967.85 | L43: 948.5 | M43: 6.03206
A44: 35 | B44: BERGEPAINT | C44: 295.65 | D44: 298.17 | E44: 290.38 | F44: 285.12 | G44: 277.33 | H44: 303.43 | I44: 311.22 | J44: 316.48 | K44: 305.95 | L44: 292.9 | M44: 9.25942
A45: 36 | B45: BEL | C45: 84.2 | D45: 82.92 | E45: 79.53 | F45: 74.87 | G45: 71.48 | H45: 87.58 | I45: 90.97 | J45: 95.63 | K45: 86.3 | L45: 78.25 | M45: 473.34109
A46: 37 | B46: BHARATFIN | C46: 1063 | D46: 1058.90 | E46: 1052.20 | F46: 1041.40 | G46: 1034.70 | H46: 1069.70 | I46: 1076.40 | J46: 1087.20 | K46: 1065.6 | L46: 1048.1 | M46: 19.68359
A47: 38 | B47: BHARATFORG | C47: 625 | D47: 624.88 | E47: 618.37 | F47: 611.73 | G47: 605.22 | H47: 631.52 | I47: 638.03 | J47: 644.67 | K47: 631.4 | L47: 618.25 | M47: 9.11023
A48: 39 | B48: BHEL | C48: 72.15 | D48: 72.25 | E48: 71.65 | F48: 71.15 | G48: 70.55 | H48: 72.75 | I48: 73.35 | J48: 73.85 | K48: 72.85 | L48: 71.75 | M48: 37.39806
A49: 40 | B49: BPCL | C49: 368.65 | D49: 366.93 | E49: 363.07 | F49: 357.48 | G49: 353.62 | H49: 372.52 | I49: 376.38 | J49: 381.97 | K49: 370.8 | L49: 361.35 | M49: 31.52317
A50: 41 | B50: BHARTIARTL | C50: 361.3 | D50: 361.15 | E50: 357.30 | F50: 353.30 | G50: 349.45 | H50: 365.15 | I50: 369.00 | J50: 373.00 | K50: 365 | L50: 357.15 | M50: 39.64043
A51: 42 | B51: INFRATEL | C51: 261.5 | D51: 264.37 | E51: 254.83 | F51: 248.17 | G51: 238.63 | H51: 271.03 | I51: 280.57 | J51: 287.23 | K51: 273.9 | L51: 257.7 | M51: 25.75108
A52: 43 | B52: BIOCON | C52: 706.6 | D52: 706.95 | E52: 695.90 | F52: 685.20 | G52: 674.15 | H52: 717.65 | I52: 728.70 | J52: 739.40 | K52: 718 | L52: 696.25 | M52: 45.01895
A53: 44 | B53: BOSCHLTD | C53: 19710.1 | D53: 19804.87 | E53: 19306.93 | F53: 18903.77 | G53: 18405.83 | H53: 20208.03 | I53: 20705.97 | J53: 21109.13 | K53: 20302.8 | L53: 19401.7 | M53: 0.23779
A54: 45 | B54: BRITANNIA | C54: 5681.9 | D54: 5735.63 | E54: 5596.27 | F54: 5510.63 | G54: 5371.27 | H54: 5821.27 | I54: 5960.63 | J54: 6046.27 | K54: 5875 | L54: 5650 | M54: 1.90517
A55: 46 | B55: CRISIL | C55: 1750 | D55: 1745.98 | E55: 1715.02 | F55: 1680.03 | G55: 1649.07 | H55: 1780.97 | I55: 1811.93 | J55: 1846.92 | K55: 1776.95 | L55: 1711 | M55: 0.10196
A56: 47 | B56: CADILAHC | C56: 399.15 | D56: 398.48 | E56: 393.17 | F56: 387.18 | G56: 381.87 | H56: 404.47 | I56: 409.78 | J56: 415.77 | K56: 403.8 | L56: 392.5 | M56: 13.81815
A57: 48 | B57: CANBK | C57: 235.15 | D57: 234.82 | E57: 231.63 | F57: 228.12 | G57: 224.93 | H57: 238.33 | I57: 241.52 | J57: 245.03 | K57: 238 | L57: 231.3 | M57: 60.09365
A58: 49 | B58: CASTROLIND | C58: 149.55 | D58: 150.33 | E58: 148.42 | F58: 147.28 | G58: 145.37 | H58: 151.47 | I58: 153.38 | J58: 154.52 | K58: 152.25 | L58: 149.2 | M58: 6.53889
A59: 50 | B59: CENTRALBK | C59: 43.6 | D59: 43.80 | E59: 42.80 | F59: 42.00 | G59: 41.00 | H59: 44.60 | I59: 45.60 | J59: 46.40 | K59: 44.8 | L59: 43 | M59: 12.60191
A60: 51 | B60: CENTURYTEX | C60: 876.8 | D60: 875.00 | E60: 863.55 | F60: 850.30 | G60: 838.85 | H60: 888.25 | I60: 899.70 | J60: 912.95 | K60: 886.45 | L60: 861.75 | M60: 3.57358
A61: 52 | B61: CHOLAFIN | C61: 1215.55 | D61: 1219.70 | E61: 1199.40 | F61: 1183.25 | G61: 1162.95 | H61: 1235.85 | I61: 1256.15 | J61: 1272.30 | K61: 1240 | L61: 1203.55 | M61: 4.0001
A62: 53 | B62: CIPLA | C62: 672.8 | D62: 668.02 | E62: 660.78 | F62: 648.77 | G62: 641.53 | H62: 680.03 | I62: 687.27 | J62: 699.28 | K62: 675.25 | L62: 656 | M62: 21.31833
A63: 54 | B63: COALINDIA | C63: 272.55 | D63: 273.25 | E63: 269.50 | F63: 266.45 | G63: 262.70 | H63: 276.30 | I63: 280.05 | J63: 283.10 | K63: 277 | L63: 270.2 | M63: 23.005
A64: 55 | B64: COLPAL | C64: 1097.45 | D64: 1100.07 | E64: 1087.18 | F64: 1076.92 | G64: 1064.03 | H64: 1110.33 | I64: 1123.22 | J64: 1133.48 | K64: 1112.95 | L64: 1089.8 | M64: 6.0573
A65: 56 | B65: CONCOR | C65: 628.65 | D65: 624.83 | E65: 616.82 | F65: 604.98 | G65: 596.97 | H65: 636.67 | I65: 644.68 | J65: 656.52 | K65: 632.85 | L65: 613 | M65: 5.51429
A66: 57 | B66: COROMANDEL | C66: 399.1 | D66: 397.57 | E66: 394.03 | F66: 388.97 | G66: 385.43 | H66: 402.63 | I66: 406.17 | J66: 411.23 | K66: 401.1 | L66: 392.5 | M66: 0.91048
A67: 58 | B67: CROMPTON | C67: 218.65 | D67: 217.70 | E67: 214.45 | F67: 210.25 | G67: 207.00 | H67: 221.90 | I67: 225.15 | J67: 229.35 | K67: 220.95 | L67: 213.5 | M67: 25.47691
A68: 59 | B68: CUMMINSIND | C68: 692.45 | D68: 694.35 | E68: 687.70 | F68: 682.95 | G68: 676.30 | H68: 699.10 | I68: 705.75 | J68: 710.50 | K68: 701 | L68: 689.6 | M68: 3.87335
A69: 60 | B69: DLF | C69: 182.6 | D69: 181.28 | E69: 177.67 | F69: 172.73 | G69: 169.12 | H69: 186.22 | I69: 189.83 | J69: 194.77 | K69: 184.9 | L69: 176.35 | M69: 153.97405
A70: 61 | B70: DABUR | C70: 436.45 | D70: 436.95 | E70: 431.55 | F70: 426.65 | G70: 421.25 | H70: 441.85 | I70: 447.25 | J70: 452.15 | K70: 442.35 | L70: 432.05 | M70: 20.52494
A71: 62 | B71: DALMIABHA | C71: 2430.15 | D71: 2435.58 | E71: 2412.27 | F71: 2394.38 | G71: 2371.07 | H71: 2453.47 | I71: 2476.78 | J71: 2494.67 | K71: 2458.9 | L71: 2417.7 | M71: 0.53364
A72: 63 | B72: DHFL | C72: 305.45 | D72: 300.82 | E72: 281.63 | F72: 257.82 | G72: 238.63 | H72: 324.63 | I72: 343.82 | J72: 367.63 | K72: 320 | L72: 277 | M72: 696.0947
A73: 64 | B73: DISHTV | C73: 57.05 | D73: 57.68 | E73: 55.67 | F73: 54.28 | G73: 52.27 | H73: 59.07 | I73: 61.08 | J73: 62.47 | K73: 59.7 | L73: 56.3 | M73: 103.07677
A74: 65 | B74: DIVISLAB | C74: 1385.35 | D74: 1393.80 | E74: 1362.60 | F74: 1339.85 | G74: 1308.65 | H74: 1416.55 | I74: 1447.75 | J74: 1470.50 | K74: 1425 | L74: 1371.05 | M74: 18.0407
A75: 66 | B75: LALPATHLAB | C75: 967.8 | D75: 967.37 | E75: 956.73 | F75: 945.67 | G75: 935.03 | H75: 978.43 | I75: 989.07 | J75: 1000.13 | K75: 978 | L75: 956.3 | M75: 0.86883
A76: 67 | B76: DRREDDY | C76: 2600.85 | D76: 2618.68 | E76: 2573.17 | F76: 2545.48 | G76: 2499.97 | H76: 2646.37 | I76: 2691.88 | J76: 2719.57 | K76: 2664.2 | L76: 2591 | M76: 12.06238
A77: 68 | B77: EDELWEISS | C77: 212.15 | D77: 214.58 | E77: 207.67 | F77: 203.18 | G77: 196.27 | H77: 219.07 | I77: 225.98 | J77: 230.47 | K77: 221.5 | L77: 210.1 | M77: 33.03414
A78: 69 | B78: EICHERMOT | C78: 25180.75 | D78: 25510.73 | E78: 24771.02 | F78: 24361.28 | G78: 23621.57 | H78: 25920.47 | I78: 26660.18 | J78: 27069.92 | K78: 26250.45 | L78: 25101 | M78: 0.78609
A79: 70 | B79: EMAMILTD | C79: 522.4 | D79: 519.35 | E79: 508.55 | F79: 494.70 | G79: 483.90 | H79: 533.20 | I79: 544.00 | J79: 557.85 | K79: 530.15 | L79: 505.5 | M79: 4.2709
A80: 71 | B80: ENDURANCE | C80: 1364.75 | D80: 1374.73 | E80: 1345.52 | F80: 1326.28 | G80: 1297.07 | H80: 1393.97 | I80: 1423.18 | J80: 1442.42 | K80: 1403.95 | L80: 1355.5 | M80: 0.19472
A81: 72 | B81: ENGINERSIN | C81: 122.1 | D81: 121.02 | E81: 119.58 | F81: 117.07 | G81: 115.63 | H81: 123.53 | I81: 124.97 | J81: 127.48 | K81: 122.45 | L81: 118.5 | M81: 17.09426
A82: 73 | B82: EXIDEIND | C82: 273.6 | D82: 268.85 | E82: 261.50 | F82: 249.40 | G82: 242.05 | H82: 280.95 | I82: 288.30 | J82: 300.40 | K82: 276.2 | L82: 256.75 | M82: 38.80719
A83: 74 | B83: FEDERALBNK | C83: 71.5 | D83: 71.60 | E83: 70.25 | F83: 69.00 | G83: 67.65 | H83: 72.85 | I83: 74.20 | J83: 75.45 | K83: 72.95 | L83: 70.35 | M83: 84.12363
A84: 75 | B84: GAIL | C84: 375.1 | D84: 375.87 | E84: 369.73 | F84: 364.37 | G84: 358.23 | H84: 381.23 | I84: 387.37 | J84: 392.73 | K84: 382 | L84: 370.5 | M84: 34.46786
A85: 76 | B85: GMRINFRA | C85: 17.55 | D85: 17.32 | E85: 16.98 | F85: 16.42 | G85: 16.08 | H85: 17.88 | I85: 18.22 | J85: 18.78 | K85: 17.65 | L85: 16.75 | M85: 577.40082
A86: 77 | B86: GSKCONS | C86: 7200.9 | D86: 7223.20 | E86: 7102.70 | F86: 7004.50 | G86: 6884.00 | H86: 7321.40 | I86: 7441.90 | J86: 7540.10 | K86: 7343.7 | L86: 7125 | M86: 0.11565
A87: 78 | B87: GLAXO | C87: 1518.55 | D87: 1507.52 | E87: 1486.03 | F87: 1453.52 | G87: 1432.03 | H87: 1540.03 | I87: 1561.52 | J87: 1594.03 | K87: 1529 | L87: 1475 | M87: 0.15391
A88: 79 | B88: GLENMARK | C88: 654.25 | D88: 651.47 | E88: 643.63 | F88: 633.02 | G88: 625.18 | H88: 662.08 | I88: 669.92 | J88: 680.53 | K88: 659.3 | L88: 640.85 | M88: 13.82163
A89: 80 | B89: GODREJCP | C89: 772.4 | D89: 778.00 | E89: 758.40 | F89: 744.40 | G89: 724.80 | H89: 792.00 | I89: 811.60 | J89: 825.60 | K89: 797.6 | L89: 764 | M89: 7.75754
A90: 81 | B90: GODREJIND | C90: 533.4 | D90: 535.58 | E90: 521.57 | F90: 509.73 | G90: 495.72 | H90: 547.42 | I90: 561.43 | J90: 573.27 | K90: 549.6 | L90: 523.75 | M90: 7.28475
A91: 82 | B91: GRUH | C91: 301.8 | D91: 303.80 | E91: 298.00 | F91: 294.20 | G91: 288.40 | H91: 307.60 | I91: 313.40 | J91: 317.20 | K91: 309.6 | L91: 300 | M91: 5.70802
A92: 83 | B92: GPPL | C92: 101 | D92: 101.28 | E92: 99.97 | F92: 98.93 | G92: 97.62 | H92: 102.32 | I92: 103.63 | J92: 104.67 | K92: 102.6 | L92: 100.25 | M92: 0.23169
A93: 84 | B93: GSPL | C93: 184.45 | D93: 183.47 | E93: 181.13 | F93: 177.82 | G93: 175.48 | H93: 186.78 | I93: 189.12 | J93: 192.43 | K93: 185.8 | L93: 180.15 | M93: 1.81159
A94: 85 | B94: HCLTECH | C94: 1090.15 | D94: 1098.72 | E94: 1076.58 | F94: 1063.02 | G94: 1040.88 | H94: 1112.28 | I94: 1134.42 | J94: 1147.98 | K94: 1120.85 | L94: 1085.15 | M94: 14.35197
A95: 86 | B95: HDFCBANK | C95: 1968.2 | D95: 1967.17 | E95: 1956.33 | F95: 1944.47 | G95: 1933.63 | H95: 1979.03 | I95: 1989.87 | J95: 2001.73 | K95: 1978 | L95: 1955.3 | M95: 36.81681
A96: 87 | B96: HAVELLS | C96: 646.5 | D96: 638.60 | E96: 628.15 | F96: 609.80 | G96: 599.35 | H96: 656.95 | I96: 667.40 | J96: 685.75 | K96: 649.05 | L96: 620.25 | M96: 10.27745
A97: 88 | B97: HEROMOTOCO | C97: 3100.05 | D97: 3108.92 | E97: 3077.83 | F97: 3055.62 | G97: 3024.53 | H97: 3131.13 | I97: 3162.22 | J97: 3184.43 | K97: 3140 | L97: 3086.7 | M97: 3.57504
A98: 89 | B98: HEXAWARE | C98: 435.85 | D98: 433.92 | E98: 419.93 | F98: 404.02 | G98: 390.03 | H98: 449.83 | I98: 463.82 | J98: 479.73 | K98: 447.9 | L98: 418 | M98: 18.73072
A99: 90 | B99: HINDALCO | C99: 247.95 | D99: 246.57 | E99: 242.78 | F99: 237.62 | G99: 233.83 | H99: 251.73 | I99: 255.52 | J99: 260.68 | K99: 250.35 | L99: 241.4 | M99: 119.35712
A100: 91 | B100: HINDPETRO | C100: 248 | D100: 246.15 | E100: 243.40 | F100: 238.80 | G100: 236.05 | H100: 250.75 | I100: 253.50 | J100: 258.10 | K100: 248.9 | L100: 241.55 | M100: 68.93813
A101: 92 | B101: HINDUNILVR | C101: 1610.75 | D101: 1619.25 | E101: 1589.50 | F101: 1568.25 | G101: 1538.50 | H101: 1640.50 | I101: 1670.25 | J101: 1691.50 | K101: 1649 | L101: 1598 | M101: 9.80726
A102: 93 | B102: HINDZINC | C102: 306.8 | D102: 305.43 | E102: 301.67 | F102: 296.53 | G102: 292.77 | H102: 310.57 | I102: 314.33 | J102: 319.47 | K102: 309.2 | L102: 300.3 | M102: 21.47804
A103: 94 | B103: HUDCO | C103: 51.05 | D103: 51.07 | E103: 50.53 | F103: 50.02 | G103: 49.48 | H103: 51.58 | I103: 52.12 | J103: 52.63 | K103: 51.6 | L103: 50.55 | M103: 5.97938
A104: 95 | B104: HDFC | C104: 1767.45 | D104: 1776.62 | E104: 1746.93 | F104: 1726.42 | G104: 1696.73 | H104: 1797.13 | I104: 1826.82 | J104: 1847.33 | K104: 1806.3 | L104: 1756.1 | M104: 40.44415
A105: 96 | B105: ITC | C105: 293.15 | D105: 295.30 | E105: 287.60 | F105: 282.05 | G105: 274.35 | H105: 300.85 | I105: 308.55 | J105: 314.10 | K105: 303 | L105: 289.75 | M105: 198.91787
A106: 97 | B106: ICICIBANK | C106: 313.1 | D106: 311.17 | E106: 307.03 | F106: 300.97 | G106: 296.83 | H106: 317.23 | I106: 321.37 | J106: 327.43 | K106: 315.3 | L106: 305.1 | M106: 232.24979
A107: 98 | B107: ICICIPRULI | C107: 343.65 | D107: 344.58 | E107: 339.17 | F107: 334.68 | G107: 329.27 | H107: 349.07 | I107: 354.48 | J107: 358.97 | K107: 350 | L107: 340.1 | M107: 14.40663
A108: 99 | B108: IDBI | C108: 52.5 | D108: 52.33 | E108: 51.52 | F108: 50.53 | G108: 49.72 | H108: 53.32 | I108: 54.13 | J108: 55.12 | K108: 53.15 | L108: 51.35 | M108: 65.51375
A109: 100 | B109: IDFCBANK | C109: 38.25 | D109: 38.27 | E109: 37.63 | F109: 37.02 | G109: 36.38 | H109: 38.88 | I109: 39.52 | J109: 40.13 | K109: 38.9 | L109: 37.65 | M109: 86.22751
A110: 101 | B110: IDFC | C110: 42.4 | D110: 42.13 | E110: 41.47 | F110: 40.53 | G110: 39.87 | H110: 43.07 | I110: 43.73 | J110: 44.67 | K110: 42.8 | L110: 41.2 | M110: 23.92382
A111: 102 | B111: IRB | C111: 141.35 | D111: 140.15 | E111: 137.45 | F111: 133.55 | G111: 130.85 | H111: 144.05 | I111: 146.75 | J111: 150.65 | K111: 142.85 | L111: 136.25 | M111: 31.14292
A112: 103 | B112: IDEA | C112: 41.45 | D112: 41.15 | E112: 40.50 | F112: 39.55 | G112: 38.90 | H112: 42.10 | I112: 42.75 | J112: 43.70 | K112: 41.8 | L112: 40.2 | M112: 180.00078
A113: 104 | B113: IBULHSGFIN | C113: 999.8 | D113: 984.13 | E113: 945.67 | F113: 891.53 | G113: 853.07 | H113: 1038.27 | I113: 1076.73 | J113: 1130.87 | K113: 1022.6 | L113: 930 | M113: 138.34876
A114: 105 | B114: INDIANB | C114: 239.2 | D114: 239.15 | E114: 234.65 | F114: 230.10 | G114: 225.60 | H114: 243.70 | I114: 248.20 | J114: 252.75 | K114: 243.65 | L114: 234.6 | M114: 22.74244
A115: 106 | B115: INDHOTEL | C115: 126.2 | D115: 125.77 | E115: 124.58 | F115: 122.97 | G115: 121.78 | H115: 127.38 | I115: 128.57 | J115: 130.18 | K115: 126.95 | L115: 124.15 | M115: 6.04045
A116: 107 | B116: IOC | C116: 154.45 | D116: 154.32 | E116: 152.43 | F116: 150.42 | G116: 148.53 | H116: 156.33 | I116: 158.22 | J116: 160.23 | K116: 156.2 | L116: 152.3 | M116: 47.95841
A117: 108 | B117: IGL | C117: 267.75 | D117: 268.12 | E117: 261.33 | F117: 254.92 | G117: 248.13 | H117: 274.53 | I117: 281.32 | J117: 287.73 | K117: 274.9 | L117: 261.7 | M117: 34.03589
A118: 109 | B118: INDUSINDBK | C118: 1701.8 | D118: 1697.93 | E118: 1683.37 | F118: 1664.93 | G118: 1650.37 | H118: 1716.37 | I118: 1730.93 | J118: 1749.37 | K118: 1712.5 | L118: 1679.5 | M118: 29.14677
A119: 110 | B119: NAUKRI | C119: 1523.3 | D119: 1525.70 | E119: 1501.60 | F119: 1479.90 | G119: 1455.80 | H119: 1547.40 | I119: 1571.50 | J119: 1593.20 | K119: 1549.8 | L119: 1504 | M119: 0.42938
A120: 111 | B120: INFY | C120: 717.85 | D120: 720.57 | E120: 709.28 | F120: 700.72 | G120: 689.43 | H120: 729.13 | I120: 740.42 | J120: 748.98 | K120: 731.85 | L120: 712 | M120: 65.99606
A121: 112 | B121: INDIGO | C121: 853.2 | D121: 849.30 | E121: 839.60 | F121: 826.00 | G121: 816.30 | H121: 862.90 | I121: 872.60 | J121: 886.20 | K121: 859 | L121: 835.7 | M121: 4.93987
A122: 113 | B122: IPCALAB | C122: 698.25 | D122: 693.90 | E122: 684.80 | F122: 671.35 | G122: 662.25 | H122: 707.35 | I122: 716.45 | J122: 729.90 | K122: 703 | L122: 680.45 | M122: 7.41194
A123: 114 | B123: JSWENERGY | C123: 62.9 | D123: 63.77 | E123: 61.63 | F123: 60.37 | G123: 58.23 | H123: 65.03 | I123: 67.17 | J123: 68.43 | K123: 65.9 | L123: 62.5 | M123: 28.65975
A124: 115 | B124: JSWSTEEL | C124: 408.1 | D124: 406.95 | E124: 402.15 | F124: 396.20 | G124: 391.40 | H124: 412.90 | I124: 417.70 | J124: 423.65 | K124: 411.75 | L124: 401 | M124: 33.17487
A125: 116 | B125: JINDALSTEL | C125: 230.8 | D125: 229.18 | E125: 225.07 | F125: 219.33 | G125: 215.22 | H125: 234.92 | I125: 239.03 | J125: 244.77 | K125: 233.3 | L125: 223.45 | M125: 101.64843
A126: 117 | B126: JUBLFOOD | C126: 1292 | D126: 1287.02 | E126: 1267.63 | F126: 1243.27 | G126: 1223.88 | H126: 1311.38 | I126: 1330.77 | J126: 1355.13 | K126: 1306.4 | L126: 1262.65 | M126: 12.22852
A127: 118 | B127: JUBILANT | C127: 760.3 | D127: 758.43 | E127: 751.87 | F127: 743.43 | G127: 736.87 | H127: 766.87 | I127: 773.43 | J127: 781.87 | K127: 765 | L127: 750 | M127: 3.32566
A128: 119 | B128: KARURVYSYA | C128: 81.35 | D128: 81.92 | E128: 80.53 | F128: 79.72 | G128: 78.33 | H128: 82.73 | I128: 84.12 | J128: 84.93 | K128: 83.3 | L128: 81.1 | M128: 17.17332
A129: 120 | B129: KOTAKBANK | C129: 1169.4 | D129: 1173.12 | E129: 1157.58 | F129: 1145.77 | G129: 1130.23 | H129: 1184.93 | I129: 1200.47 | J129: 1212.28 | K129: 1188.65 | L129: 1161.3 | M129: 24.46177
A130: 121 | B130: L&TFH | C130: 132.15 | D130: 132.80 | E130: 128.45 | F130: 124.75 | G130: 120.40 | H130: 136.50 | I130: 140.85 | J130: 144.55 | K130: 137.15 | L130: 129.1 | M130: 143.32293
A131: 122 | B131: LICHSGFIN | C131: 433 | D131: 435.53 | E131: 427.07 | F131: 421.13 | G131: 412.67 | H131: 441.47 | I131: 449.93 | J131: 455.87 | K131: 444 | L131: 429.6 | M131: 17.52049
A132: 123 | B132: LT | C132: 1332.65 | D132: 1326.15 | E132: 1315.50 | F132: 1298.35 | G132: 1287.70 | H132: 1343.30 | I132: 1353.95 | J132: 1371.10 | K132: 1336.8 | L132: 1309 | M132: 28.46089
A133: 124 | B133: LUPIN | C133: 891.75 | D133: 895.88 | E133: 881.77 | F133: 871.78 | G133: 857.67 | H133: 905.87 | I133: 919.98 | J133: 929.97 | K133: 910 | L133: 885.9 | M133: 27.62045
A134: 125 | B134: MRF | C134: 66318.55 | D134: 66368.85 | E134: 65749.70 | F134: 65180.85 | G134: 64561.70 | H134: 66937.70 | I134: 67556.85 | J134: 68125.70 | K134: 66988 | L134: 65800 | M134: 0.04318
A135: 126 | B135: MGL | C135: 831 | D135: 828.83 | E135: 819.77 | F135: 808.53 | G135: 799.47 | H135: 840.07 | I135: 849.13 | J135: 860.37 | K135: 837.9 | L135: 817.6 | M135: 2.57466
A136: 127 | B136: M&MFIN | C136: 421.9 | D136: 421.72 | E136: 413.43 | F136: 404.97 | G136: 396.68 | H136: 430.18 | I136: 438.47 | J136: 446.93 | K136: 430 | L136: 413.25 | M136: 19.50583
A137: 128 | B137: M&M | C137: 893.35 | D137: 898.83 | E137: 879.82 | F137: 866.28 | G137: 847.27 | H137: 912.37 | I137: 931.38 | J137: 944.92 | K137: 917.85 | L137: 885.3 | M137: 23.57565
A138: 129 | B138: MANAPPURAM | C138: 79.5 | D138: 79.17 | E138: 78.38 | F138: 77.27 | G138: 76.48 | H138: 80.28 | I138: 81.07 | J138: 82.18 | K138: 79.95 | L138: 78.05 | M138: 23.48101
A139: 130 | B139: MRPL | C139: 75.1 | D139: 74.47 | E139: 73.18 | F139: 71.27 | G139: 69.98 | H139: 76.38 | I139: 77.67 | J139: 79.58 | K139: 75.75 | L139: 72.55 | M139: 12.80041
A140: 131 | B140: MARICO | C140: 339.7 | D140: 340.02 | E140: 333.38 | F140: 327.07 | G140: 320.43 | H140: 346.33 | I140: 352.97 | J140: 359.28 | K140: 346.65 | L140: 333.7 | M140: 26.38508
A141: 132 | B141: MARUTI | C141: 7842.55 | D141: 7918.33 | E141: 7746.77 | F141: 7650.98 | G141: 7479.42 | H141: 8014.12 | I141: 8185.68 | J141: 8281.47 | K141: 8089.9 | L141: 7822.55 | M141: 7.54963
A142: 133 | B142: MFSL | C142: 443.15 | D142: 448.63 | E142: 432.02 | F142: 420.88 | G142: 404.27 | H142: 459.77 | I142: 476.38 | J142: 487.52 | K142: 465.25 | L142: 437.5 | M142: 6.50655
A143: 134 | B143: MINDTREE | C143: 1073.6 | D143: 1069.72 | E143: 1044.43 | F143: 1015.27 | G143: 989.98 | H143: 1098.88 | I143: 1124.17 | J143: 1153.33 | K143: 1095 | L143: 1040.55 | M143: 9.98236
A144: 135 | B144: MOTHERSUMI | C144: 257.9 | D144: 256.45 | E144: 245.60 | F144: 233.30 | G144: 222.45 | H144: 268.75 | I144: 279.60 | J144: 291.90 | K144: 267.3 | L144: 244.15 | M144: 118.0392
A145: 136 | B145: MPHASIS | C145: 1180.45 | D145: 1183.47 | E145: 1168.23 | F145: 1156.02 | G145: 1140.78 | H145: 1195.68 | I145: 1210.92 | J145: 1223.13 | K145: 1198.7 | L145: 1171.25 | M145: 4.23917
A146: 137 | B146: MUTHOOTFIN | C146: 432.7 | D146: 428.43 | E146: 419.27 | F146: 405.83 | G146: 396.67 | H146: 441.87 | I146: 451.03 | J146: 464.47 | K146: 437.6 | L146: 415 | M146: 12.3489
A147: 138 | B147: NATCOPHARM | C147: 768.2 | D147: 768.48 | E147: 753.97 | F147: 739.73 | G147: 725.22 | H147: 782.72 | I147: 797.23 | J147: 811.47 | K147: 783 | L147: 754.25 | M147: 4.58261
A148: 139 | B148: NBCC | C148: 64.1 | D148: 64.10 | E148: 63.40 | F148: 62.70 | G148: 62.00 | H148: 64.80 | I148: 65.50 | J148: 66.20 | K148: 64.8 | L148: 63.4 | M148: 22.16198
A149: 140 | B149: NHPC | C149: 23.45 | D149: 23.45 | E149: 23.30 | F149: 23.15 | G149: 23.00 | H149: 23.60 | I149: 23.75 | J149: 23.90 | K149: 23.6 | L149: 23.3 | M149: 19.30273
A150: 141 | B150: NMDC | C150: 117.25 | D150: 115.88 | E150: 113.87 | F150: 110.48 | G150: 108.47 | H150: 119.27 | I150: 121.28 | J150: 124.67 | K150: 117.9 | L150: 112.5 | M150: 36.56302
A151: 142 | B151: NTPC | C151: 167.8 | D151: 168.47 | E151: 165.33 | F151: 162.87 | G151: 159.73 | H151: 170.93 | I151: 174.07 | J151: 176.53 | K151: 171.6 | L151: 166 | M151: 29.93241
A152: 143 | B152: NATIONALUM | C152: 66.75 | D152: 66.98 | E152: 65.97 | F152: 65.18 | G152: 64.17 | H152: 67.77 | I152: 68.78 | J152: 69.57 | K152: 68 | L152: 66.2 | M152: 111.19128
A153: 144 | B153: OBEROIRLTY | C153: 416.8 | D153: 414.48 | E153: 404.17 | F153: 391.53 | G153: 381.22 | H153: 427.12 | I153: 437.43 | J153: 450.07 | K153: 424.8 | L153: 401.85 | M153: 2.97992
A154: 145 | B154: ONGC | C154: 180.6 | D154: 181.45 | E154: 178.10 | F154: 175.60 | G154: 172.25 | H154: 183.95 | I154: 187.30 | J154: 189.80 | K154: 184.8 | L154: 178.95 | M154: 66.80285
A155: 146 | B155: OIL | C155: 218.4 | D155: 219.65 | E155: 214.30 | F155: 210.20 | G155: 204.85 | H155: 223.75 | I155: 229.10 | J155: 233.20 | K155: 225 | L155: 215.55 | M155: 8.70725
A156: 147 | B156: OFSS | C156: 3960.65 | D156: 4000.52 | E156: 3860.43 | F156: 3760.22 | G156: 3620.13 | H156: 4100.73 | I156: 4240.82 | J156: 4341.03 | K156: 4140.6 | L156: 3900.3 | M156: 0.54707
A157: 148 | B157: PCJEWELLER | C157: 69.75 | D157: 70.23 | E157: 68.52 | F157: 67.28 | G157: 65.57 | H157: 71.47 | I157: 73.18 | J157: 74.42 | K157: 71.95 | L157: 69 | M157: 64.5891
A158: 149 | B158: PIIND | C158: 751.05 | D158: 753.20 | E158: 747.85 | F158: 744.65 | G158: 739.30 | H158: 756.40 | I158: 761.75 | J158: 764.95 | K158: 758.55 | L158: 750 | M158: 0.38819
A159: 150 | B159: PNBHOUSING | C159: 995.65 | D159: 1021.82 | E159: 960.83 | F159: 926.02 | G159: 865.03 | H159: 1056.63 | I159: 1117.62 | J159: 1152.43 | K159: 1082.8 | L159: 987 | M159: 6.79338
A160: 151 | B160: PAGEIND | C160: 32811.9 | D160: 32775.82 | E160: 32288.08 | F160: 31764.27 | G160: 31276.53 | H160: 33299.63 | I160: 33787.37 | J160: 34311.18 | K160: 33263.55 | L160: 32252 | M160: 0.2064
A161: 152 | B161: PETRONET | C161: 224.95 | D161: 222.88 | E161: 219.57 | F161: 214.18 | G161: 210.87 | H161: 228.27 | I161: 231.58 | J161: 236.97 | K161: 226.2 | L161: 217.5 | M161: 24.81932
A162: 153 | B162: PIDILITIND | C162: 1076.1 | D162: 1087.02 | E162: 1058.03 | F162: 1039.97 | G162: 1010.98 | H162: 1105.08 | I162: 1134.07 | J162: 1152.13 | K162: 1116 | L162: 1068.95 | M162: 4.66939
A163: 154 | B163: PEL | C163: 2534.85 | D163: 2542.45 | E163: 2501.60 | F163: 2468.35 | G163: 2427.50 | H163: 2575.70 | I163: 2616.55 | J163: 2649.80 | K163: 2583.3 | L163: 2509.2 | M163: 4.73234
A164: 155 | B164: PFC | C164: 82.8 | D164: 82.20 | E164: 81.20 | F164: 79.60 | G164: 78.60 | H164: 83.80 | I164: 84.80 | J164: 86.40 | K164: 83.2 | L164: 80.6 | M164: 85.9865
A165: 156 | B165: POWERGRID | C165: 192.85 | D165: 191.68 | E165: 189.37 | F165: 185.88 | G165: 183.57 | H165: 195.17 | I165: 197.48 | J165: 200.97 | K165: 194 | L165: 188.2 | M165: 40.98766
A166: 157 | B166: PRESTIGE | C166: 219.5 | D166: 216.83 | E166: 208.87 | F166: 198.23 | G166: 190.27 | H166: 227.47 | I166: 235.43 | J166: 246.07 | K166: 224.8 | L166: 206.2 | M166: 1.03129
A167: 158 | B167: PGHH | C167: 9524.75 | D167: 9587.72 | E167: 9437.03 | F167: 9349.32 | G167: 9198.63 | H167: 9675.43 | I167: 9826.12 | J167: 9913.83 | K167: 9738.4 | L167: 9500 | M167: 0.08096
A168: 159 | B168: PNB | C168: 67.05 | D168: 67.50 | E168: 65.80 | F168: 64.55 | G168: 62.85 | H168: 68.75 | I168: 70.45 | J168: 71.70 | K168: 69.2 | L168: 66.25 | M168: 431.52887
A169: 160 | B169: RBLBANK | C169: 536.25 | D169: 531.23 | E169: 524.07 | F169: 511.88 | G169: 504.72 | H169: 543.42 | I169: 550.58 | J169: 562.77 | K169: 538.4 | L169: 519.05 | M169: 14.15243
A170: 161 | B170: RAJESHEXPO | C170: 751.6 | D170: 757.03 | E170: 741.07 | F170: 730.53 | G170: 714.57 | H170: 767.57 | I170: 783.53 | J170: 794.07 | K170: 773 | L170: 746.5 | M170: 2.51433
A171: 162 | B171: RELCAPITAL | C171: 317.95 | D171: 317.67 | E171: 311.48 | F171: 305.02 | G171: 298.83 | H171: 324.13 | I171: 330.32 | J171: 336.78 | K171: 323.85 | L171: 311.2 | M171: 71.92034
A172: 163 | B172: RCOM | C172: 12.9 | D172: 12.53 | E172: 11.87 | F172: 10.83 | G172: 10.17 | H172: 13.57 | I172: 14.23 | J172: 15.27 | K172: 13.2 | L172: 11.5 | M172: 1038.95838
A173: 164 | B173: RELIANCE | C173: 1251.4 | D173: 1244.17 | E173: 1234.38 | F173: 1217.37 | G173: 1207.58 | H173: 1261.18 | I173: 1270.97 | J173: 1287.98 | K173: 1253.95 | L173: 1227.15 | M173: 63.96828
A174: 165 | B174: RELINFRA | C174: 321.15 | D174: 320.08 | E174: 313.77 | F174: 306.38 | G174: 300.07 | H174: 327.47 | I174: 333.78 | J174: 341.17 | K174: 326.4 | L174: 312.7 | M174: 42.73637
A175: 166 | B175: RPOWER | C175: 27.25 | D175: 27.23 | E175: 26.67 | F175: 26.08 | G175: 25.52 | H175: 27.82 | I175: 28.38 | J175: 28.97 | K175: 27.8 | L175: 26.65 | M175: 76.52068
A176: 167 | B176: RECLTD | C176: 102.25 | D176: 101.47 | E176: 100.13 | F176: 98.02 | G176: 96.68 | H176: 103.58 | I176: 104.92 | J176: 107.03 | K176: 102.8 | L176: 99.35 | M176: 67.52768
A177: 168 | B177: SRF | C177: 1888.9 | D177: 1901.33 | E177: 1868.67 | F177: 1848.43 | G177: 1815.77 | H177: 1921.57 | I177: 1954.23 | J177: 1974.47 | K177: 1934 | L177: 1881.1 | M177: 2.04461
A178: 169 | B178: SHREECEM | C178: 17442.25 | D178: 17250.73 | E178: 16994.97 | F178: 16547.68 | G178: 16291.92 | H178: 17698.02 | I178: 17953.78 | J178: 18401.07 | K178: 17506.5 | L178: 16803.45 | M178: 0.13124
A179: 170 | B179: SRTRANSFIN | C179: 1188.95 | D179: 1184.78 | E179: 1164.67 | F179: 1140.38 | G179: 1120.27 | H179: 1209.07 | I179: 1229.18 | J179: 1253.47 | K179: 1204.9 | L179: 1160.5 | M179: 5.99156
A180: 171 | B180: SIEMENS | C180: 945.7 | D180: 940.47 | E180: 929.23 | F180: 912.77 | G180: 901.53 | H180: 956.93 | I180: 968.17 | J180: 984.63 | K180: 951.7 | L180: 924 | M180: 1.8475
A181: 172 | B181: SBIN | C181: 263.85 | D181: 266.87 | E181: 259.73 | F181: 255.62 | G181: 248.48 | H181: 270.98 | I181: 278.12 | J181: 282.23 | K181: 274 | L181: 262.75 | M181: 239.51904
A182: 173 | B182: SAIL | C182: 76.2 | D182: 76.03 | E182: 75.02 | F182: 73.83 | G182: 72.82 | H182: 77.22 | I182: 78.23 | J182: 79.42 | K182: 77.05 | L182: 74.85 | M182: 94.48536
A183: 174 | B183: SPARC | C183: 357.25 | D183: 359.42 | E183: 353.18 | F183: 349.12 | G183: 342.88 | H183: 363.48 | I183: 369.72 | J183: 373.78 | K183: 365.65 | L183: 355.35 | M183: 1.66762
A184: 175 | B184: SUNPHARMA | C184: 639.85 | D184: 640.73 | E184: 631.67 | F184: 623.48 | G184: 614.42 | H184: 648.92 | I184: 657.98 | J184: 666.17 | K184: 649.8 | L184: 632.55 | M184: 48.50782
A185: 176 | B185: SUNTV | C185: 635 | D185: 641.12 | E185: 626.73 | F185: 618.47 | G185: 604.08 | H185: 649.38 | I185: 663.77 | J185: 672.03 | K185: 655.5 | L185: 632.85 | M185: 11.98987
A186: 177 | B186: SUZLON | C186: 6.2 | D186: 6.18 | E186: 5.97 | F186: 5.73 | G186: 5.52 | H186: 6.42 | I186: 6.63 | J186: 6.87 | K186: 6.4 | L186: 5.95 | M186: 430.78298
A187: 178 | B187: SYNDIBANK | C187: 33.35 | D187: 33.40 | E187: 32.80 | F187: 32.25 | G187: 31.65 | H187: 33.95 | I187: 34.55 | J187: 35.10 | K187: 34 | L187: 32.85 | M187: 37.13734
A188: 179 | B188: SYNGENE | C188: 623.8 | D188: 625.33 | E188: 615.67 | F188: 607.53 | G188: 597.87 | H188: 633.47 | I188: 643.13 | J188: 651.27 | K188: 635 | L188: 617.2 | M188: 0.3244
A189: 180 | B189: TV18BRDCST | C189: 37.65 | D189: 37.95 | E189: 36.70 | F189: 35.75 | G189: 34.50 | H189: 38.90 | I189: 40.15 | J189: 41.10 | K189: 39.2 | L189: 37 | M189: 41.90583
A190: 181 | B190: TVSMOTOR | C190: 584.35 | D190: 585.48 | E190: 576.97 | F190: 569.58 | G190: 561.07 | H190: 592.87 | I190: 601.38 | J190: 608.77 | K190: 594 | L190: 578.1 | M190: 12.76937
A191: 182 | B191: TATACHEM | C191: 699 | D191: 702.38 | E191: 691.82 | F191: 684.63 | G191: 674.07 | H191: 709.57 | I191: 720.13 | J191: 727.32 | K191: 712.95 | L191: 695.2 | M191: 2.96103
A192: 183 | B192: TATACOMM | C192: 510.3 | D192: 509.30 | E192: 501.50 | F192: 492.70 | G192: 484.90 | H192: 518.10 | I192: 525.90 | J192: 534.70 | K192: 517.1 | L192: 500.5 | M192: 3.70593
A193: 184 | B193: TCS | C193: 2142.15 | D193: 2158.75 | E193: 2118.50 | F193: 2094.85 | G193: 2054.60 | H193: 2182.40 | I193: 2222.65 | J193: 2246.30 | K193: 2199 | L193: 2135.1 | M193: 19.70951
A194: 185 | B194: TATAGLOBAL | C194: 234.25 | D194: 235.58 | E194: 231.17 | F194: 228.08 | G194: 223.67 | H194: 238.67 | I194: 243.08 | J194: 246.17 | K194: 240 | L194: 232.5 | M194: 22.40909
A195: 186 | B195: TATAMTRDVR | C195: 123.05 | D195: 124.60 | E195: 120.60 | F195: 118.15 | G195: 114.15 | H195: 127.05 | I195: 131.05 | J195: 133.50 | K195: 128.6 | L195: 122.15 | M195: 37.02476
A196: 187 | B196: TATAMOTORS | C196: 233.35 | D196: 235.37 | E196: 227.53 | F196: 221.72 | G196: 213.88 | H196: 241.18 | I196: 249.02 | J196: 254.83 | K196: 243.2 | L196: 229.55 | M196: 178.10869
A197: 188 | B197: TATAPOWER | C197: 70.25 | D197: 70.03 | E197: 69.12 | F197: 67.98 | G197: 67.07 | H197: 71.17 | I197: 72.08 | J197: 73.22 | K197: 70.95 | L197: 68.9 | M197: 32.73684
A198: 189 | B198: TATASTEEL | C198: 608.9 | D198: 607.02 | E198: 599.88 | F198: 590.87 | G198: 583.73 | H198: 616.03 | I198: 623.17 | J198: 632.18 | K198: 614.15 | L198: 598 | M198: 86.4772
A199: 190 | B199: TECHM | C199: 748.85 | D199: 752.02 | E199: 735.88 | F199: 722.92 | G199: 706.78 | H199: 764.98 | I199: 781.12 | J199: 794.08 | K199: 768.15 | L199: 739.05 | M199: 32.24771
A200: 191 | B200: RAMCOCEM | C200: 654.35 | D200: 651.98 | E200: 641.97 | F200: 629.58 | G200: 619.57 | H200: 664.37 | I200: 674.38 | J200: 686.77 | K200: 662 | L200: 639.6 | M200: 2.01591
A201: 192 | B201: TITAN | C201: 814.7 | D201: 812.28 | E201: 804.57 | F201: 794.43 | G201: 786.72 | H201: 822.42 | I201: 830.13 | J201: 840.27 | K201: 820 | L201: 802.15 | M201: 40.80359
A202: 193 | B202: TORNTPHARM | C202: 1704.9 | D202: 1718.00 | E202: 1687.90 | F202: 1670.90 | G202: 1640.80 | H202: 1735.00 | I202: 1765.10 | J202: 1782.10 | K202: 1748.1 | L202: 1701 | M202: 1.92584
A203: 194 | B203: TORNTPOWER | C203: 229.55 | D203: 227.62 | E203: 224.23 | F203: 218.92 | G203: 215.53 | H203: 232.93 | I203: 236.32 | J203: 241.63 | K203: 231 | L203: 222.3 | M203: 8.85761
A204: 195 | B204: UPL | C204: 697.55 | D204: 685.43 | E204: 665.87 | F204: 634.18 | G204: 614.62 | H204: 717.12 | I204: 736.68 | J204: 768.37 | K204: 705 | L204: 653.75 | M204: 38.30064
A205: 196 | B205: ULTRACEMCO | C205: 4067.55 | D205: 4064.90 | E205: 4027.45 | F205: 3987.35 | G205: 3949.90 | H205: 4105.00 | I205: 4142.45 | J205: 4182.55 | K205: 4102.35 | L205: 4024.8 | M205: 2.83138
... 30 more rows

Sheet MidCap Intra
L5: Back To Main Page
A6: FOR INTRA DAY TRADING | K6: =Main!B10 -> 2018-09-27
A9: Sr.no | B9: Scrip | C9: CLOSE RATE | D9: Pivot Point | E9: Supports | H9: Resistances
C10: Point | E10: S1 | F10: S2 | G10: S3 | H10: R1 | I10: R2 | J10: R3 | K10: HIGH | L10: LOW | M10: Total Trade Quanity in Lakhs
A11: 1 | B11: 3MINDIA | C11: 22879.1 | D11: 23112.63 | E11: 22568.57 | F11: 22258.03 | G11: 21713.97 | H11: 23423.17 | I11: 23967.23 | J11: 24277.77 | K11: 23656.7 | L11: 22802.1 | M11: 0.01343
A12: 2 | B12: 8KMILES | C12: 211.95 | D12: 211.95 | E12: 211.95 | F12: 211.95 | G12: 211.95 | H12: 211.95 | I12: 211.95 | J12: 211.95 | K12: 211.95 | L12: 211.95 | M12: 0.16759
A13: 3 | B13: AARTIIND | C13: 1198.45 | D13: 1211.47 | E13: 1173.23 | F13: 1148.02 | G13: 1109.78 | H13: 1236.68 | I13: 1274.92 | J13: 1300.13 | K13: 1249.7 | L13: 1186.25 | M13: 0.41142
A14: 4 | B14: ABAN | C14: 88.2 | D14: 89.13 | E14: 86.27 | F14: 84.33 | G14: 81.47 | H14: 91.07 | I14: 93.93 | J14: 95.87 | K14: 92 | L14: 87.2 | M14: 5.38214
A15: 5 | B15: ABB | C15: 1436 | D15: 1441.88 | E15: 1413.77 | F15: 1391.53 | G15: 1363.42 | H15: 1464.12 | I15: 1492.23 | J15: 1514.47 | K15: 1470 | L15: 1419.65 | M15: 1.06689
A16: 6 | B16: ABCAPITAL | C16: 119.45 | D16: 119.73 | E16: 117.97 | F16: 116.48 | G16: 114.72 | H16: 121.22 | I16: 122.98 | J16: 124.47 | K16: 121.5 | L16: 118.25 | M16: 11.46982
A17: 7 | B17: ABFRL | C17: 184.4 | D17: 184.17 | E17: 180.33 | F17: 176.27 | G17: 172.43 | H17: 188.23 | I17: 192.07 | J17: 196.13 | K17: 188 | L17: 180.1 | M17: 3.45016
A18: 8 | B18: ACC | C18: 1582.15 | D18: 1574.75 | E18: 1557.40 | F18: 1532.65 | G18: 1515.30 | H18: 1599.50 | I18: 1616.85 | J18: 1641.60 | K18: 1592.1 | L18: 1550 | M18: 5.89965
A19: 9 | B19: ADANIPORTS | C19: 338.55 | D19: 338.02 | E19: 331.13 | F19: 323.72 | G19: 316.83 | H19: 345.43 | I19: 352.32 | J19: 359.73 | K19: 344.9 | L19: 330.6 | M19: 34.24347
A20: 10 | B20: ADANIPOWER | C20: 26 | D20: 25.77 | E20: 24.93 | F20: 23.87 | G20: 23.03 | H20: 26.83 | I20: 27.67 | J20: 28.73 | K20: 26.6 | L20: 24.7 | M20: 190.3463
A21: 11 | B21: ADANITRANS | C21: 172.45 | D21: 171.47 | E21: 168.13 | F21: 163.82 | G21: 160.48 | H21: 175.78 | I21: 179.12 | J21: 183.43 | K21: 174.8 | L21: 167.15 | M21: 3.06381
A22: 12 | B22: ADVENZYMES | C22: 194.65 | D22: 196.83 | E22: 191.82 | F22: 188.98 | G22: 183.97 | H22: 199.67 | I22: 204.68 | J22: 207.52 | K22: 201.85 | L22: 194 | M22: 0.9811
A23: 13 | B23: AEGISCHEM | C23: 199.75 | D23: 200.45 | E23: 195.30 | F23: 190.85 | G23: 185.70 | H23: 204.90 | I23: 210.05 | J23: 214.50 | K23: 205.6 | L23: 196 | M23: 1.36121
A24: 14 | B24: AIAENG | C24: 1763.35 | D24: 1763.12 | E24: 1737.23 | F24: 1711.12 | G24: 1685.23 | H24: 1789.23 | I24: 1815.12 | J24: 1841.23 | K24: 1789 | L24: 1737 | M24: 0.15336
A25: 15 | B25: AJANTPHARM | C25: 1114.45 | D25: 1113.00 | E25: 1095.00 | F25: 1075.55 | G25: 1057.55 | H25: 1132.45 | I25: 1150.45 | J25: 1169.90 | K25: 1131 | L25: 1093.55 | M25: 2.75687
A26: 16 | B26: AKZOINDIA | C26: 1635.65 | D26: 1636.20 | E26: 1616.40 | F26: 1597.15 | G26: 1577.35 | H26: 1655.45 | I26: 1675.25 | J26: 1694.50 | K26: 1656 | L26: 1616.95 | M26: 0.02887
A27: 17 | B27: ALBK | C27: 37.35 | D27: 37.55 | E27: 36.90 | F27: 36.45 | G27: 35.80 | H27: 38.00 | I27: 38.65 | J27: 39.10 | K27: 38.2 | L27: 37.1 | M27: 40.42749
A28: 18 | B28: ALKEM | C28: 2069 | D28: 2069.85 | E28: 2042.15 | F28: 2015.30 | G28: 1987.60 | H28: 2096.70 | I28: 2124.40 | J28: 2151.25 | K28: 2097.55 | L28: 2043 | M28: 0.16395
A29: 19 | B29: ALLCARGO | C29: 107.3 | D29: 107.82 | E29: 105.78 | F29: 104.27 | G29: 102.23 | H29: 109.33 | I29: 111.37 | J29: 112.88 | K29: 109.85 | L29: 106.3 | M29: 1.8027
A30: 20 | B30: AMARAJABAT | C30: 786.45 | D30: 781.47 | E30: 770.08 | F30: 753.72 | G30: 742.33 | H30: 797.83 | I30: 809.22 | J30: 825.58 | K30: 792.85 | L30: 765.1 | M30: 5.32443
A31: 21 | B31: AMBUJACEM | C31: 226.1 | D31: 226.25 | E31: 223.30 | F31: 220.50 | G31: 217.55 | H31: 229.05 | I31: 232.00 | J31: 234.80 | K31: 229.2 | L31: 223.45 | M31: 24.20982
A32: 22 | B32: ANDHRABANK | C32: 30.25 | D32: 30.07 | E32: 29.23 | F32: 28.22 | G32: 27.38 | H32: 31.08 | I32: 31.92 | J32: 32.93 | K32: 30.9 | L32: 29.05 | M32: 70.95184
A33: 23 | B33: APLAPOLLO | C33: 1396.55 | D33: 1417.18 | E33: 1359.37 | F33: 1322.18 | G33: 1264.37 | H33: 1454.37 | I33: 1512.18 | J33: 1549.37 | K33: 1475 | L33: 1380 | M33: 0.24218
A34: 24 | B34: APLLTD | C34: 649.05 | D34: 648.02 | E34: 637.03 | F34: 625.02 | G34: 614.03 | H34: 660.03 | I34: 671.02 | J34: 683.03 | K34: 659 | L34: 636 | M34: 2.03536
A35: 25 | B35: APOLLOHOSP | C35: 1043.3 | D35: 1045.10 | E35: 1030.20 | F35: 1017.10 | G35: 1002.20 | H35: 1058.20 | I35: 1073.10 | J35: 1086.20 | K35: 1060 | L35: 1032 | M35: 6.68783
A36: 26 | B36: APOLLOTYRE | C36: 228.3 | D36: 229.95 | E36: 224.90 | F36: 221.50 | G36: 216.45 | H36: 233.35 | I36: 238.40 | J36: 241.80 | K36: 235 | L36: 226.55 | M36: 23.97083
A37: 27 | B37: ARVIND | C37: 352.2 | D37: 351.48 | E37: 344.22 | F37: 336.23 | G37: 328.97 | H37: 359.47 | I37: 366.73 | J37: 374.72 | K37: 358.75 | L37: 343.5 | M37: 27.24729
A38: 28 | B38: ASAHIINDIA | C38: 335.95 | D38: 332.82 | E38: 327.63 | F38: 319.32 | G38: 314.13 | H38: 341.13 | I38: 346.32 | J38: 354.63 | K38: 338 | L38: 324.5 | M38: 0.22216
A39: 29 | B39: ASHOKA | C39: 113.9 | D39: 115.00 | E39: 110.00 | F39: 106.10 | G39: 101.10 | H39: 118.90 | I39: 123.90 | J39: 127.80 | K39: 120 | L39: 111.1 | M39: 3.07034
A40: 30 | B40: ASHOKLEY | C40: 120.65 | D40: 121.15 | E40: 119.00 | F40: 117.35 | G40: 115.20 | H40: 122.80 | I40: 124.95 | J40: 126.60 | K40: 123.3 | L40: 119.5 | M40: 110.8233
A41: 31 | B41: ASIANPAINT | C41: 1282 | D41: 1286.50 | E41: 1269.50 | F41: 1257.00 | G41: 1240.00 | H41: 1299.00 | I41: 1316.00 | J41: 1328.50 | K41: 1303.5 | L41: 1274 | M41: 13.38324
A42: 32 | B42: ASTRAL | C42: 989.6 | D42: 1000.63 | E42: 961.27 | F42: 932.93 | G42: 893.57 | H42: 1028.97 | I42: 1068.33 | J42: 1096.67 | K42: 1040 | L42: 972.3 | M42: 0.54413
A43: 33 | B43: ATUL | C43: 3225.5 | D43: 3194.50 | E43: 3131.05 | F43: 3036.60 | G43: 2973.15 | H43: 3288.95 | I43: 3352.40 | J43: 3446.85 | K43: 3257.95 | L43: 3100.05 | M43: 0.10907
A44: 34 | B44: AUBANK | C44: 617.8 | D44: 622.00 | E44: 609.10 | F44: 600.40 | G44: 587.50 | H44: 630.70 | I44: 643.60 | J44: 652.30 | K44: 634.9 | L44: 613.3 | M44: 4.4137
A45: 35 | B45: AUROPHARMA | C45: 759.1 | D45: 766.43 | E45: 747.77 | F45: 736.43 | G45: 717.77 | H45: 777.77 | I45: 796.43 | J45: 807.77 | K45: 785.1 | L45: 755.1 | M45: 49.47221
A46: 36 | B46: AVANTIFEED | C46: 408.9 | D46: 411.08 | E46: 403.82 | F46: 398.73 | G46: 391.47 | H46: 416.17 | I46: 423.43 | J46: 428.52 | K46: 418.35 | L46: 406 | M46: 6.4455
A47: 37 | B47: AXISBANK | C47: 617.45 | D47: 617.95 | E47: 611.55 | F47: 605.65 | G47: 599.25 | H47: 623.85 | I47: 630.25 | J47: 636.15 | K47: 624.35 | L47: 612.05 | M47: 87.25133
A48: 38 | B48: BAJAJ-AUTO | C48: 2773.3 | D48: 2775.22 | E48: 2741.68 | F48: 2710.07 | G48: 2676.53 | H48: 2806.83 | I48: 2840.37 | J48: 2871.98 | K48: 2808.75 | L48: 2743.6 | M48: 4.94874
A49: 39 | B49: BAJAJCORP | C49: 437.65 | D49: 444.88 | E49: 426.77 | F49: 415.88 | G49: 397.77 | H49: 455.77 | I49: 473.88 | J49: 484.77 | K49: 463 | L49: 434 | M49: 0.6224
A50: 40 | B50: BAJAJELEC | C50: 491.9 | D50: 493.85 | E50: 476.70 | F50: 461.50 | G50: 444.35 | H50: 509.05 | I50: 526.20 | J50: 541.40 | K50: 511 | L50: 478.65 | M50: 4.68936
A51: 41 | B51: BAJAJFINSV | C51: 6212.55 | D51: 6229.85 | E51: 6170.70 | F51: 6128.85 | G51: 6069.70 | H51: 6271.70 | I51: 6330.85 | J51: 6372.70 | K51: 6289 | L51: 6188 | M51: 1.64588
A52: 42 | B52: BAJAJHIND | C52: 9.4 | D52: 9.83 | E52: 8.82 | F52: 8.23 | G52: 7.22 | H52: 10.42 | I52: 11.43 | J52: 12.02 | K52: 10.85 | L52: 9.25 | M52: 213.4354
A53: 43 | B53: BAJAJHLDNG | C53: 3095.85 | D53: 3075.23 | E53: 3040.62 | F53: 2985.38 | G53: 2950.77 | H53: 3130.47 | I53: 3165.08 | J53: 3220.32 | K53: 3109.85 | L53: 3020 | M53: 0.35026
A54: 44 | B54: BAJFINANCE | C54: 2315.55 | D54: 2321.53 | E54: 2289.12 | F54: 2262.68 | G54: 2230.27 | H54: 2347.97 | I54: 2380.38 | J54: 2406.82 | K54: 2353.95 | L54: 2295.1 | M54: 27.28756
A55: 45 | B55: BALKRISIND | C55: 1104.6 | D55: 1101.40 | E55: 1091.80 | F55: 1079.00 | G55: 1069.40 | H55: 1114.20 | I55: 1123.80 | J55: 1136.60 | K55: 1111 | L55: 1088.6 | M55: 3.18022
A56: 46 | B56: BALLARPUR | C56: 7.6 | D56: 7.75 | E56: 7.40 | F56: 7.20 | G56: 6.85 | H56: 7.95 | I56: 8.30 | J56: 8.50 | K56: 8.1 | L56: 7.55 | M56: 9.9123
A57: 47 | B57: BALMLAWRIE | C57: 190.75 | D57: 192.68 | E57: 185.37 | F57: 179.98 | G57: 172.67 | H57: 198.07 | I57: 205.38 | J57: 210.77 | K57: 200 | L57: 187.3 | M57: 0.89825
A58: 48 | B58: BALRAMCHIN | C58: 77.85 | D58: 80.27 | E58: 74.13 | F58: 70.42 | G58: 64.28 | H58: 83.98 | I58: 90.12 | J58: 93.83 | K58: 86.4 | L58: 76.55 | M58: 401.23867
A59: 49 | B59: BANKBARODA | C59: 109.15 | D59: 109.27 | E59: 107.28 | F59: 105.42 | G59: 103.43 | H59: 111.13 | I59: 113.12 | J59: 114.98 | K59: 111.25 | L59: 107.4 | M59: 256.92758
A60: 50 | B60: BANKINDIA | C60: 83.85 | D60: 83.67 | E60: 81.93 | F60: 80.02 | G60: 78.28 | H60: 85.58 | I60: 87.32 | J60: 89.23 | K60: 85.4 | L60: 81.75 | M60: 88.49865
A61: 51 | B61: BASF | C61: 1785.95 | D61: 1797.82 | E61: 1760.33 | F61: 1734.72 | G61: 1697.23 | H61: 1823.43 | I61: 1860.92 | J61: 1886.53 | K61: 1835.3 | L61: 1772.2 | M61: 0.03442
A62: 52 | B62: BATAINDIA | C62: 956.5 | D62: 957.62 | E62: 947.38 | F62: 938.27 | G62: 928.03 | H62: 966.73 | I62: 976.97 | J62: 986.08 | K62: 967.85 | L62: 948.5 | M62: 6.03206
A63: 53 | B63: BBTC | C63: 1426.9 | D63: 1440.05 | E63: 1398.35 | F63: 1369.80 | G63: 1328.10 | H63: 1468.60 | I63: 1510.30 | J63: 1538.85 | K63: 1481.75 | L63: 1411.5 | M63: 2.70758
A64: 54 | B64: BEL | C64: 84.2 | D64: 82.92 | E64: 79.53 | F64: 74.87 | G64: 71.48 | H64: 87.58 | I64: 90.97 | J64: 95.63 | K64: 86.3 | L64: 78.25 | M64: 473.34109
A65: 55 | B65: BEML | C65: 661.2 | D65: 658.70 | E65: 644.65 | F65: 628.10 | G65: 614.05 | H65: 675.25 | I65: 689.30 | J65: 705.85 | K65: 672.75 | L65: 642.15 | M65: 10.52639
A66: 56 | B66: BERGEPAINT | C66: 295.65 | D66: 298.17 | E66: 290.38 | F66: 285.12 | G66: 277.33 | H66: 303.43 | I66: 311.22 | J66: 316.48 | K66: 305.95 | L66: 292.9 | M66: 9.25942
A67: 57 | B67: BFUTILITIE | C67: 260.1 | D67: 261.63 | E67: 254.57 | F67: 249.03 | G67: 241.97 | H67: 267.17 | I67: 274.23 | J67: 279.77 | K67: 268.7 | L67: 256.1 | M67: 2.87543
A68: 58 | B68: BGRENERGY | C68: 62.25 | D68: 62.17 | E68: 61.08 | F68: 59.92 | G68: 58.83 | H68: 63.33 | I68: 64.42 | J68: 65.58 | K68: 63.25 | L68: 61 | M68: 0.3564
A69: 59 | B69: BHARATFIN | C69: 1063 | D69: 1058.90 | E69: 1052.20 | F69: 1041.40 | G69: 1034.70 | H69: 1069.70 | I69: 1076.40 | J69: 1087.20 | K69: 1065.6 | L69: 1048.1 | M69: 19.68359
A70: 60 | B70: BHARATFORG | C70: 625 | D70: 624.88 | E70: 618.37 | F70: 611.73 | G70: 605.22 | H70: 631.52 | I70: 638.03 | J70: 644.67 | K70: 631.4 | L70: 618.25 | M70: 9.11023
A71: 61 | B71: BHARTIARTL | C71: 361.3 | D71: 361.15 | E71: 357.30 | F71: 353.30 | G71: 349.45 | H71: 365.15 | I71: 369.00 | J71: 373.00 | K71: 365 | L71: 357.15 | M71: 39.64043
A72: 62 | B72: BHEL | C72: 72.15 | D72: 72.25 | E72: 71.65 | F72: 71.15 | G72: 70.55 | H72: 72.75 | I72: 73.35 | J72: 73.85 | K72: 72.85 | L72: 71.75 | M72: 37.39806
A73: 63 | B73: BHUSANSTL | C73: 24.9 | D73: 25.40 | E73: 24.30 | F73: 23.70 | G73: 22.60 | H73: 26.00 | I73: 27.10 | J73: 27.70 | K73: 26.5 | L73: 24.8 | M73: 6.03822
A74: 64 | B74: BIOCON | C74: 706.6 | D74: 706.95 | E74: 695.90 | F74: 685.20 | G74: 674.15 | H74: 717.65 | I74: 728.70 | J74: 739.40 | K74: 718 | L74: 696.25 | M74: 45.01895
A75: 65 | B75: BIRLACORPN | C75: 667.9 | D75: 672.63 | E75: 652.27 | F75: 636.63 | G75: 616.27 | H75: 688.27 | I75: 708.63 | J75: 724.27 | K75: 693 | L75: 657 | M75: 0.29368
A76: 66 | B76: BLISSGVS | C76: 188.15 | D76: 187.90 | E76: 185.80 | F76: 183.45 | G76: 181.35 | H76: 190.25 | I76: 192.35 | J76: 194.70 | K76: 190 | L76: 185.55 | M76: 2.20309
A77: 67 | B77: BLUEDART | C77: 3004.85 | D77: 3017.40 | E77: 2967.45 | F77: 2930.05 | G77: 2880.10 | H77: 3054.80 | I77: 3104.75 | J77: 3142.15 | K77: 3067.35 | L77: 2980 | M77: 0.0245
A78: 68 | B78: BLUESTARCO | C78: 609.75 | D78: 611.90 | E78: 602.85 | F78: 595.95 | G78: 586.90 | H78: 618.80 | I78: 627.85 | J78: 634.75 | K78: 620.95 | L78: 605 | M78: 0.12001
A79: 69 | B79: BOMDYEING | C79: 185.8 | D79: 185.80 | E79: 185.80 | F79: 185.80 | G79: 185.80 | H79: 185.80 | I79: 185.80 | J79: 185.80 | K79: 185.8 | L79: 185.8 | M79: 0.34704
A80: 70 | B80: BOSCHLTD | C80: 19710.1 | D80: 19804.87 | E80: 19306.93 | F80: 18903.77 | G80: 18405.83 | H80: 20208.03 | I80: 20705.97 | J80: 21109.13 | K80: 20302.8 | L80: 19401.7 | M80: 0.23779
A81: 71 | B81: BPCL | C81: 368.65 | D81: 366.93 | E81: 363.07 | F81: 357.48 | G81: 353.62 | H81: 372.52 | I81: 376.38 | J81: 381.97 | K81: 370.8 | L81: 361.35 | M81: 31.52317
A82: 72 | B82: BRFL | C82: 16.65 | D82: 16.93 | E82: 16.17 | F82: 15.68 | G82: 14.92 | H82: 17.42 | I82: 18.18 | J82: 18.67 | K82: 17.7 | L82: 16.45 | M82: 0.8927
A83: 73 | B83: BRIGADE | C83: 197 | D83: 196.38 | E83: 193.22 | F83: 189.43 | G83: 186.27 | H83: 200.17 | I83: 203.33 | J83: 207.12 | K83: 199.55 | L83: 192.6 | M83: 0.14942
A84: 74 | B84: BRITANNIA | C84: 5681.9 | D84: 5735.63 | E84: 5596.27 | F84: 5510.63 | G84: 5371.27 | H84: 5821.27 | I84: 5960.63 | J84: 6046.27 | K84: 5875 | L84: 5650 | M84: 1.90517
A85: 75 | B85: BSE | C85: 711.6 | D85: 715.00 | E85: 705.60 | F85: 699.60 | G85: 690.20 | H85: 721.00 | I85: 730.40 | J85: 736.40 | K85: 724.4 | L85: 709 | M85: 0.7178
A86: 77 | B86: CADILAHC | C86: 399.15 | D86: 398.48 | E86: 393.17 | F86: 387.18 | G86: 381.87 | H86: 404.47 | I86: 409.78 | J86: 415.77 | K86: 403.8 | L86: 392.5 | M86: 13.81815
A87: 78 | B87: CANBK | C87: 235.15 | D87: 234.82 | E87: 231.63 | F87: 228.12 | G87: 224.93 | H87: 238.33 | I87: 241.52 | J87: 245.03 | K87: 238 | L87: 231.3 | M87: 60.09365
A88: 79 | B88: CANFINHOME | C88: 248.65 | D88: 251.68 | E88: 243.02 | F88: 237.38 | G88: 228.72 | H88: 257.32 | I88: 265.98 | J88: 271.62 | K88: 260.35 | L88: 246.05 | M88: 22.45941
A89: 80 | B89: CAPF | C89: 519.2 | D89: 517.08 | E89: 508.32 | F89: 497.43 | G89: 488.67 | H89: 527.97 | I89: 536.73 | J89: 547.62 | K89: 525.85 | L89: 506.2 | M89: 5.27686
A90: 81 | B90: CAPLIPOINT | C90: 435.05 | D90: 437.08 | E90: 429.17 | F90: 423.28 | G90: 415.37 | H90: 442.97 | I90: 450.88 | J90: 456.77 | K90: 445 | L90: 431.2 | M90: 0.2009
A91: 82 | B91: CARBORUNIV | C91: 382.95 | D91: 378.55 | E91: 369.40 | F91: 355.85 | G91: 346.70 | H91: 392.10 | I91: 401.25 | J91: 414.80 | K91: 387.7 | L91: 365 | M91: 2.15871
A92: 83 | B92: CARERATING | C92: 1238.25 | D92: 1236.08 | E92: 1222.17 | F92: 1206.08 | G92: 1192.17 | H92: 1252.17 | I92: 1266.08 | J92: 1282.17 | K92: 1250 | L92: 1220 | M92: 1.14987
A93: 84 | B93: CASTROLIND | C93: 149.55 | D93: 150.33 | E93: 148.42 | F93: 147.28 | G93: 145.37 | H93: 151.47 | I93: 153.38 | J93: 154.52 | K93: 152.25 | L93: 149.2 | M93: 6.53889
A94: 85 | B94: CCL | C94: 259.2 | D94: 257.97 | E94: 254.28 | F94: 249.37 | G94: 245.68 | H94: 262.88 | I94: 266.57 | J94: 271.48 | K94: 261.65 | L94: 253.05 | M94: 0.55473
A95: 86 | B95: CDSL | C95: 245.65 | D95: 247.45 | E95: 242.70 | F95: 239.75 | G95: 235.00 | H95: 250.40 | I95: 255.15 | J95: 258.10 | K95: 252.2 | L95: 244.5 | M95: 2.0279
A96: 87 | B96: CEATLTD | C96: 1235.9 | D96: 1235.80 | E96: 1225.60 | F96: 1215.30 | G96: 1205.10 | H96: 1246.10 | I96: 1256.30 | J96: 1266.60 | K96: 1246 | L96: 1225.5 | M96: 2.45321
A97: 88 | B97: CENTRALBK | C97: 43.6 | D97: 43.80 | E97: 42.80 | F97: 42.00 | G97: 41.00 | H97: 44.60 | I97: 45.60 | J97: 46.40 | K97: 44.8 | L97: 43 | M97: 12.60191
A98: 89 | B98: CENTURYPLY | C98: 186.9 | D98: 188.77 | E98: 184.13 | F98: 181.37 | G98: 176.73 | H98: 191.53 | I98: 196.17 | J98: 198.93 | K98: 193.4 | L98: 186 | M98: 1.71925
A99: 90 | B99: CENTURYTEX | C99: 876.8 | D99: 875.00 | E99: 863.55 | F99: 850.30 | G99: 838.85 | H99: 888.25 | I99: 899.70 | J99: 912.95 | K99: 886.45 | L99: 861.75 | M99: 3.57358
A100: 91 | B100: CERA | C100: 2603.05 | D100: 2602.53 | E100: 2561.17 | F100: 2519.28 | G100: 2477.92 | H100: 2644.42 | I100: 2685.78 | J100: 2727.67 | K100: 2643.9 | L100: 2560.65 | M100: 0.02834
A101: 92 | B101: CGPOWER | C101: 48.7 | D101: 48.53 | E101: 47.17 | F101: 45.63 | G101: 44.27 | H101: 50.07 | I101: 51.43 | J101: 52.97 | K101: 49.9 | L101: 47 | M101: 43.4484
A102: 93 | B102: CHAMBLFERT | C102: 157.1 | D102: 156.10 | E102: 152.25 | F102: 147.40 | G102: 143.55 | H102: 160.95 | I102: 164.80 | J102: 169.65 | K102: 159.95 | L102: 151.25 | M102: 4.19987
A103: 94 | B103: CHENNPETRO | C103: 271.6 | D103: 275.02 | E103: 265.03 | F103: 258.47 | G103: 248.48 | H103: 281.58 | I103: 291.57 | J103: 298.13 | K103: 285 | L103: 268.45 | M103: 3.79983
A104: 95 | B104: CHOLAFIN | C104: 1215.55 | D104: 1219.70 | E104: 1199.40 | F104: 1183.25 | G104: 1162.95 | H104: 1235.85 | I104: 1256.15 | J104: 1272.30 | K104: 1240 | L104: 1203.55 | M104: 4.0001
A105: 96 | B105: CIPLA | C105: 672.8 | D105: 668.02 | E105: 660.78 | F105: 648.77 | G105: 641.53 | H105: 680.03 | I105: 687.27 | J105: 699.28 | K105: 675.25 | L105: 656 | M105: 21.31833
A106: 97 | B106: COALINDIA | C106: 272.55 | D106: 273.25 | E106: 269.50 | F106: 266.45 | G106: 262.70 | H106: 276.30 | I106: 280.05 | J106: 283.10 | K106: 277 | L106: 270.2 | M106: 23.005
A107: 98 | B107: COCHINSHIP | C107: 400.05 | D107: 405.42 | E107: 392.88 | F107: 385.72 | G107: 373.18 | H107: 412.58 | I107: 425.12 | J107: 432.28 | K107: 417.95 | L107: 398.25 | M107: 2.52128
A108: 99 | B108: COFFEEDAY | C108: 294.35 | D108: 296.07 | E108: 289.78 | F108: 285.22 | G108: 278.93 | H108: 300.63 | I108: 306.92 | J108: 311.48 | K108: 302.35 | L108: 291.5 | M108: 1.33779
A109: 100 | B109: COLPAL | C109: 1097.45 | D109: 1100.07 | E109: 1087.18 | F109: 1076.92 | G109: 1064.03 | H109: 1110.33 | I109: 1123.22 | J109: 1133.48 | K109: 1112.95 | L109: 1089.8 | M109: 6.0573
A110: 101 | B110: CONCOR | C110: 628.65 | D110: 624.83 | E110: 616.82 | F110: 604.98 | G110: 596.97 | H110: 636.67 | I110: 644.68 | J110: 656.52 | K110: 632.85 | L110: 613 | M110: 5.51429
A111: 102 | B111: COROMANDEL | C111: 399.1 | D111: 397.57 | E111: 394.03 | F111: 388.97 | G111: 385.43 | H111: 402.63 | I111: 406.17 | J111: 411.23 | K111: 401.1 | L111: 392.5 | M111: 0.91048
A112: 103 | B112: COX&KINGS | C112: 193.5 | D112: 193.23 | E112: 190.97 | F112: 188.43 | G112: 186.17 | H112: 195.77 | I112: 198.03 | J112: 200.57 | K112: 195.5 | L112: 190.7 | M112: 0.74519
A113: 104 | B113: CRISIL | C113: 1750 | D113: 1745.98 | E113: 1715.02 | F113: 1680.03 | G113: 1649.07 | H113: 1780.97 | I113: 1811.93 | J113: 1846.92 | K113: 1776.95 | L113: 1711 | M113: 0.10196
A114: 105 | B114: CROMPTON | C114: 218.65 | D114: 217.70 | E114: 214.45 | F114: 210.25 | G114: 207.00 | H114: 221.90 | I114: 225.15 | J114: 229.35 | K114: 220.95 | L114: 213.5 | M114: 25.47691
A115: 106 | B115: CUB | C115: 183.8 | D115: 181.77 | E115: 179.03 | F115: 174.27 | G115: 171.53 | H115: 186.53 | I115: 189.27 | J115: 194.03 | K115: 184.5 | L115: 177 | M115: 4.44782
A116: 107 | B116: CUMMINSIND | C116: 692.45 | D116: 694.35 | E116: 687.70 | F116: 682.95 | G116: 676.30 | H116: 699.10 | I116: 705.75 | J116: 710.50 | K116: 701 | L116: 689.6 | M116: 3.87335
A117: 108 | B117: CYIENT | C117: 726.65 | D117: 724.37 | E117: 717.73 | F117: 708.82 | G117: 702.18 | H117: 733.28 | I117: 739.92 | J117: 748.83 | K117: 731 | L117: 715.45 | M117: 1.29786
A118: 109 | B118: DABUR | C118: 436.45 | D118: 436.95 | E118: 431.55 | F118: 426.65 | G118: 421.25 | H118: 441.85 | I118: 447.25 | J118: 452.15 | K118: 442.35 | L118: 432.05 | M118: 20.52494
A119: 110 | B119: DBCORP | C119: 203.5 | D119: 203.82 | E119: 199.68 | F119: 195.87 | G119: 191.73 | H119: 207.63 | I119: 211.77 | J119: 215.58 | K119: 207.95 | L119: 200 | M119: 0.23039
A120: 111 | B120: DBL | C120: 687.1 | D120: 688.72 | E120: 679.43 | F120: 671.77 | G120: 662.48 | H120: 696.38 | I120: 705.67 | J120: 713.33 | K120: 698 | L120: 681.05 | M120: 1.21355
A121: 112 | B121: DBREALTY | C121: 23.1 | D121: 23.25 | E121: 22.25 | F121: 21.40 | G121: 20.40 | H121: 24.10 | I121: 25.10 | J121: 25.95 | K121: 24.25 | L121: 22.4 | M121: 3.83768
A122: 113 | B122: DCAL | C122: 253.05 | D122: 253.78 | E122: 249.62 | F122: 246.18 | G122: 242.02 | H122: 257.22 | I122: 261.38 | J122: 264.82 | K122: 257.95 | L122: 250.35 | M122: 1.19814
A123: 114 | B123: DCBBANK | C123: 153.6 | D123: 153.53 | E123: 150.67 | F123: 147.73 | G123: 144.87 | H123: 156.47 | I123: 159.33 | J123: 162.27 | K123: 156.4 | L123: 150.6 | M123: 23.52726
A124: 115 | B124: DCMSHRIRAM | C124: 448.25 | D124: 456.13 | E124: 432.37 | F124: 416.48 | G124: 392.72 | H124: 472.02 | I124: 495.78 | J124: 511.67 | K124: 479.9 | L124: 440.25 | M124: 3.61818
A125: 116 | B125: DEEPAKFERT | C125: 204.85 | D125: 208.68 | E125: 199.37 | F125: 193.88 | G125: 184.57 | H125: 214.17 | I125: 223.48 | J125: 228.97 | K125: 218 | L125: 203.2 | M125: 0.86212
A126: 117 | B126: DELTACORP | C126: 219.1 | D126: 220.23 | E126: 216.07 | F126: 213.03 | G126: 208.87 | H126: 223.27 | I126: 227.43 | J126: 230.47 | K126: 224.4 | L126: 217.2 | M126: 16.06904
A127: 118 | B127: DEN | C127: 54.4 | D127: 56.33 | E127: 49.67 | F127: 44.93 | G127: 38.27 | H127: 61.07 | I127: 67.73 | J127: 72.47 | K127: 63 | L127: 51.6 | M127: 5.02217
A128: 119 | B128: DENABANK | C128: 16.4 | D128: 16.57 | E128: 16.08 | F128: 15.77 | G128: 15.28 | H128: 16.88 | I128: 17.37 | J128: 17.68 | K128: 17.05 | L128: 16.25 | M128: 17.17579
A129: 120 | B129: DHFL | C129: 305.45 | D129: 300.82 | E129: 281.63 | F129: 257.82 | G129: 238.63 | H129: 324.63 | I129: 343.82 | J129: 367.63 | K129: 320 | L129: 277 | M129: 696.0947
A130: 121 | B130: DISHTV | C130: 57.05 | D130: 57.68 | E130: 55.67 | F130: 54.28 | G130: 52.27 | H130: 59.07 | I130: 61.08 | J130: 62.47 | K130: 59.7 | L130: 56.3 | M130: 103.07677
A131: 122 | B131: DIVISLAB | C131: 1385.35 | D131: 1393.80 | E131: 1362.60 | F131: 1339.85 | G131: 1308.65 | H131: 1416.55 | I131: 1447.75 | J131: 1470.50 | K131: 1425 | L131: 1371.05 | M131: 18.0407
A132: 123 | B132: DIXON | C132: 2510.5 | D132: 2536.83 | E132: 2473.67 | F132: 2436.83 | G132: 2373.67 | H132: 2573.67 | I132: 2636.83 | J132: 2673.67 | K132: 2600 | L132: 2500 | M132: 0.06679
A133: 124 | B133: DLF | C133: 182.6 | D133: 181.28 | E133: 177.67 | F133: 172.73 | G133: 169.12 | H133: 186.22 | I133: 189.83 | J133: 194.77 | K133: 184.9 | L133: 176.35 | M133: 153.97405
A134: 125 | B134: DMART | C134: 1420.8 | D134: 1431.93 | E134: 1403.87 | F134: 1386.93 | G134: 1358.87 | H134: 1448.87 | I134: 1476.93 | J134: 1493.87 | K134: 1460 | L134: 1415 | M134: 2.98196
A135: 126 | B135: DREDGECORP | C135: 377.95 | D135: 379.72 | E135: 372.68 | F135: 367.42 | G135: 360.38 | H135: 384.98 | I135: 392.02 | J135: 397.28 | K135: 386.75 | L135: 374.45 | M135: 1.76038
A136: 127 | B136: DRREDDY | C136: 2600.85 | D136: 2618.68 | E136: 2573.17 | F136: 2545.48 | G136: 2499.97 | H136: 2646.37 | I136: 2691.88 | J136: 2719.57 | K136: 2664.2 | L136: 2591 | M136: 12.06238
A137: 128 | B137: ECLERX | C137: 1106.3 | D137: 1102.83 | E137: 1084.47 | F137: 1062.63 | G137: 1044.27 | H137: 1124.67 | I137: 1143.03 | J137: 1164.87 | K137: 1121.2 | L137: 1081 | M137: 0.07201
A138: 129 | B138: EDELWEISS | C138: 212.15 | D138: 214.58 | E138: 207.67 | F138: 203.18 | G138: 196.27 | H138: 219.07 | I138: 225.98 | J138: 230.47 | K138: 221.5 | L138: 210.1 | M138: 33.03414
A139: 130 | B139: EICHERMOT | C139: 25180.75 | D139: 25510.73 | E139: 24771.02 | F139: 24361.28 | G139: 23621.57 | H139: 25920.47 | I139: 26660.18 | J139: 27069.92 | K139: 26250.45 | L139: 25101 | M139: 0.78609
A140: 131 | B140: EIDPARRY | C140: 225.25 | D140: 226.42 | E140: 217.83 | F140: 210.42 | G140: 201.83 | H140: 233.83 | I140: 242.42 | J140: 249.83 | K140: 235 | L140: 219 | M140: 7.17189
A141: 132 | B141: EIHOTEL | C141: 150.15 | D141: 151.82 | E141: 147.83 | F141: 145.52 | G141: 141.53 | H141: 154.13 | I141: 158.12 | J141: 160.43 | K141: 155.8 | L141: 149.5 | M141: 8.00696
A142: 133 | B142: EMAMILTD | C142: 522.4 | D142: 519.35 | E142: 508.55 | F142: 494.70 | G142: 483.90 | H142: 533.20 | I142: 544.00 | J142: 557.85 | K142: 530.15 | L142: 505.5 | M142: 4.2709
A143: 134 | B143: ENDURANCE | C143: 1364.75 | D143: 1374.73 | E143: 1345.52 | F143: 1326.28 | G143: 1297.07 | H143: 1393.97 | I143: 1423.18 | J143: 1442.42 | K143: 1403.95 | L143: 1355.5 | M143: 0.19472
A144: 135 | B144: ENGINERSIN | C144: 122.1 | D144: 121.02 | E144: 119.58 | F144: 117.07 | G144: 115.63 | H144: 123.53 | I144: 124.97 | J144: 127.48 | K144: 122.45 | L144: 118.5 | M144: 17.09426
A145: 136 | B145: EQUITAS | C145: 133.65 | D145: 133.90 | E145: 130.55 | F145: 127.45 | G145: 124.10 | H145: 137.00 | I145: 140.35 | J145: 143.45 | K145: 137.25 | L145: 130.8 | M145: 14.76164
A146: 137 | B146: ERIS | C146: 758.15 | D146: 759.05 | E146: 749.10 | F146: 740.05 | G146: 730.10 | H146: 768.10 | I146: 778.05 | J146: 787.10 | K146: 769 | L146: 750 | M146: 0.06397
A147: 138 | B147: EROSMEDIA | C147: 90.35 | D147: 91.98 | E147: 88.07 | F147: 85.78 | G147: 81.87 | H147: 94.27 | I147: 98.18 | J147: 100.47 | K147: 95.9 | L147: 89.7 | M147: 10.43233
A148: 139 | B148: ESCORTS | C148: 662.55 | D148: 665.18 | E148: 655.37 | F148: 648.18 | G148: 638.37 | H148: 672.37 | I148: 682.18 | J148: 689.37 | K148: 675 | L148: 658 | M148: 12.26966
A149: 140 | B149: EVEREADY | C149: 202.9 | D149: 206.05 | E149: 195.90 | F149: 188.90 | G149: 178.75 | H149: 213.05 | I149: 223.20 | J149: 230.20 | K149: 216.2 | L149: 199.05 | M149: 6.07695
A150: 141 | B150: EXIDEIND | C150: 273.6 | D150: 268.85 | E150: 261.50 | F150: 249.40 | G150: 242.05 | H150: 280.95 | I150: 288.30 | J150: 300.40 | K150: 276.2 | L150: 256.75 | M150: 38.80719
A151: 142 | B151: FCONSUMER | C151: 42.3 | D151: 42.48 | E151: 41.62 | F151: 40.93 | G151: 40.07 | H151: 43.17 | I151: 44.03 | J151: 44.72 | K151: 43.35 | L151: 41.8 | M151: 15.49995
A152: 143 | B152: FEDERALBNK | C152: 71.5 | D152: 71.60 | E152: 70.25 | F152: 69.00 | G152: 67.65 | H152: 72.85 | I152: 74.20 | J152: 75.45 | K152: 72.95 | L152: 70.35 | M152: 84.12363
A153: 144 | B153: FINCABLES | C153: 534.45 | D153: 528.13 | E153: 516.32 | F153: 498.18 | G153: 486.37 | H153: 546.27 | I153: 558.08 | J153: 576.22 | K153: 539.95 | L153: 510 | M153: 0.4207
A154: 145 | B154: FINPIPE | C154: 528.45 | D154: 528.55 | E154: 524.90 | F154: 521.35 | G154: 517.70 | H154: 532.10 | I154: 535.75 | J154: 539.30 | K154: 532.2 | L154: 525 | M154: 0.10762
A155: 146 | B155: FLFL | C155: 402.2 | D155: 399.63 | E155: 393.62 | F155: 385.03 | G155: 379.02 | H155: 408.22 | I155: 414.23 | J155: 422.82 | K155: 405.65 | L155: 391.05 | M155: 0.30288
A156: 147 | B156: FSL | C156: 65.45 | D156: 65.35 | E156: 64.60 | F156: 63.75 | G156: 63.00 | H156: 66.20 | I156: 66.95 | J156: 67.80 | K156: 66.1 | L156: 64.5 | M156: 23.34896
A157: 148 | B157: GAIL | C157: 375.1 | D157: 375.87 | E157: 369.73 | F157: 364.37 | G157: 358.23 | H157: 381.23 | I157: 387.37 | J157: 392.73 | K157: 382 | L157: 370.5 | M157: 34.46786
A158: 149 | B158: GATI | C158: 83.15 | D158: 83.58 | E158: 81.67 | F158: 80.18 | G158: 78.27 | H158: 85.07 | I158: 86.98 | J158: 88.47 | K158: 85.5 | L158: 82.1 | M158: 4.26876
A159: 150 | B159: GDL | C159: 153.2 | D159: 155.55 | E159: 149.45 | F159: 145.70 | G159: 139.60 | H159: 159.30 | I159: 165.40 | J159: 169.15 | K159: 161.65 | L159: 151.8 | M159: 3.09544
A160: 151 | B160: GEPIL | C160: 742.3 | D160: 733.10 | E160: 721.20 | F160: 700.10 | G160: 688.20 | H160: 754.20 | I160: 766.10 | J160: 787.20 | K160: 745 | L160: 712 | M160: 0.08888
A161: 152 | B161: GESHIP | C161: 279.4 | D161: 282.37 | E161: 275.03 | F161: 270.67 | G161: 263.33 | H161: 286.73 | I161: 294.07 | J161: 298.43 | K161: 289.7 | L161: 278 | M161: 0.25074
A162: 153 | B162: GET&D | C162: 256.6 | D162: 257.75 | E162: 254.00 | F162: 251.40 | G162: 247.65 | H162: 260.35 | I162: 264.10 | J162: 266.70 | K162: 261.5 | L162: 255.15 | M162: 0.10461
A163: 154 | B163: GHCL | C163: 238.4 | D163: 236.85 | E163: 233.65 | F163: 228.90 | G163: 225.70 | H163: 241.60 | I163: 244.80 | J163: 249.55 | K163: 240.05 | L163: 232.1 | M163: 0.67139
A164: 155 | B164: GICRE | C164: 327.85 | D164: 329.63 | E164: 324.27 | F164: 320.68 | G164: 315.32 | H164: 333.22 | I164: 338.58 | J164: 342.17 | K164: 335 | L164: 326.05 | M164: 0.72065
A165: 156 | B165: GILLETTE | C165: 6748.95 | D165: 6765.52 | E165: 6652.48 | F165: 6556.02 | G165: 6442.98 | H165: 6861.98 | I165: 6975.02 | J165: 7071.48 | K165: 6878.55 | L165: 6669.05 | M165: 0.0332
A166: 157 | B166: GLAXO | C166: 1518.55 | D166: 1507.52 | E166: 1486.03 | F166: 1453.52 | G166: 1432.03 | H166: 1540.03 | I166: 1561.52 | J166: 1594.03 | K166: 1529 | L166: 1475 | M166: 0.15391
A167: 158 | B167: GLENMARK | C167: 654.25 | D167: 651.47 | E167: 643.63 | F167: 633.02 | G167: 625.18 | H167: 662.08 | I167: 669.92 | J167: 680.53 | K167: 659.3 | L167: 640.85 | M167: 13.82163
A168: 159 | B168: GMDCLTD | C168: 100.3 | D168: 100.82 | E168: 99.13 | F168: 97.97 | G168: 96.28 | H168: 101.98 | I168: 103.67 | J168: 104.83 | K168: 102.5 | L168: 99.65 | M168: 1.21433
A169: 160 | B169: GMRINFRA | C169: 17.55 | D169: 17.32 | E169: 16.98 | F169: 16.42 | G169: 16.08 | H169: 17.88 | I169: 18.22 | J169: 18.78 | K169: 17.65 | L169: 16.75 | M169: 577.40082
A170: 161 | B170: GNFC | C170: 361.05 | D170: 361.67 | E170: 356.43 | F170: 351.82 | G170: 346.58 | H170: 366.28 | I170: 371.52 | J170: 376.13 | K170: 366.9 | L170: 357.05 | M170: 2.78966
A171: 162 | B171: GODFRYPHLP | C171: 760.05 | D171: 765.37 | E171: 749.73 | F171: 739.42 | G171: 723.78 | H171: 775.68 | I171: 791.32 | J171: 801.63 | K171: 781 | L171: 755.05 | M171: 1.48406
A172: 163 | B172: GODREJAGRO | C172: 519.45 | D172: 521.00 | E172: 514.10 | F172: 508.75 | G172: 501.85 | H172: 526.35 | I172: 533.25 | J172: 538.60 | K172: 527.9 | L172: 515.65 | M172: 1.31775
A173: 164 | B173: GODREJCP | C173: 772.4 | D173: 778.00 | E173: 758.40 | F173: 744.40 | G173: 724.80 | H173: 792.00 | I173: 811.60 | J173: 825.60 | K173: 797.6 | L173: 764 | M173: 7.75754
A174: 165 | B174: GODREJIND | C174: 533.4 | D174: 535.58 | E174: 521.57 | F174: 509.73 | G174: 495.72 | H174: 547.42 | I174: 561.43 | J174: 573.27 | K174: 549.6 | L174: 523.75 | M174: 7.28475
A175: 166 | B175: GODREJPROP | C175: 603.55 | D175: 594.77 | E175: 579.53 | F175: 555.52 | G175: 540.28 | H175: 618.78 | I175: 634.02 | J175: 658.03 | K175: 610 | L175: 570.75 | M175: 5.64513
A176: 167 | B176: GPPL | C176: 101 | D176: 101.28 | E176: 99.97 | F176: 98.93 | G176: 97.62 | H176: 102.32 | I176: 103.63 | J176: 104.67 | K176: 102.6 | L176: 100.25 | M176: 0.23169
A177: 168 | B177: GRANULES | C177: 102.95 | D177: 102.50 | E177: 100.45 | F177: 97.95 | G177: 95.90 | H177: 105.00 | I177: 107.05 | J177: 109.55 | K177: 104.55 | L177: 100 | M177: 43.33295
A178: 169 | B178: GRAPHITE | C178: 845.7 | D178: 858.57 | E178: 822.13 | F178: 798.57 | G178: 762.13 | H178: 882.13 | I178: 918.57 | J178: 942.13 | K178: 895 | L178: 835 | M178: 7.82746
A179: 170 | B179: GRASIM | C179: 1044.9 | D179: 1042.78 | E179: 1035.57 | F179: 1026.23 | G179: 1019.02 | H179: 1052.12 | I179: 1059.33 | J179: 1068.67 | K179: 1050 | L179: 1033.45 | M179: 12.39047
A180: 171 | B180: GREAVESCOT | C180: 144.45 | D180: 145.67 | E180: 142.73 | F180: 141.02 | G180: 138.08 | H180: 147.38 | I180: 150.32 | J180: 152.03 | K180: 148.6 | L180: 143.95 | M180: 3.07725
A181: 172 | B181: GREENPLY | C181: 171.45 | D181: 174.68 | E181: 166.77 | F181: 162.08 | G181: 154.17 | H181: 179.37 | I181: 187.28 | J181: 191.97 | K181: 182.6 | L181: 170 | M181: 0.89248
A182: 173 | B182: GRUH | C182: 301.8 | D182: 303.80 | E182: 298.00 | F182: 294.20 | G182: 288.40 | H182: 307.60 | I182: 313.40 | J182: 317.20 | K182: 309.6 | L182: 300 | M182: 5.70802
A183: 174 | B183: GSFC | C183: 98.35 | D183: 98.82 | E183: 96.83 | F183: 95.32 | G183: 93.33 | H183: 100.33 | I183: 102.32 | J183: 103.83 | K183: 100.8 | L183: 97.3 | M183: 13.52624
A184: 175 | B184: GSKCONS | C184: 7200.9 | D184: 7223.20 | E184: 7102.70 | F184: 7004.50 | G184: 6884.00 | H184: 7321.40 | I184: 7441.90 | J184: 7540.10 | K184: 7343.7 | L184: 7125 | M184: 0.11565
A185: 176 | B185: GSPL | C185: 184.45 | D185: 183.47 | E185: 181.13 | F185: 177.82 | G185: 175.48 | H185: 186.78 | I185: 189.12 | J185: 192.43 | K185: 185.8 | L185: 180.15 | M185: 1.81159
A186: 177 | B186: GUJALKALI | C186: 620.55 | D186: 612.60 | E186: 597.20 | F186: 573.85 | G186: 558.45 | H186: 635.95 | I186: 651.35 | J186: 674.70 | K186: 628 | L186: 589.25 | M186: 1.91052
A187: 178 | B187: GUJFLUORO | C187: 843.85 | D187: 840.70 | E187: 831.40 | F187: 818.95 | G187: 809.65 | H187: 853.15 | I187: 862.45 | J187: 874.90 | K187: 850 | L187: 828.25 | M187: 1.39333
A188: 179 | B188: GUJGASLTD | C188: 650 | D188: 649.20 | E188: 630.80 | F188: 611.60 | G188: 593.20 | H188: 668.40 | I188: 686.80 | J188: 706.00 | K188: 667.6 | L188: 630 | M188: 0.82616
A189: 180 | B189: GULFOILLUB | C189: 755.35 | D189: 759.57 | E189: 749.68 | F189: 744.02 | G189: 734.13 | H189: 765.23 | I189: 775.12 | J189: 780.78 | K189: 769.45 | L189: 753.9 | M189: 0.31713
A190: 181 | B190: GVKPIL | C190: 8.55 | D190: 8.55 | E190: 8.30 | F190: 8.05 | G190: 7.80 | H190: 8.80 | I190: 9.05 | J190: 9.30 | K190: 8.8 | L190: 8.3 | M190: 17.44803
A191: 182 | B191: HATHWAY | C191: 24.6 | D191: 23.88 | E191: 23.17 | F191: 21.73 | G191: 21.02 | H191: 25.32 | I191: 26.03 | J191: 27.47 | K191: 24.6 | L191: 22.45 | M191: 14.83142
A192: 183 | B192: HATSUN | C192: 707.1 | D192: 708.90 | E192: 703.25 | F192: 699.40 | G192: 693.75 | H192: 712.75 | I192: 718.40 | J192: 722.25 | K192: 714.55 | L192: 705.05 | M192: 0.10065
A193: 184 | B193: HAVELLS | C193: 646.5 | D193: 638.60 | E193: 628.15 | F193: 609.80 | G193: 599.35 | H193: 656.95 | I193: 667.40 | J193: 685.75 | K193: 649.05 | L193: 620.25 | M193: 10.27745
A194: 185 | B194: HCC | C194: 11.95 | D194: 11.83 | E194: 11.52 | F194: 11.08 | G194: 10.77 | H194: 12.27 | I194: 12.58 | J194: 13.02 | K194: 12.15 | L194: 11.4 | M194: 97.09878
A195: 186 | B195: HCL-INSYS | C195: 26.9 | D195: 26.88 | E195: 26.37 | F195: 25.83 | G195: 25.32 | H195: 27.42 | I195: 27.93 | J195: 28.47 | K195: 27.4 | L195: 26.35 | M195: 6.79681
A196: 187 | B196: HCLTECH | C196: 1090.15 | D196: 1098.72 | E196: 1076.58 | F196: 1063.02 | G196: 1040.88 | H196: 1112.28 | I196: 1134.42 | J196: 1147.98 | K196: 1120.85 | L196: 1085.15 | M196: 14.35197
A197: 188 | B197: HDFC | C197: 1767.45 | D197: 1776.62 | E197: 1746.93 | F197: 1726.42 | G197: 1696.73 | H197: 1797.13 | I197: 1826.82 | J197: 1847.33 | K197: 1806.3 | L197: 1756.1 | M197: 40.44415
A198: 189 | B198: HDFCBANK | C198: 1968.2 | D198: 1967.17 | E198: 1956.33 | F198: 1944.47 | G198: 1933.63 | H198: 1979.03 | I198: 1989.87 | J198: 2001.73 | K198: 1978 | L198: 1955.3 | M198: 36.81681
A199: 190 | B199: HDIL | C199: 22.95 | D199: 22.72 | E199: 22.48 | F199: 22.02 | G199: 21.78 | H199: 23.18 | I199: 23.42 | J199: 23.88 | K199: 22.95 | L199: 22.25 | M199: 54.88132
A200: 191 | B200: HEG | C200: 3599.3 | D200: 3636.03 | E200: 3533.27 | F200: 3467.23 | G200: 3364.47 | H200: 3702.07 | I200: 3804.83 | J200: 3870.87 | K200: 3738.8 | L200: 3570 | M200: 1.55868
A201: 192 | B201: HEIDELBERG | C201: 145.4 | D201: 146.23 | E201: 142.47 | F201: 139.53 | G201: 135.77 | H201: 149.17 | I201: 152.93 | J201: 155.87 | K201: 150 | L201: 143.3 | M201: 1.37478
A202: 193 | B202: HERITGFOOD | C202: 528.85 | D202: 531.40 | E202: 524.65 | F202: 520.45 | G202: 513.70 | H202: 535.60 | I202: 542.35 | J202: 546.55 | K202: 538.15 | L202: 527.2 | M202: 0.06129
A203: 194 | B203: HEROMOTOCO | C203: 3100.05 | D203: 3108.92 | E203: 3077.83 | F203: 3055.62 | G203: 3024.53 | H203: 3131.13 | I203: 3162.22 | J203: 3184.43 | K203: 3140 | L203: 3086.7 | M203: 3.57504
A204: 195 | B204: HEXAWARE | C204: 435.85 | D204: 433.92 | E204: 419.93 | F204: 404.02 | G204: 390.03 | H204: 449.83 | I204: 463.82 | J204: 479.73 | K204: 447.9 | L204: 418 | M204: 18.73072
A205: 196 | B205: HFCL | C205: 20.15 | D205: 20.00 | E205: 19.55 | F205: 18.95 | G205: 18.50 | H205: 20.60 | I205: 21.05 | J205: 21.65 | K205: 20.45 | L205: 19.4 | M205: 61.82149
A206: 197 | B206: HIMATSEIDE | C206: 233 | D206: 236.10 | E206: 229.30 | F206: 225.60 | G206: 218.80 | H206: 239.80 | I206: 246.60 | J206: 250.30 | K206: 242.9 | L206: 232.4 | M206: 2.65335
... 304 more rows

Sheet Bulk Deals
E6: Back To Main Page
A7: Subject : | B7: BULK DEAL | D7: =Main!B10 -> 2018-09-27
A9: Date | B9: Scrip code | C9: Scrip Name | D9: Client Name | E9: Buy / Sell | F9: Quantity Traded | G9: Trade Price / Wt.Avg.trade price | H9: Exchange
A10: 2018-09-26 | B10: 508869 | C10: APOLLOHOSP | D10: OPPENHEIMER FUNDS INC | E10: SELL | F10: 1,400,178 | G10: 1044.23 | H10: BSE
A11: 2018-09-26 | B11: 508869 | C11: APOLLOHOSP | D11: WELLINGTON TRUST CO NATIONAL ASSOCIATION MULTIPLE COMMON TRUST FNDS TRUST EMERGING MKT OPP PORTFOLIO | E11: BUY | F11: 944,281 | G11: 1044.23 | H11: BSE
A12: 2018-09-26 | B12: 540616 | C12: ARTEMIS | D12: RATNABALI CAPITAL MARKETS LIMITED | E12: SELL | F12: 776,800 | G12: 70.5 | H12: BSE
A13: 2018-09-26 | B13: 540616 | C13: ARTEMIS | D13: NISHTHA INVESTMENT & CONSULTANCY SERVICES PVT. LTD. | E13: BUY | F13: 776,800 | G13: 70.5 | H13: BSE
A14: 2018-09-26 | B14: 540024 | C14: ASHARI | D14: VIBRANT SECURITIES PRIVATE LIMITED | E14: SELL | F14: 45,289 | G14: 25.49 | H14: BSE
A15: 2018-09-26 | B15: 540024 | C15: ASHARI | D15: VIBRANT SECURITIES PRIVATE LIMITED | E15: BUY | F15: 45,289 | G15: 25.35 | H15: BSE
A16: 2018-09-26 | B16: 540024 | C16: ASHARI | D16: REKHABEN HARISHBHAI SAKARIYA | E16: SELL | F16: 45,549 | G16: 25.37 | H16: BSE
A17: 2018-09-26 | B17: 540024 | C17: ASHARI | D17: REKHABEN HARISHBHAI SAKARIYA | E17: BUY | F17: 45,549 | G17: 25.5 | H17: BSE
A18: 2018-09-26 | B18: 540024 | C18: ASHARI | D18: VIRPAL SINGH | E18: SELL | F18: 217,096 | G18: 25.45 | H18: BSE
A19: 2018-09-26 | B19: 540024 | C19: ASHARI | D19: PRADNYA SANDEEP KHARDE | E19: SELL | F19: 9,860 | G19: 25.35 | H19: BSE
A20: 2018-09-26 | B20: 540024 | C20: ASHARI | D20: PRADNYA SANDEEP KHARDE | E20: BUY | F20: 59,039 | G20: 25.38 | H20: BSE
A21: 2018-09-26 | B21: 540024 | C21: ASHARI | D21: JAYSHREE BHARAT BORSE | E21: BUY | F21: 49,000 | G21: 25.4 | H21: BSE
A22: 2018-09-26 | B22: 541178 | C22: BENARA | D22: SANDEEP JAIN | E22: SELL | F22: 4,000 | G22: 61 | H22: BSE
A23: 2018-09-26 | B23: 541178 | C23: BENARA | D23: SANDEEP JAIN | E23: BUY | F23: 94,000 | G23: 49.2 | H23: BSE
A24: 2018-09-26 | B24: 541178 | C24: BENARA | D24: SUNIL GIRIDHARILAL RAHEJA | E24: SELL | F24: 134,000 | G24: 48.77 | H24: BSE
A25: 2018-09-26 | B25: 500058 | C25: BIHSPONG | D25: DB INTERNATIONAL (ASIA) LIMITED | E25: BUY | F25: 479,899 | G25: 0.8 | H25: BSE
A26: 2018-09-26 | B26: 500058 | C26: BIHSPONG | D26: DEUTSCHE SECURITIES MAURITIUS LIMITED | E26: SELL | F26: 479,899 | G26: 0.8 | H26: BSE
A27: 2018-09-26 | B27: 526717 | C27: GOPALA | D27: KUBER EQUITY SERVICES LLP | E27: SELL | F27: 52,973 | G27: 107.36 | H27: BSE
A28: 2018-09-26 | B28: 526717 | C28: GOPALA | D28: KUBER EQUITY SERVICES LLP | E28: BUY | F28: 1,573 | G28: 107.23 | H28: BSE
A29: 2018-09-26 | B29: 526717 | C29: GOPALA | D29: UPESH DHIRAJLAL SHAH | E29: BUY | F29: 50,300 | G29: 107.75 | H29: BSE
A30: 2018-09-26 | B30: 532855 | C30: HARYNACAP | D30: DB INTERNATIONAL (ASIA) LIMITED | E30: BUY | F30: 72,168 | G30: 37.2 | H30: BSE
A31: 2018-09-26 | B31: 532855 | C31: HARYNACAP | D31: DEUTSCHE SECURITIES MAURITIUS LIMITED | E31: SELL | F31: 72,168 | G31: 37.2 | H31: BSE
A32: 2018-09-26 | B32: 532326 | C32: INTENTECH | D32: SASMEETA SRIVASTAVA | E32: BUY | F32: 240,000 | G32: 45 | H32: BSE
A33: 2018-09-26 | B33: 532326 | C33: INTENTECH | D33: UTSAV PRAMODKUMAR SHRIVASTAV | E33: SELL | F33: 240,000 | G33: 45 | H33: BSE
A34: 2018-09-26 | B34: 505737 | C34: INTLCOMBQ | D34: SASMEETA SRIVASTAVA | E34: BUY | F34: 24,000 | G34: 284.9 | H34: BSE
A35: 2018-09-26 | B35: 505737 | C35: INTLCOMBQ | D35: UTSAV PRAMODKUMAR SHRIVASTAV | E35: SELL | F35: 24,000 | G35: 284.9 | H35: BSE
A36: 2018-09-26 | B36: 522183 | C36: ITL | D36: SASMEETA SRIVASTAVA | E36: BUY | F36: 33,000 | G36: 175 | H36: BSE
A37: 2018-09-26 | B37: 522183 | C37: ITL | D37: UTSAV PRAMODKUMAR SHRIVASTAV | E37: SELL | F37: 33,000 | G37: 175 | H37: BSE
A38: 2018-09-26 | B38: 540812 | C38: KMSL | D38: LAXMAN VISHWAKARMA | E38: BUY | F38: 48,000 | G38: 12.25 | H38: BSE
A39: 2018-09-26 | B39: 540812 | C39: KMSL | D39: NNM SECURITIES PVT LTD | E39: SELL | F39: 144,000 | G39: 12.25 | H39: BSE
A40: 2018-09-26 | B40: 540812 | C40: KMSL | D40: NNM SECURITIES PVT LTD | E40: BUY | F40: 4,000 | G40: 11.65 | H40: BSE
A41: 2018-09-26 | B41: 540812 | C41: KMSL | D41: AMIT BHANWARLAL AGRAWAL | E41: BUY | F41: 96,000 | G41: 12.25 | H41: BSE
A42: 2018-09-26 | B42: 540416 | C42: OCTAWARE | D42: SAJANKUMAR RAMESHWARLAL BAJAJ | E42: SELL | F42: 28,800 | G42: 104.03 | H42: BSE
A43: 2018-09-26 | B43: 540416 | C43: OCTAWARE | D43: ARYAMAN BROKING LIMITED | E43: BUY | F43: 28,800 | G43: 104.03 | H43: BSE
A44: 2018-09-26 | B44: 541945 | C44: RANJEET | D44: BEELINE BROKING LIMITED | E44: SELL | F44: 48,000 | G44: 28.85 | H44: BSE
A45: 2018-09-26 | B45: 541945 | C45: RANJEET | D45: BEELINE BROKING LIMITED | E45: BUY | F45: 42,000 | G45: 28.85 | H45: BSE
A46: 2018-09-26 | B46: 541945 | C46: RANJEET | D46: MAHESHKUMAR KANTILAL SHAH | E46: BUY | F46: 54,000 | G46: 28.85 | H46: BSE
A47: 2018-09-26 | B47: 541945 | C47: RANJEET | D47: MAHESH K SHAH HUF | E47: BUY | F47: 54,000 | G47: 28.84 | H47: BSE
A48: 2018-09-26 | B48: 541945 | C48: RANJEET | D48: SWAPNIL MEHTA | E48: BUY | F48: 150,000 | G48: 28.74 | H48: BSE
A49: 2018-09-26 | B49: 541945 | C49: RANJEET | D49: ASHWIN STOCKS AND INVESTMENT PRIVATE LIMITED | E49: BUY | F49: 36,000 | G49: 28.85 | H49: BSE
A50: 2018-09-26 | B50: 541945 | C50: RANJEET | D50: Q-SERV CONSULTANTS PRIVATE LIMITED | E50: BUY | F50: 42,000 | G50: 27.66 | H50: BSE
A51: 2018-09-26 | B51: 538496 | C51: TARINI | D51: NEWEDGE VINIMAY PRIVATE LIMITED | E51: BUY | F51: 75,000 | G51: 13 | H51: BSE
A52: 2018-09-26 | B52: 538496 | C52: TARINI | D52: GUINESS CORPORATE ADVISORS PRIVATE LIMITED | E52: SELL | F52: 75,000 | G52: 13 | H52: BSE
A53: 2018-09-26 | B53: 539428 | C53: TEJNAKSH | D53: SASMEETA SRIVASTAVA | E53: BUY | F53: 104,880 | G53: 84.5 | H53: BSE
A54: 2018-09-26 | B54: 539428 | C54: TEJNAKSH | D54: UTSAV PRAMODKUMAR SHRIVASTAV | E54: SELL | F54: 104,880 | G54: 84.5 | H54: BSE
A55: 2018-09-26 | B55: 530109 | C55: VANTAGE | D55: SIDDHARTH PRAVINCHANDRA GALA | E55: BUY | F55: 346,300 | G55: 14.5 | H55: BSE
A56: 2018-09-26 | B56: 530109 | C56: VANTAGE | D56: NANJI LAKHAMSHI SHAH | E56: SELL | F56: 150,300 | G56: 14.5 | H56: BSE
A57: 2018-09-26 | B57: 530109 | C57: VANTAGE | D57: KIRTI LAKHAMSHI SHAH | E57: SELL | F57: 100,988 | G57: 14.5 | H57: BSE
A58: 2018-09-26 | B58: 530109 | C58: VANTAGE | D58: RUSHABH NANJI GALA | E58: SELL | F58: 95,000 | G58: 14.5 | H58: BSE
A59: 2018-09-26 | B59: 531518 | C59: VIKASPROP | D59: EKTA MITTAL | E59: BUY | F59: 1,500,000 | G59: 1.4 | H59: BSE
A60: 2018-09-26 | B60: 531518 | C60: VIKASPROP | D60: PUNEET | E60: SELL | F60: 3,300,000 | G60: 1.4 | H60: BSE
A61: 2018-09-26 | B61: 524711 | C61: VISTAPH | D61: ASAWARI VITTAL OTAWKAR | E61: BUY | F61: 405,000 | G61: 29.92 | H61: BSE
A62: 2018-09-26 | B62: 524711 | C62: VISTAPH | D62: APARNA SAMIR THAKKER | E62: SELL | F62: 405,000 | G62: 29.92 | H62: BSE
A63: 2018-09-26 | B63: ASTRAMICRO | C63: Astra Microwave Products | D63: ADVENTZ FINANCE PRIVATE LIMITED | E63: BUY | F63: 1,175,000 | G63: 85.55 | H63: NSE
A64: 2018-09-26 | B64: ASTRAMICRO | C64: Astra Microwave Products | D64: RATNABALI CAPITAL MARKETS PRIVATE LIMITED | E64: BUY | F64: 2,180,015 | G64: 86.13 | H64: NSE
A65: 2018-09-26 | B65: ASTRAMICRO | C65: Astra Microwave Products | D65: RATNABALI INVESTMENT PRIVATE LIMITED | E65: BUY | F65: 738,000 | G65: 85 | H65: NSE
A66: 2018-09-26 | B66: BALRAMCHIN | C66: Balrampur Chini Mills | D66: CROSSLAND TRADING CO | E66: BUY | F66: 1,308,175 | G66: 82.01 | H66: NSE
A67: 2018-09-26 | B67: BALRAMCHIN | C67: Balrampur Chini Mills | D67: SHAASTRA SECURITIES TRADING PRIVATE LIMITED | E67: BUY | F67: 1,714,869 | G67: 81.93 | H67: NSE
A68: 2018-09-26 | B68: DHFL | C68: Dewan Housing Fin Corp | D68: ALPHAGREP COMMODITIES PRIVATE LIMITED | E68: BUY | F68: 1,634,090 | G68: 302.7 | H68: NSE
A69: 2018-09-26 | B69: DHFL | C69: Dewan Housing Fin Corp | D69: BNP PARIBAS ARBITRAGE | E69: BUY | F69: 5,145,821 | G69: 297.87 | H69: NSE
A70: 2018-09-26 | B70: DHFL | C70: Dewan Housing Fin Corp | D70: GENUINE STOCK BROKERS PVT LTD | E70: BUY | F70: 1612995 | G70: 304.06 | H70: NSE
A71: 2018-09-26 | B71: DHFL | C71: Dewan Housing Fin Corp | D71: MRIDUL SINGHANIA | E71: BUY | F71: 1628000 | G71: 307.91 | H71: NSE
A72: 2018-09-26 | B72: DHFL | C72: Dewan Housing Fin Corp | D72: PURITY TRADEMAX LLP | E72: BUY | F72: 1737534 | G72: 304.34 | H72: NSE
A73: 2018-09-26 | B73: DHFL | C73: Dewan Housing Fin Corp | D73: VAIBHAV STOCK & DERIVATIVES BROKING PVT. LTD | E73: BUY | F73: 2743484 | G73: 304.43 | H73: NSE
A74: 2018-09-26 | B74: FELDVR | C74: Class B shares (Series 1) | D74: SHASHI AGRAWAL | E74: BUY | F74: 1400000 | G74: 40 | H74: NSE
A75: 2018-09-26 | B75: GSS | C75: GSS Infotech Limited | D75: AGARWAL ARCHANA | E75: BUY | F75: 128624 | G75: 109.32 | H75: NSE
A76: 2018-09-26 | B76: GSS | C76: GSS Infotech Limited | D76: ARCADIA SHARE & STOCK BROKERS PRIVATE LIMITED | E76: BUY | F76: 260328 | G76: 108.74 | H76: NSE
A77: 2018-09-26 | B77: GSS | C77: GSS Infotech Limited | D77: KHUSHBOO VANRAJ KAHOR | E77: BUY | F77: 90218 | G77: 108.76 | H77: NSE
A78: 2018-09-26 | B78: GSS | C78: GSS Infotech Limited | D78: SEEMA AGGARWAL | E78: BUY | F78: 185000 | G78: 108.55 | H78: NSE
A79: 2018-09-26 | B79: GSS | C79: GSS Infotech Limited | D79: SIRSA DEPOSITS AND ADVANCES LIMITED | E79: BUY | F79: 91000 | G79: 109.32 | H79: NSE
A80: 2018-09-26 | B80: ICSA | C80: ICSA (India) Limited | D80: DB INTERNATIONAL ASIA LIMITED | E80: BUY | F80: 264202 | G80: 1.2 | H80: NSE
A81: 2018-09-26 | B81: RCOM | C81: Reliance Comm. Ltd. | D81: SHAASTRA SECURITIES TRADING PRIVATE LIMITED | E81: BUY | F81: 19964187 | G81: 12.2 | H81: NSE
A82: 2018-09-26 | B82: SAKETH | C82: Saketh Exim Limited | D82: SAJANKUMAR RAMESHWARLAL BAJAJ | E82: BUY | F82: 42000 | G82: 71.43 | H82: NSE
A83: 2018-09-26 | B83: WINDMACHIN | C83: Windsor Machines Limited | D83: ADEQUATE STOCK ADVISOR PVT LTD | E83: BUY | F83: 500000 | G83: 73.75 | H83: NSE
A84: 2018-09-26 | B84: ASTRAMICRO | C84: Astra Microwave Products | D84: HDFC TRUSTEE COMPANY LIMITED - HDFC BALANCED ADVANTAGE FUND | E84: SELL | F84: 3487262 | G84: 85 | H84: NSE
A85: 2018-09-26 | B85: ASTRAMICRO | C85: Astra Microwave Products | D85: RATNABALI CAPITAL MARKETS PRIVATE LIMITED | E85: SELL | F85: 45706 | G85: 83.03 | H85: NSE
A86: 2018-09-26 | B86: BALRAMCHIN | C86: Balrampur Chini Mills | D86: CROSSLAND TRADING CO | E86: SELL | F86: 1308175 | G86: 82.04 | H86: NSE
A87: 2018-09-26 | B87: BALRAMCHIN | C87: Balrampur Chini Mills | D87: SHAASTRA SECURITIES TRADING PRIVATE LIMITED | E87: SELL | F87: 1714869 | G87: 81.97 | H87: NSE
A88: 2018-09-26 | B88: DHFL | C88: Dewan Housing Fin Corp | D88: ALPHAGREP COMMODITIES PRIVATE LIMITED | E88: SELL | F88: 1633461 | G88: 303.43 | H88: NSE
A89: 2018-09-26 | B89: DHFL | C89: Dewan Housing Fin Corp | D89: GENUINE STOCK BROKERS PVT LTD | E89: SELL | F89: 1612995 | G89: 304.51 | H89: NSE
A90: 2018-09-26 | B90: DHFL | C90: Dewan Housing Fin Corp | D90: PURITY TRADEMAX LLP | E90: SELL | F90: 1737534 | G90: 304.53 | H90: NSE
A91: 2018-09-26 | B91: DHFL | C91: Dewan Housing Fin Corp | D91: VAIBHAV STOCK & DERIVATIVES BROKING PVT. LTD | E91: SELL | F91: 2743484 | G91: 304.55 | H91: NSE
A92: 2018-09-26 | B92: FELDVR | C92: Class B shares (Series 1) | D92: RATNABALI CAPITAL MARKETS PRIVATE LIMITED | E92: SELL | F92: 885148 | G92: 40 | H92: NSE
A93: 2018-09-26 | B93: FELDVR | C93: Class B shares (Series 1) | D93: RATNABALI INVESTMENT PRIVATE LIMITED | E93: SELL | F93: 494690 | G93: 40 | H93: NSE
A94: 2018-09-26 | B94: GSS | C94: GSS Infotech Limited | D94: AGARWAL ARCHANA | E94: SELL | F94: 125779 | G94: 108.97 | H94: NSE
A95: 2018-09-26 | B95: GSS | C95: GSS Infotech Limited | D95: ARCADIA SHARE & STOCK BROKERS PRIVATE LIMITED | E95: SELL | F95: 268818 | G95: 108.67 | H95: NSE
A96: 2018-09-26 | B96: GSS | C96: GSS Infotech Limited | D96: KHUSHBOO VANRAJ KAHOR | E96: SELL | F96: 90218 | G96: 109.51 | H96: NSE
A97: 2018-09-26 | B97: GSS | C97: GSS Infotech Limited | D97: PROFIN COMMODITIES PRIVATE LIMITED | E97: SELL | F97: 185000 | G97: 108.4 | H97: NSE
A98: 2018-09-26 | B98: GSS | C98: GSS Infotech Limited | D98: SIRSA DEPOSITS AND ADVANCES LIMITED | E98: SELL | F98: 91000 | G98: 108.98 | H98: NSE
A99: 2018-09-26 | B99: ICSA | C99: ICSA (India) Limited | D99: DEUTSCHE SECURITIES MAURITIUS LIMITED | E99: SELL | F99: 264202 | G99: 1.2 | H99: NSE
A100: 2018-09-26 | B100: RCOM | C100: Reliance Comm. Ltd. | D100: SHAASTRA SECURITIES TRADING PRIVATE LIMITED | E100: SELL | F100: 19964187 | G100: 12.22 | H100: NSE
A101: 2018-09-26 | B101: WINDMACHIN | C101: Windsor Machines Limited | D101: AVTAR INSTALMENTS PRIVATE LIMITED | E101: SELL | F101: 499902 | G101: 73.75 | H101: NSE

Sheet Call Tracker (Equity & F&O)
M5: Back To Main Page
A6: Retail Research Technical Calls & Fundamental Performance Report for the month of September -2018
M7: =Main!B10 -> 2018-09-27
B8: Positional Call
A9: Sr.no | B9: Date | D9: Company | E9: Rec | F9: Rec Price | G9: Stop Loss*** | H9: Call Closed At | I9: Target | J9: Remark | K9: Profit / Loss per Share | L9: Gain / Loss % | M9: Status | N9: Closed Date | O9: NSE Closed Price
A10: 1 | B10: 2018-08-23 | D10: PARAGMILK | E10: Buy | F10: 304 | G10: 289.7 | H10: 289.7 | I10: 332-336 | J10: Loss of Rs. 14.30/- | K10: =H10-F10 -> -14.3 | L10: =K10/F10 -> -4.70% | M10: UnSuccessful | N10: 2018-09-06 | R10: R
A11: 2 | B11: 2018-08-31 | D11: SIEMENS | E11: Buy | F11: 995 | G11: 945 | H11: 950 | I11: 1085-1095 | J11: Loss of Rs. 45/- | K11: =H11-F11 -> -45 | L11: =K11/F11 -> -4.52% | M11: UnSuccessful | N11: 2018-09-21 | R11: R
A12: 3 | B12: 2018-08-31 | D12: SUNPHARMA | E12: Buy{} | F12: 651 | G12: 618 | H12: 661.75 | I12: 700-720 | J12: Profit of Rs.10.75/- | K12: =H12-F12 -> 10.75 | L12: =K12/F12 -> 1.65% | M12: Successful | N12: 2018-09-07 | R12: H
A13: 4 | B13: 2018-09-03 | D13: RECLTD | E13: Buy | F13: 121 | G13: 116 | H13: 116 | I13: 135-140 | J13: Loss of Rs. 5/- | K13: =H13-F13 -> -5 | L13: -4.13% | M13: UnSuccessful | N13: 2018-09-04 | R13: H
A14: 5 | B14: 2018-09-04 | D14: KPIT | E14: Sell | F14: 301 | G14: 315.3 | H14: 289.75 | I14: 275-270 | J14: Profit of Rs.11.25/- | K14: =F14-H14 -> 11.25 | L14: 3.74% | M14: Successful | N14: 2018-09-21 | R14: R
A15: 6 | B15: 2018-09-05 | D15: YESBANK | E15: Buy | F15: 335.5 | G15: 319 | H15: 347.5 | I15: 360 | J15: Profit of Rs.12/- | K15: =H15-F15 -> 12 | L15: 3.58% | M15: Successful | N15: 2018-09-06 | R15: H
A16: 7 | B16: 2018-09-06 | D16: HINDPETRO | E16: Buy | F16: 251 | G16: 238.7 | H16: 236.7 | I16: 272-276 | J16: Loss of Rs. 14.30/- | K16: -14.3 | L16: -5.70% | M16: UnSuccessful | N16: 2018-09-12 | R16: R
A17: 8 | B17: 2018-09-06 | D17: GRASIM | E17: Buy{} | F17: 1025 | G17: 985 | H17: 1065.75 | I17: 1100 | J17: Profit of Rs.40.75/- | K17: 40.75 | L17: 3.98% | M17: Successful | N17: 2018-09-18 | R17: H
A18: 9 | B18: 2018-09-06 | D18: INDIANB | E18: Buy{} | F18: 312 | G18: 298 | H18: 321.5 | I18: 330-335 | J18: Profit of Rs.9.5/- | K18: 9.5 | L18: 3.04% | M18: Successful | N18: 2018-09-10 | R18: H
A19: 10 | B19: 2018-09-06 | D19: BRITANNIA | E19: Buy | F19: 6130 | G19: 5865 | H19: 5800 | I19: 6600-6650 | J19: Loss of Rs. 330/- | K19: -330 | L19: =K19/F19 -> -5.38% | M19: UnSuccessful | N19: 2018-09-21 | R19: R
A20: 11 | B20: 2018-09-10 | D20: APOLLOTYRE | E20: Buy | F20: 249.5 | G20: 236.8 | H20: 236.8 | I20: 270-275 | J20: Loss of Rs. 12.7/- | K20: -12.7 | L20: -5.09% | M20: UnSuccessful | N20: 2018-09-11 | R20: R
A21: 12 | B21: 2018-09-10 | D21: AEGISCHEM | E21: Buy | F21: 215 | G21: 207.7 | H21: 217.5 | I21: 230-235 | J21: Profit of Rs.2.50/- | K21: 2.5 | L21: 1.16% | M21: Successful | N21: 2018-09-21 | R21: H
A22: 13 | B22: 2018-09-11 | D22: DALMIABHA | E22: Buy{} | F22: 2575 | G22: 2467 | H22: 2692.5 | I22: 2720-2750 | J22: Profit of Rs.117.5/- | K22: 117.5 | L22: 4.56% | M22: Successful | N22: 2018-09-14 | R22: R
A23: 14 | B23: 2018-09-11 | D23: TCS | E23: Sell | F23: 2062.5 | G23: 2130 | H23: 2150 | I23: 1980-1950 | J23: Loss of Rs. 87.5/- | K23: =H23-F23 -> 87.5 | L23: 4.24% | M23: UnSuccessful | N23: 2018-09-24 | R23: H
A24: 15 | B24: 2018-09-12 | D24: MARUTI | E24: Buy | F24: 8475 | G24: 8180 | H24: 8100 | I24: 9000-9100 | J24: Loss of Rs. 375/- | K24: -375 | L24: -4.42% | M24: UnSuccessful | N24: 2018-09-21 | R24: R
A25: 16 | B25: 2018-09-17 | D25: PVR | E25: Buy | F25: 1400 | G25: 1338.8 | H25: 1330 | I25: 1500-1530 | J25: Loss of Rs. 70/- | K25: -70 | L25: -5.00% | M25: UnSuccessful | N25: 2018-09-21 | R25: R
A26: 17 | B26: 2018-09-19 | D26: L&TFH | E26: Buy | F26: 148 | G26: 139 | H26: 141 | I26: 165 | J26: Loss of Rs. 7/- | K26: -7 | L26: -4.73% | M26: UnSuccessful | N26: 2018-09-21 | R26: H
A27: 18 | B27: 2018-09-19 | D27: CEATLTD | E27: Buy | F27: 1335 | G27: 1275 | H27: 1320 | I27: 1420-1450 | J27: Loss of Rs. 15/- | K27: -15 | L27: -1.12% | M27: UnSuccessful | N27: 2018-09-21 | R27: H
A28: 19 | B28: 2018-09-21 | D28: IGL | E28: Buy | F28: 252.5 | G28: 239 | H28: 249 | I28: 278-280 | J28: Loss of Rs. 3.50/- | K28: -3.5 | L28: -1.39% | M28: UnSuccessful | N28: 2018-09-21 | R28: H
A29: 20 | B29: 2018-09-24 | D29: SUNPHARMA | E29: Buy | F29: 630-635 | G29: 610 | I29: 670-680 | J29: Open | O29: =VLOOKUP(D29,Sheet2!$A$1:M2213,6,0) -> 639.85 | R29: H
A30: 21 | B30: 2018-09-24 | D30: GRASIM | E30: Buy{} | F30: 1020 | G30: 978 | H30: 1051 | I30: 1100-1140 | J30: Part Profit of Rs.31/- | K30: =H30-F30 -> 31 | L30: =K30/F30 -> 3.04% | M30: Successful | N30: 2018-09-24 | R30: H
A31: 22 | B31: 2018-09-25 | D31: RBLBANK | E31: Buy | F31: 522 | G31: 497 | H31: 538.5 | I31: 565-575 | J31: Profit of Rs.16.5/- | K31: 16.5 | L31: 3.16% | M31: Successful | N31: 2018-09-26 | R31: H
A32: 23 | B32: 2018-09-26 | D32: HINDALCO | E32: Sell | F32: 243-245 | G32: 257.3 | I32: 224-218 | J32: Open | O32: =VLOOKUP(D32,Sheet2!$A$1:M2216,6,0) -> 247.95 | R32: R
A33: 24 | B33: 2018-09-26 | D33: NIITTECH | E33: Buy | F33: 1195 | G33: 1144.4 | H33: 1144.4 | I33: 1280-1300 | J33: Loss of Rs. 50.6/- | K33: =H33-F33 -> -50.6 | L33: =K33/F33 -> -4.23% | M33: UnSuccessful | N33: 2018-09-26 | R33: R
A34: 25 | B34: 2018-09-26 | D34: SBIN | E34: Buy | F34: 265-267 | G34: 249.7 | I34: 285-295 | J34: Open | O34: =VLOOKUP(D34,Sheet2!$A$1:M2218,6,0) -> 263.85 | R34: R
A40: CLBS = Closing Basis *** | F40: Reinitiated $
A41: Dividend adjusted <> | F41: Revised stoploss #
A42: Part book {}
A43: Master Trade High Risk
A44: Sr.no | B44: Date | D44: Company | E44: Rec | F44: Rec Price | G44: Stop Loss | H44: Call Closed At | I44: Target | J44: Remark | K44: Profit / Loss per share | L44: Gain / Loss per Lot | M44: Lot | N44: Status | O44: Closed Date
A45: 1 | B45: 2018-09-11 | D45: BANKNIFTY SEP FUT | E45: Buy | F45: 27400 | G45: 27144 | H45: 27144 | I45: 27900-28000 | J45: Loss of Rs 256/- | K45: =H45-F45 -> -256 | L45: =M45*K45 -> -10240 | M45: 40 | N45: UnSuccessful | O45: 2018-09-11 | R45: R
A46: 2 | B46: 2018-09-19 | D46: NIFTY SEP FUT | E46: Buy | F46: 11275 | G46: 11170 | H46: 11355 | I46: 11450-11500 | J46: Profit of Rs 80/- | K46: =H46-F46 -> 80 | L46: =M46*K46 -> 3200 | M46: 40 | N46: Successful | O46: 2018-09-21 | R46: H
A54: Master Trade Medium Risk
A55: Sr.no | B55: Date | D55: Company | E55: Rec | F55: Rec Price | G55: Stop Loss | H55: Call Closed At | I55: Target | J55: Remark | K55: Profit/ Loss per lot | L55: Gain / Loss per Lot | M55: Lot | N55: Status | O55: Closed Date
A56: 1 | B56: 2018-09-03 | D56: NIFTY 11600 PE SEP | E56: Buy | F56: 108 | G56: 75 | H56: 148 | I56: 180 | J56: Profit of Rs.40/- | K56: =H56-F56 -> 40 | L56: =M56*K56 -> 3000 | M56: 75 | N56: Successful | O56: 2018-09-04 | R56: A
A57: 2 | B57: 2018-09-17 | D57: ZEEL SEP 480 CE | E57: Buy | F57: 6.25 | G57: 1.9 | H57: 9.25 | I57: 12.00-15.00 | J57: Profit of Rs.3/- | K57: =H57-F57 -> 3 | L57: =M57*K57 -> 3900 | M57: 1300 | N57: Successful | O57: 2018-09-17 | R57: H
A58: 3 | B58: 2018-09-21 | D58: TATAMOTORS SEP 260 CE | E58: Buy | F58: 3.00-3.60 | H58: 7.00-8.00 | J58: Open | R58: H
A59: 4 | B59: 2018-09-24 | D59: NIFTY SEP 11200 CE | E59: Buy | F59: 50.5 | G59: 18 | H59: 18 | I59: 100 | J59: Loss of Rs 32.5/- | K59: =H59-F59 -> -32.5 | L59: =M59*K59 -> -2437.5 | M59: 75 | N59: UnSuccessful | O59: 2018-09-24 | R59: H
A60: 5 | B60: 2018-09-26 | D60: NIFTY SEP 11150 CE | E60: Buy | F60: 33-35 | I60: 90 | J60: Open | R60: H
A61: 6 | B61: 2018-09-26 | D61: ZEEL SEP 450 CE | E61: Buy | F61: 2.75 | H61: 5 | I61: 7.00-8.00 | J61: Profit of Rs.2.25/- | K61: =H61-F61 -> 2.25 | L61: =M61*K61 -> 2925 | M61: 1300 | N61: Successful | O61: 2018-09-26 | R61: N
B68: Smart Delivery Trade
A69: Sr.no | B69: Date | D69: Company | E69: Rec | F69: Rec Price | G69: Stop Loss*** | H69: Call Closed At | I69: Target | J69: Remark | K69: Profit / Loss per Share | L69: Gain / Loss % | M69: Status | N69: Closed Date | O69: NSE Closed Price
A70: 1 | B70: 2018-08-21 | D70: M&M | E70: Sell | F70: 968.5 | G70: 1002 | H70: 947.5 | I70: 920-910 | J70: Profit of Rs. 21/- | K70: =F70-H70 -> 21 | L70: =K70/F70 -> 2.17% | M70: Successful | N70: 2018-09-04 | R70: H
A71: 2 | B71: 2018-08-23 | D71: CIPLA | E71: Buy | F71: 662.5 | G71: 638 | H71: 677 | I71: 695-710 | J71: Profit of Rs. 14.50/- | K71: =H71-F71 -> 14.5 | L71: 2.19% | M71: Successful | N71: 2018-09-19 | R71: H
A72: 3 | B72: 2018-08-24 | D72: COLPAL | E72: Buy | F72: 1169 | G72: 1122 | H72: 1110 | I72: 1260-1270 | J72: Loss of Rs. 59/- | K72: =H72-F72 -> -59 | L72: -5.05% | M72: UnSuccessful | N72: 2018-09-11 | R72: R
A73: 4 | B73: 2018-08-24 | D73: DMART | E73: Buy | F73: 1577.5 | G73: 1530 | H73: 1520 | I73: 1670-1680 | J73: Loss of Rs. 57.50/- | K73: =H73-F73 -> -57.5 | L73: -3.65% | M73: UnSuccessful | N73: 2018-09-10 | R73: R
A74: 5 | B74: 2018-08-30 | D74: CHOLAFIN | E74: Buy | F74: 1460 | G74: 1414.4 | H74: 1506.5 | I74: 1530-1540 | J74: Profit of Rs. 46.5/- | K74: =H74-F74 -> 46.5 | L74: 3.18% | M74: Successful | N74: 2018-09-03 | R74: R
A75: 6 | B75: 2018-08-31 | D75: IBULHSGFIN | E75: Buy | F75: 1272 | G75: 1238 | H75: 1227 | I75: 1330-1350 | J75: Loss of Rs. 45/- | K75: =H75-F75 -> -45 | L75: -3.54% | M75: UnSuccessful | N75: 2018-09-04 | R75: H
A76: 7 | B76: 2018-09-03 | D76: HINDALCO | E76: Sell | F76: 242 | G76: 251.3 | H76: 234.5 | I76: 225-220 | J76: Profit of Rs. 7.5/- | K76: =F76-H76 -> 7.5 | L76: 3.10% | M76: Successful | N76: 2018-09-04 | R76: R
A77: 8 | B77: 2018-09-04 | D77: ASIANPAINT | E77: Buy | F77: 1316 | G77: 1277.7 | H77: 1290 | I77: 1380-1400 | J77: Loss of Rs. 26/- | K77: =H77-F77 -> -26 | L77: -1.98% | M77: UnSuccessful | N77: 2018-09-21 | R77: R
A78: 9 | B78: 2018-09-05 | D78: ESCORTS | E78: Buy | F78: 799.5 | G78: 775 | H78: 772.5 | I78: 850-860 | J78: Loss of Rs. 27/- | K78: =H78-F78 -> -27 | L78: =K78/F78 -> -3.38% | M78: UnSuccessful | N78: 2018-09-11 | R78: H
A79: 10 | B79: 2018-09-05 | D79: TECHM | E79: Buy | F79: 757.5 | G79: 736 | H79: 774 | I79: 790-800 | J79: Profit of Rs. 16.5/- | K79: =H79-F79 -> 16.5 | L79: 2.18% | M79: Successful | N79: 2018-09-05 | R79: H
A80: 11 | B80: 2018-09-05 | D80: IRB | E80: Buy | F80: 174 | G80: 168 | H80: 180 | I80: 185 | J80: Profit of Rs. 6/- | K80: =H80-F80 -> 6 | L80: 3.45% | M80: Successful | N80: 2018-09-06 | R80: R
A81: 12 | B81: 2018-09-05 | D81: INDUSINDBK | E81: Buy | F81: 1831 | G81: 1774.4 | H81: 1885 | I81: 1920-1940 | J81: Profit of Rs. 54/- | K81: =H81-F81 -> 54 | L81: 2.95% | M81: Successful | N81: 2018-09-07 | R81: R
A82: 13 | B82: 2018-09-05 | D82: BALKRISIND | E82: Buy | F82: 1137.5 | G82: 1097.7 | H82: 1178 | I82: 1200-1220 | J82: Profit of Rs. 40.50/- | K82: =H82-F82 -> 40.5 | L82: 3.56% | M82: Successful | N82: 2018-09-06 | R82: R
A83: 14 | B83: 2018-09-06 | D83: IRB | E83: Sell | F83: 178 | G83: 185 | H83: 172.85 | I83: 168 | J83: Profit of Rs. 5.15/- | K83: =F83-H83 -> 5.15 | L83: 2.89% | M83: Successful | N83: 2018-09-06 | R83: H
A84: 15 | B84: 2018-09-06 | D84: EXIDEIND | E84: Buy | F84: 278.5 | G84: 269 | H84: 269 | I84: 295-300 | J84: Loss of Rs. 9.50/- | K84: =H84-F84 -> -9.5 | L84: -3.41% | M84: UnSuccessful | N84: 2018-09-11 | R84: H
A85: 16 | B85: 2018-09-06 | D85: MCDOWELL-N | E85: Buy | F85: 597.5 | G85: 578.7 | H85: 574.5 | I85: 630-640 | J85: Loss of Rs. 23/- | K85: =H85-F85 -> -23 | L85: =K85/F85 -> -3.85% | M85: UnSuccessful | N85: 2018-09-12 | R85: R
A86: 17 | B86: 2018-09-07 | D86: INDIGO | E86: Buy | F86: 892 | G86: 868 | H86: 916.5 | I86: 935-955 | J86: Profit of Rs. 24.50/- | K86: =H86-F86 -> 24.5 | L86: =K86/F86 -> 2.75% | M86: Successful | N86: 2018-09-07 | R86: H
A87: 18 | B87: 2018-09-07 | D87: HINDALCO | E87: Sell | F87: 242 | G87: 251.3 | H87: 234.5 | I87: 225-220 | J87: Profit of Rs. 7.5/- | K87: =F87-H87 -> 7.5 | L87: 3.10% | M87: Successful | N87: 2018-09-11 | R87: R
A88: 19 | B88: 2018-09-07 | D88: TATASTEEL | E88: Sell | F88: 617 | G88: 635 | H88: 598 | I88: 590-580 | J88: Profit of Rs. 19/- | K88: =F88-H88 -> 19 | L88: 3.08% | M88: Successful | N88: 2018-09-11 | R88: H
A89: 20 | B89: 2018-09-10 | D89: BERGERPAINT | E89: Buy | F89: 313 | G89: 304 | H89: 303 | I89: 328-332 | J89: Loss of Rs. 10/- | K89: =H89-F89 -> -10 | L89: -3.19% | M89: UnSuccessful | N89: 2018-09-10 | R89: H
A90: 21 | B90: 2018-09-11 | D90: IOC | E90: Buy | F90: 151 | G90: 146 | H90: 155.5 | I90: 158-160 | J90: Profit of Rs. 4.5/- | K90: =H90-F90 -> 4.5 | L90: 2.98% | M90: Successful | N90: 2018-09-14 | R90: H
A91: 22 | B91: 2018-09-12 | D91: NIITTECH | E91: Buy | F91: 1310 | G91: 1267.7 | H91: 1352.5 | I91: 1380-1400 | J91: Profit of Rs. 42.50/- | K91: =H91-F91 -> 42.5 | L91: 3.24% | M91: Successful | N91: 2018-09-17 | R91: R
A92: 23 | B92: 2018-09-12 | D92: M&M | E92: Buy | F92: 924 | G92: 895 | H92: 951.5 | I92: 970-980 | J92: Profit of Rs. 27.5/- | K92: =H92-F92 -> 27.5 | L92: 2.98% | M92: Successful | N92: 2018-09-14 | R92: H
A93: 24 | B93: 2018-09-14 | D93: M&MFIN | E93: Buy | F93: 438 | G93: 427 | H93: 450 | I93: 465-470 | J93: Profit of Rs. 12/- | K93: =H93-F93 -> 12 | L93: 2.74% | M93: Successful | N93: 2018-09-14 | R93: H
A94: 25 | B94: 2018-09-14 | D94: HINDALCO | E94: Sell | F94: 242.5 | G94: 251.3 | H94: 235.5 | I94: 225-220 | J94: Profit of Rs. 7/- | K94: =F94-H94 -> 7 | L94: =K94/F94 -> 2.89% | M94: Successful | N94: 2018-09-18 | R94: R
A95: 26 | B95: 2018-09-14 | D95: TATASTEEL | E95: Sell | F95: 619 | G95: 637 | H95: 637.5 | I95: 590-580 | J95: Loss of Rs. 18.50/- | K95: -18.5 | L95: -2.99% | M95: UnSuccessful | N95: 2018-09-21 | R95: H
A96: 27 | B96: 2018-09-14 | D96: JUBLFOOD | E96: Buy | F96: 1328.5 | G96: 1286.6 | H96: 1371.5 | I96: 1390-1410 | J96: Profit of Rs. 43/- | K96: =H96-F96 -> 43 | L96: =K96/F96 -> 3.24% | M96: Successful | N96: 2018-09-18 | R96: R
A97: 28 | B97: 2018-09-17 | D97: UPL | E97: Buy | F97: 732.5 | G97: 714 | H97: 709 | I97: 770-780 | J97: Loss of Rs. 23.5/- | K97: =H97-F97 -> -23.5 | L97: -3.21% | M97: UnSuccessful | N97: 2018-09-18 | R97: H
A98: 29 | B98: 2018-09-17 | D98: NTPC | E98: Buy | F98: 173 | G98: 167 | H98: 172.5 | I98: 180-182 | J98: Loss of Rs. 0.50/- | K98: =H98-F98 -> -0.5 | L98: -0.29% | M98: Neutral | N98: 2018-09-21 | R98: H
A99: 30 | B99: 2018-09-17 | D99: NILKAMAL | E99: Buy | F99: 1780 | G99: 1723.3 | H99: 1835 | I99: 1880-1900 | J99: Profit of Rs. 55/- | K99: =H99-F99 -> 55 | L99: =K99/F99 -> 3.09% | M99: Successful | N99: 2018-09-17 | R99: R
A100: 31 | B100: 2018-09-17 | D100: ESCORTS | E100: Buy | F100: 777.5 | G100: 758 | H100: 752 | I100: 810-820 | J100: Loss of Rs. 25.5/- | K100: =H100-F100 -> -25.5 | L100: =K100/F100 -> -3.28% | M100: UnSuccessful | N100: 2018-09-19 | R100: H
A101: 32 | B101: 2018-09-18 | D101: BALKRISIND | E101: Buy | F101: 1145 | G101: 1107.7 | H101: 1107.7 | I101: 1200-1220 | J101: Loss of Rs. 37.30/- | K101: =H101-F101 -> -37.3 | L101: =K101/F101 -> -3.26% | M101: UnSuccessful | N101: 2018-09-21 | R101: R
A102: 33 | B102: 2018-09-18 | D102: GODREJIND | E102: Buy | F102: 576.5 | G102: 558.7 | H102: 555 | I102: 605-615 | J102: Loss of Rs. 21.5/- | K102: -21.5 | L102: -3.73% | M102: UnSuccessful | N102: 2018-09-21 | R102: R
A103: 34 | B103: 2018-09-18 | D103: VOLTAS | E103: Buy | F103: 582 | G103: 563.7 | H103: 561.5 | I103: 610-620 | J103: Loss of Rs. 20.5/- | K103: -20.5 | L103: -3.52% | M103: UnSuccessful | N103: 2018-09-21 | R103: R
A104: 35 | B104: 2018-09-19 | D104: BERGEPAINT | E104: Buy | F104: 303.5 | G104: 292 | H104: 300 | I104: 320-325 | J104: Loss of Rs. 3.50/- | K104: -3.5 | L104: -1.15% | M104: UnSuccessful | N104: 2018-09-21 | R104: H
A105: 36 | B105: 2018-09-19 | D105: JUBLFOOD | E105: Buy | F105: 1335 | G105: 1286.6 | H105: 1286.7 | I105: 1410-1430 | J105: Loss of Rs. 48.3/- | K105: -48.3 | L105: -3.62% | M105: UnSuccessful | N105: 2018-09-21 | R105: R
A106: 37 | B106: 2018-09-19 | D106: NIITTECH | E106: Buy | F106: 1272.5 | G106: 1232.7 | H106: 1232.7 | I106: 1340-1360 | J106: Loss of Rs. 39.80/- | K106: -39.8 | L106: -3.13% | M106: UnSuccessful | N106: 2018-09-21 | R106: R
A107: 38 | B107: 2018-09-25 | D107: DABUR | E107: Buy | F107: 427 | G107: 417 | H107: 438 | I107: 450-460 | J107: Profit of Rs. 11/- | K107: =H107-F107 -> 11 | L107: =K107/F107 -> 2.58% | M107: Successful | N107: 2018-09-25 | R107: H
A108: 39 | B108: 2018-09-26 | D108: ARVIND | E108: Buy | F108: 345 | G108: 334.7 | H108: 358.5 | I108: 360-370 | J108: Profit of Rs. 13.5/- | K108: =H108-F108 -> 13.5 | L108: =K108/F108 -> 3.91% | M108: Successful | N108: 2018-09-26 | R108: R
A118: CLBS = Closing Basis *** | F118: Reinitiated $
A119: Dividend adjusted <> | F119: Revised stoploss #
B122: Momentum Call
A123: Sr.no | B123: Date | D123: Company | E123: Rec | F123: Rec Price | G123: Stop Loss | H123: Call Closed At | I123: Target | J123: Remark | K123: Profit / Loss per Share/Lot | L123: Gain / Loss % | M123: Gain / Loss per Lot | N123: Lot | O123: Status | P123: Closed Date | Q123: NSE Closed Price
A124: 1 | B124: 2018-08-31 | D124: TATAMOTORS SEP FUT | E124: Buy | F124: 266.5 | G124: 259 | H124: 272.5 | I124: 275-280 | J124: Profit of Rs. 6/- | K124: =H124-F124 -> 6 | M124: =K124*N124 -> 9000 | N124: 1500 | O124: Successful | P124: 2018-09-03 | R124: H
A125: 2 | B125: 2018-08-31 | D125: DIVISLAB SEP FUT | E125: Buy | F125: 1319 | G125: 1305 | H125: 1327.5 | I125: 1340-1345 | J125: Profit of Rs. 8.5/- | K125: =H125-F125 -> 8.5 | M125: 6800 | N125: 800 | O125: Successful | P125: 2018-09-03 | R125: N
A126: 3 | B126: 2018-09-03 | D126: GLENMARK SEP FUT | E126: Buy | F126: 675 | G126: 663 | H126: 663 | I126: 700 | J126: Loss of Rs. 12/- | K126: =H126-F126 -> -12 | M126: -12000 | N126: 1000 | O126: UnSuccessful | P126: 2018-09-04 | R126: N
A127: 4 | B127: 2018-09-03 | D127: IGL SEP FUT | E127: Buy | F127: 291 | G127: 286.5 | H127: 286.5 | I127: 300 | J127: Loss of Rs. 4.5/- | K127: =H127-F127 -> -4.5 | M127: -12375 | N127: 2750 | O127: UnSuccessful | P127: 2018-09-04 | R127: H
A128: 5 | B128: 2018-09-05 | D128: LT SEP FUT | E128: Sell | F128: 1363 | G128: 1377.7 | H128: 1351 | I128: 1340-1330 | J128: Profit of Rs. 12/- | K128: =F128-H128 -> 12 | M128: 9000 | N128: 750 | O128: Successful | P128: 2018-09-05 | R128: R
A129: 6 | B129: 2018-09-05 | D129: ARVIND SEP FUT | E129: Buy | F129: 377.5 | G129: 371.5 | H129: 381.5 | I129: 395 | J129: Profit of Rs. 4/- | K129: =H129-F129 -> 4 | M129: 8000 | N129: 2000 | O129: Successful | P129: 2018-09-05 | R129: N
A130: 7 | B130: 2018-09-05 | D130: DIVISLAB SEP FUT | E130: Buy | F130: 1279 | G130: 1264 | H130: 1293.5 | I130: 1300-1310 | J130: Profit of Rs. 14.5/- | K130: =H130-F130 -> 14.5 | M130: =K130*N130 -> 11600 | N130: 800 | O130: Successful | P130: 2018-09-06 | R130: N
A131: 8 | B131: 2018-09-06 | D131: INFRATEL SEP FUT | E131: Sell | F131: 277.5 | G131: 285 | H131: 270.5 | I131: 268-266 | J131: Profit of Rs. 7/- | K131: =F131-H131 -> 7 | M131: 11900 | N131: 1700 | O131: Successful | P131: 2018-09-06 | R131: H
A132: 9 | B132: 2018-09-06 | D132: TATAMOTORS SEP FUT | E132: Sell | F132: 268.5 | G132: 278 | H132: 278 | I132: 250 | J132: Loss of Rs. 9.5/- | K132: =H132-F132 -> 9.5 | M132: 14250 | N132: 1500 | O132: UnSuccessful | P132: 2018-09-07 | R132: R
A133: 10 | B133: 2018-09-06 | D133: HDFCBANK SEP FUT | E133: Buy | F133: 2062 | G133: 2044 | H133: 2044 | I133: 2100 | J133: Loss of Rs. 18/- | K133: =H133-F133 -> -18 | M133: -9000 | N133: 500 | O133: UnSuccessful | P133: 2018-09-10 | R133: H
A134: 11 | B134: 2018-09-07 | D134: INFRATEL SEP FUT | E134: Sell | F134: 276.5 | G134: 283 | H134: 273 | I134: 268-266 | J134: Profit of Rs. 3.5/- | K134: =F134-H134 -> 3.5 | M134: =K134*N134 -> 5950 | N134: 1700 | O134: Successful | P134: 2018-09-11 | R134: H
A135: 12 | B135: 2018-09-07 | D135: DHFL SEP FUT | E135: Buy | F135: 652.5 | G135: 644.7 | H135: 644.7 | I135: 665-670 | J135: Loss of Rs. 7.8/- | K135: =H135-F135 -> -7.8 | M135: =K135*N135 -> -11700 | N135: 1500 | O135: UnSuccessful | P135: 2018-09-10 | R135: R
A136: 13 | B136: 2018-09-10 | D136: NIFTY SEP FUT | E136: Buy | F136: 11505 | G136: 11457.7 | H136: 11457.7 | I136: 11580-11600 | J136: Loss of Rs. 47.3/- | K136: =H136-F136 -> -47.3 | M136: =K136*N136 -> -3547.5 | N136: 75 | O136: UnSuccessful | P136: 2018-09-11 | R136: R
A137: 14 | B137: 2018-09-11 | D137: BHARTIARTL SEP FUT | E137: Sell | F137: 387.5 | G137: 394 | H137: 382.5 | I137: 380-375 | J137: Profit of Rs. 5/- | K137: =F137-H137 -> 5 | M137: =K137*N137 -> 8500 | N137: 1700 | O137: Successful | P137: 2018-09-11 | R137: H
A138: 15 | B138: 2018-09-12 | D138: NIFTY SEP FUT | E138: Buy | F138: 11315 | G138: 11250 | H138: 11355 | I138: 11380-11420 | J138: Profit of Rs. 40/- | K138: =H138-F138 -> 40 | M138: =K138*N138 -> 3000 | N138: 75 | O138: Successful | P138: 2018-09-12 | R138: H
A139: 16 | B139: 2018-09-12 | D139: TATAMOTORS SEP FUT | E139: Buy | F139: 259.5 | G139: 252.5 | H139: 264.75 | I139: 275 | J139: Profit of Rs. 5.25/- | K139: =H139-F139 -> 5.25 | M139: =K139*N139 -> 7875 | N139: 1500 | O139: Successful | P139: 2018-09-12 | R139: R
A140: 17 | B140: 2018-09-12 | D140: DABUR | E140: Buy | F140: 454 | G140: 439 | H140: 465 | I140: 475-480 | J140: Profit of Rs. 11/- | K140: =H140-F140 -> 11 | L140: =K140/F140 -> 2.42% | O140: Successful | P140: 2018-09-14 | R140: H
A141: 18 | B141: 2018-09-17 | D141: ENGINERSIN | E141: Buy | F141: 130 | G141: 127 | H141: 134.75 | I141: 136 | J141: Profit of Rs. 4.75/- | K141: =H141-F141 -> 4.75 | L141: =K141/F141 -> 3.65% | O141: Successful | P141: 2018-09-17 | R141: H
A142: 19 | B142: 2018-09-17 | D142: M&MFIN | E142: Buy | F142: 447 | G142: 436 | H142: 434 | I142: 465-470 | J142: Loss of Rs. 13/- | K142: =H142-F142 -> -13 | L142: =K142/F142 -> -2.91% | O142: UnSuccessful | P142: 2018-09-19 | R142: H
A143: 20 | B143: 2018-09-17 | D143: AJANTPHARM SEP FUT | E143: Buy | F143: 1222.5 | G143: 1198 | H143: 1198 | I143: 1270-1280 | J143: Loss of Rs. 24.5/- | K143: =H143-F143 -> -24.5 | M143: =K143*N143 -> -12250 | N143: 500 | O143: UnSuccessful | P143: 2018-09-18 | R143: N
A144: 21 | B144: 2018-09-17 | D144: NIFTY SEP FUT | E144: Buy | F144: 11395 | G144: 11335 | H144: 11445 | I144: 11500-11520 | J144: Profit of Rs. 50/- | K144: 50 | M144: =K144*N144 -> 3750 | N144: 75 | O144: Successful | P144: 2018-09-17 | R144: H
A145: 22 | B145: 2018-09-17 | D145: UFLEX | E145: Buy | F145: 343.5 | G145: 334 | H145: 334 | I145: 365-370 | J145: Loss of Rs. 9.5/- | K145: -9.5 | L145: =K145/F145 -> -2.77% | O145: UnSuccessful | P145: 2018-09-18 | R145: H
A146: 23 | B146: 2018-09-17 | D146: IGL SEP FUT | E146: Buy | F146: 273.5 | G146: 268 | H146: 269 | I146: 282 | J146: Loss of Rs. 4.5/- | K146: -4.5 | M146: =K146*N146 -> -12375 | N146: 2750 | O146: UnSuccessful | P146: 2018-09-18 | R146: N
A147: 24 | B147: 2018-09-18 | D147: NIFTY SEP FUT | E147: Buy | F147: 11395 | G147: 11335 | H147: 11350 | I147: 11500-11520 | J147: Loss of Rs. 45/- | K147: -45 | M147: =K147*N147 -> -3375 | N147: 75 | O147: UnSuccessful | P147: 2018-09-18 | R147: H
A148: 25 | B148: 2018-09-18 | D148: DRREDDY SEP FUT | E148: Buy | F148: 2630 | G148: 2590 | H148: 2590 | I148: 2700 | J148: Loss of Rs. 40/- | K148: -40 | M148: =K148*N148 -> -10000 | N148: 250 | O148: UnSuccessful | P148: 2018-09-18 | R148: H
A149: 26 | B149: 2018-09-18 | D149: RAYMOND SEP FUT | E149: Buy | F149: 787 | G149: 772 | H149: 796.5 | I149: 810 | J149: Profit of Rs. 9.50/- | K149: 9.5 | M149: 7600 | N149: 800 | O149: Successful | P149: 2018-09-18 | R149: N
A150: 27 | B150: 2018-09-18 | D150: ARVIND SEP FUT | E150: Buy | F150: 385 | G150: 379 | H150: 388.5 | I150: 395-398 | J150: Profit of Rs. 3.50/- | K150: =H150-F150 -> 3.5 | M150: =K150*N150 -> 7000 | N150: 2000 | O150: Successful | P150: 2018-09-19 | R150: N
A151: 28 | B151: 2018-09-18 | D151: RAYMOND SEP FUT | E151: Buy | F151: 783.5 | G151: 768 | H151: 794.5 | I151: 810 | J151: Profit of Rs. 11/- | K151: 11 | M151: 8800 | N151: 800 | O151: Successful | P151: 2018-09-19 | R151: N
A152: 29 | B152: 2018-09-19 | D152: ARVIND SEP FUT | E152: Buy | F152: 379 | G152: 373 | H152: 384.5 | I152: 390-395 | J152: Profit of Rs. 5.50/- | K152: =H152-F152 -> 5.5 | M152: =K152*N152 -> 11000 | N152: 2000 | O152: Successful | P152: 2018-09-21 | R152: N
A153: 30 | B153: 2018-09-19 | D153: RAYMOND SEP FUT | E153: Buy | F153: 784 | G153: 768 | H153: 768 | I153: 810 | J153: Loss of Rs. 16/- | K153: -16 | M153: -12800 | N153: 800 | O153: UnSuccessful | P153: 2018-09-21 | R153: N
A154: 31 | B154: 2018-09-21 | D154: TATACHEM SEP FUT | E154: Buy | F154: 737 | G154: 722 | H154: 722 | I154: 760 | J154: Loss of Rs. 15/- | K154: =H154-F154 -> -15 | M154: =K154*N154 -> -11250 | N154: 750 | O154: UnSuccessful | P154: 2018-09-21 | R154: N
A155: 32 | B155: 2018-09-21 | D155: VEDL SEP FUT | E155: Buy | F155: 234 | G155: 228 | H155: 228 | I155: 242-245 | J155: Loss of Rs. 6/- | K155: =H155-F155 -> -6 | M155: =K155*N155 -> -10500 | N155: 1750 | O155: UnSuccessful | P155: 2018-09-21 | R155: H
A156: 33 | B156: 2018-09-21 | D156: IBULHSGFIN | E156: Buy | F156: 1145 | G156: 1118 | H156: 1118 | I156: 1200-1220 | J156: Loss of Rs. 27/- | K156: -27 | L156: =K156/F156 -> -2.36% | O156: UnSuccessful | P156: 2018-09-21 | R156: H
A157: 34 | B157: 2018-09-24 | D157: BPCL | E157: Buy | F157: 370 | G157: 362 | H157: 378 | I157: 380-385 | J157: Profit of Rs. 8/- | K157: =H157-F157 -> 8 | L157: =K157/F157 -> 2.16% | O157: Successful | P157: 2018-09-24 | R157: H
A158: 35 | B158: 2018-09-24 | D158: ASHOKLEY SEP FUT | E158: Buy | F158: 120.25 | G158: 117.25 | H158: 122.4 | I158: 126 | J158: Profit of Rs. 2.15/- | K158: =H158-F158 -> 2.15 | M158: =K158*N158 -> 8600 | N158: 4000 | O158: Successful | P158: 2018-09-24 | R158: N
A159: 36 | B159: 2018-09-24 | D159: MRPL | E159: Buy | F159: 74.9 | G159: 73 | H159: 73 | I159: 78-80 | J159: Loss of Rs. 1.9/- | K159: -1.9 | L159: =K159/F159 -> -2.54% | O159: UnSuccessful | P159: 2018-09-24 | R159: H
A160: 37 | B160: 2018-09-24 | D160: TATACHEM SEP FUT | E160: Buy | F160: 706 | G160: 692 | H160: 697 | I160: 730 | J160: Loss of Rs. 9/- | K160: -9 | M160: =K160*N160 -> -6750 | N160: 750 | O160: UnSuccessful | P160: 2018-09-25 | R160: N
A161: 38 | B161: 2018-09-25 | D161: M&M | E161: Buy | F161: 886 | G161: 868 | H161: 899 | I161: 910-920 | J161: Profit of Rs. 13/- | K161: =H161-F161 -> 13 | L161: =K161/F161 -> 1.47% | O161: Successful | P161: 2018-09-25 | R161: H
A162: 39 | B162: 2018-09-26 | D162: EXIDEIND OCT FUT | E162: Buy | F162: 258 | G162: 255 | H162: 260.75 | I162: 265 | J162: Profit of Rs. 2.75/- | K162: =H162-F162 -> 2.75 | M162: =K162*N162 -> 11000 | N162: 4000 | O162: Successful | P162: 2018-09-26 | R162: N
A163: 40 | B163: 2018-09-26 | D163: KOTAKBANK | E163: Buy | F163: 1170-1180 | G163: 1145 | I163: 1210-1220 | J163: Open | R163: H
A164: 41 | B164: 2018-09-26 | D164: RAYMOND OCT FUT | E164: Buy | F164: 728-731 | G164: 714 | I164: 755 | J164: Open | R164: N
A168: CLBS = Closing Basis ***
A169: Dividend adjusted <> | F169: Reinitiated $
F170: Revised stoploss #
B171: Quick Pick Intraday
A172: Sr.no | B172: Date | D172: Company | E172: Rec | F172: Rec Price | G172: Stop Loss*** | H172: Call Closed At | I172: Target | J172: Remark | K172: Profit / Loss per Share | L172: Status | M172: Closed Date
A173: 1 | B173: 2018-09-03 | D173: RELIANCE | E173: Buy | F173: 1254.5 | G173: 1238 | H173: 1238 | I173: 1280 | J173: Loss of Rs. 16.5/- | K173: =H173-F173 -> -16.5 | L173: Unsuccessful | M173: 2018-09-03 | R173: H
A174: 2 | B174: 2018-09-04 | D174: IRB | E174: Buy | F174: 184.5 | G174: 182.6 | H174: 182.6 | I174: 189-190 | J174: Loss of Rs. 1.9/- | K174: -1.9 | L174: Unsuccessful | M174: 2018-09-04 | R174: R
A175: 3 | B175: 2018-09-05 | D175: NIFTY | E175: Buy | F175: 11485 | G175: 11448 | H175: 11448 | I175: 11560 | J175: Loss of Rs. 37/- | K175: -37 | L175: Unsuccessful | M175: 2018-09-05 | R175: R
A176: 4 | B176: 2018-09-06 | D176: IGL | E176: Buy | F176: 276.5 | G176: 272.7 | H176: 272.7 | I176: 282-285 | J176: Loss of Rs. 3.8/- | K176: -3.8 | L176: Unsuccessful | M176: 2018-09-06 | R176: R
A177: 5 | B177: 2018-09-18 | D177: ADVENZYMES | E177: Buy | F177: 211 | G177: 206.7 | H177: 209 | I177: 217-220 | J177: Loss of Rs. 2/- | K177: -2 | L177: Unsuccessful | M177: 2018-09-18 | R177: R
A178: 6 | B178: 2018-09-26 | D178: BFUTILITIE | E178: Buy | F178: 265 | G178: 258 | H178: 261 | I178: 275 | J178: Loss of Rs. 4/- | K178: -4 | L178: Unsuccessful | M178: 2018-09-26 | R178: R
A186: Techno -Funda (positional)
A187: Sr.no | B187: Date | D187: Company | E187: Rec | F187: Rec Price | G187: Stop Loss*** | H187: Call Closed At | I187: Target | J187: Remark | K187: Profit / Loss per Share | L187: Gain / Loss % | M187: Status | N187: Closed Date | O187: NSE Closed Price
A188: 1 | B188: 2018-09-11 | D188: HEROMOTOCO | E188: Buy | F188: 3240-3260 | G188: 3030 | I188: 3650-3750 | J188: Open | O188: =VLOOKUP(D188,Sheet2!$A$1:M2323,6,0) -> 3100.05 | R188: H
A190: CLBS = Closing Basis *** | F190: Reinitiated $
A191: Dividend adjusted <> | F191: Revised stoploss #
B196: Investment Idea
A197: Sr.no | B197: Date | D197: Company | E197: Rec | F197: Rec Price | G197: Point of Review | H197: Close Rate | I197: Target | J197: Remark | K197: Profit / Loss per Share | L197: Gain / Loss % | M197: Status | N197: Closed Date
A198: 1 | B198: 2013-11-01 | D198: L&T Finance Holding | E198: Accu | F198: 82.00 | G198: - | H198: 100 | I198: 100.00 | J198: Target Achieved | K198: =H198-F198 -> 18.00 | L198: =K198/F198 -> 21.95% | M198: Successful | N198: 2016-10-14
A199: 2 | B199: 2014-06-04 | D199: Finolex Inds | E199: Buy | F199: 257.00 | G199: - | H199: 300 | I199: 300.00 | J199: Target Achieved | K199: =H199-F199 -> 43.00 | L199: 16.73% | M199: Successful | N199: 2014-07-02
A200: =1+A199 -> 3 | B200: 2014-07-08 | D200: JK Cement | E200: Buy | F200: 393.00 | G200: - | H200: 468 | I200: 468.00 | J200: Target Achieved | K200: =H200-F200 -> 75.00 | L200: 19.08% | M200: Successful | N200: 2014-08-12
A201: 4 | B201: 2014-08-06 | D201: Finolex Cables | E201: Buy | F201: 205.00 | G201: - | H201: 275 | I201: 250.00 | J201: Target Achieved | K201: 70.00 | L201: 34.15% | M201: Successful | N201: 2014-11-19
A202: 5 | B202: 2014-09-04 | D202: Exide Inds | E202: Buy | F202: 162.00 | G202: - | H202: 190 | I202: 190.00 | J202: Target Achieved | K202: 28.00 | L202: 17.28% | M202: Successful | N202: 2015-01-02
A203: 6 | B203: 2014-09-04 | D203: Deepak Nitrite | E203: Buy | F203: 75.00 | G203: - | H203: 91.5 | I203: 95-100 | J203: Profit of Rs.16.50/- | K203: 16.50 | L203: 22.00% | M203: Successful | N203: 2014-11-11
A204: 7 | B204: 2014-10-01 | D204: Mercks | E204: Buy | F204: 850.00 | G204: - | H204: 982.5 | I204: 1050.00 | J204: Profit of Rs.132.50/- | K204: 132.50 | L204: 15.59% | M204: Successful | N204: 2015-02-04
A205: 8 | B205: 2014-10-01 | D205: Grindwell Norton | E205: Buy | F205: 475.00 | G205: - | H205: 515 | I205: 600.00 | J205: Profit of Rs.40/- | K205: 40.00 | L205: 8.42% | M205: Successful | N205: 2014-10-27
A206: 9 | B206: 2014-10-01 | D206: Snowman Logistics | E206: Buy | F206: 86.00 | G206: - | H206: 99 | I206: 140.00 | J206: Profit of Rs.13.00/- | K206: 13.00 | L206: 15.12% | M206: Successful | N206: 2014-10-27
A207: 10 | B207: 2014-10-14 | D207: Birla Corp | E207: Buy | F207: 496.60 | G207: - | H207: 621 | I207: 580.00 | J207: Target Achieved | K207: 124.40 | L207: 25.05% | M207: Successful | N207: 2016-08-23
A208: 11 | B208: 2014-10-14 | D208: Ultratech Cem | E208: Buy | F208: 2481.90 | G208: - | H208: 2840 | I208: 2870.00 | J208: Profit of Rs.358.10/- | K208: 358.10 | L208: 14.43% | M208: Successful | N208: 2015-01-13
A209: =1+A206 -> 10 | B209: 2014-10-16 | D209: Sintex Inds | E209: Buy | F209: 84.50 | G209: - | H209: 93 | I209: 110.00 | J209: Profit of Rs.8.50/- | K209: 8.50 | L209: 10.06% | M209: Successful | N209: 2014-10-27
A210: =1+A209 -> 11 | B210: 2014-10-16 | D210: HSIL | E210: Buy | F210: 401.00 | G210: - | H210: 428 | I210: 450.00 | J210: Profit of Rs.27.00/- | K210: 27.00 | L210: 6.73% | M210: Successful | N210: 2015-01-16
A211: 12 | B211: 2014-10-16 | D211: Eveready Inds | E211: Buy | F211: 101.00 | G211: - | H211: 112 | I211: 120.00 | J211: Profit of Rs.11.00/- | K211: 11.00 | L211: 10.89% | M211: Successful | N211: 2014-10-27
A212: 13 | B212: 2014-11-11 | D212: Pennar Inds | E212: Buy | F212: 59.00 | G212: - | H212: 76 | I212: 76.00 | J212: Target Achieved | K212: 17.00 | L212: 28.81% | M212: Successful | N212: 2017-10-24
A213: 14 | B213: 2014-11-11 | D213: Snowman Logistics | E213: Buy | F213: 99.00 | G213: - | H213: 120 | I213: 120.00 | J213: Profit of Rs.21/- | K213: 21.00 | L213: 21.21% | M213: Successful | N213: 2014-11-17
A214: 15 | B214: 2014-11-13 | D214: Dharamsi Morarji Chem | E214: Buy | F214: 22.00 | G214: - | H214: 33.55 | I214: 32.00 | J214: Profit of Rs 11.55/- | K214: 11.55 | L214: 52.50% | M214: Successful | N214: 2015-07-03
A215: 16 | B215: 2014-12-03 | D215: Tatachem | E215: Buy | F215: 440.00 | G215: - | H215: 520 | I215: 520.00 | J215: Profit of Rs 80.00/- | K215: 80.00 | L215: 18.18% | M215: Successful | N215: 2015-07-23
A216: 17 | B216: 2014-12-03 | D216: Advanta | E216: Buy | F216: 360.00 | G216: - | H216: 427 | I216: 425.00 | J216: Profit of Rs.67.00/- | K216: 67.00 | L216: 18.61% | M216: Successful | N216: 2015-02-23
A217: 18 | B217: 2015-01-08 | D217: GDL | E217: Buy | F217: 360.00 | G217: - | H217: 455 | I217: 420.00 | J217: Profit of Rs.95.00/- | K217: 95.00 | L217: 26.39% | M217: Successful | N217: 2015-01-20
A218: 19 | B218: 2015-01-08 | D218: NRB Bearing | E218: Buy | F218: 130.00 | H218: 175.5 | I218: 165.00 | J218: Profit of Rs 45.50/- | K218: 45.50 | L218: 35.00% | M218: Successful | N218: 2017-12-19
A219: 20 | B219: 2015-02-05 | D219: GSFC | E219: Accu | F219: 98.00 | H219: 120 | I219: 120.00 | J219: Target Achieved | K219: 22.00 | L219: 22.45% | M219: Successful | N219: 2017-01-18
A220: 21 | B220: 2015-02-05 | D220: Sundrmfast | E220: Accu | F220: 196.00 | H220: 262 | I220: 255.00 | J220: Target Achieved | K220: 66.00 | L220: 33.67% | M220: Successful | N220: 2016-08-17
A221: 22 | B221: 2015-03-04 | D221: GPPL | E221: Accu | F221: 230-240 | I221: 280-285 | J221: Open
A222: 23 | B222: 2015-03-04 | D222: ORIENTCEM | E222: Accu | F222: 185.00 | H222: 224 | I222: 220-225 | J222: Target Achieved | K222: 39.00 | L222: =K222/F222 -> 21.08% | M222: Successful | N222: 2016-10-04
A223: 24 | B223: 2015-03-27 | D223: PFS | E223: Accu | F223: 49-50 | I223: 67.00 | J223: Open
A224: 25 | B224: 2015-03-30 | D224: Walchandnagar Ind Ltd | E224: Accu | F224: 183.50 | H224: 219 | I224: 218.00 | J224: Profit of Rs.35.50/- | K224: 35.50 | L224: =K224/F224 -> 19.35% | M224: Successful | N224: 2015-04-09
A225: 26 | B225: 2015-04-20 | D225: Kalpataru Power Transmission Ltd | E225: Accu | F225: =(227+237)/2 -> 232.00 | H225: 298 | I225: 298.00 | J225: Target Achieved | K225: 66.00 | L225: 28.45% | M225: Successful | N225: 2017-03-29
A226: 27 | B226: 2015-05-04 | D226: Mastek Ltd | E226: Buy | F226: 385.00 | H226: =212.5+331 -> 543.5 | I226: 510.00 | J226: Profit of Rs 158.50/- | K226: 158.50 | L226: 41.17% | M226: Successful | N226: 2015-08-19
A227: 28 | B227: 2015-05-04 | D227: Suprajit Eng | E227: Buy | F227: 115.50 | H227: 146 | I227: 142.00 | J227: Profit of Rs 30.50/- | K227: 30.50 | L227: 26.41% | M227: Successful | N227: 2015-07-17
A228: 29 | B228: 2015-05-27 | D228: TCI | E228: Buy | F228: 237.50 | H228: 279.5 | I228: 278.00 | J228: Target Achieved | K228: 42.00 | L228: 17.68% | M228: Successful | N228: 2015-08-06
A229: 30 | B229: 2015-06-19 | D229: HSIL | E229: Accu | F229: 340.00 | H229: 448 | I229: 448.00 | J229: Target Achieved | K229: 108.00 | L229: 31.76% | M229: Successful | N229: 2017-10-10
A230: 31 | B230: 2015-07-06 | D230: Capital First | E230: Accu | F230: 390.00 | H230: 460 | I230: 460.00 | J230: Target Achieved | K230: 70.00 | L230: 17.95% | M230: Successful | N230: 2016-04-18
A231: 32 | B231: 2015-07-10 | D231: Dolphin OffShore | E231: Accu | F231: 122.5 | H231: 61.00 | I231: 172.00 | J231: Loss of Rs.61.50/- | K231: -61.50 | L231: -50.20% | M231: Unsuccessful | N231: 2018-08-21
A232: 33 | B232: 2015-08-03 | D232: Allcargo logistics | E232: Accu | F232: 297.50 | H232: 350 | I232: 360.00 | J232: Profit of Rs 52.50/- | K232: 52.50 | L232: =K232/F232 -> 17.65% | M232: Successful | N232: 2015-08-16
A233: 34 | B233: 2015-08-03 | D233: Camline Fine | E233: Accu | F233: 115.50 | H233: 149 | I233: 140.00 | J233: Profit of Rs 33.50/- | K233: 33.50 | L233: 29.00% | M233: Successful | N233: 2017-01-05
A234: 35 | B234: 2015-09-04 | D234: TCI | E234: Accu | F234: 226.00 | H234: 292 | I234: 292.00 | J234: Target Achieved | K234: 66.00 | L234: 29.20% | M234: Successful | N234: 2015-10-09
A235: 36 | B235: 2015-09-07 | D235: Kalpataru Power Transmission Ltd | E235: Accu | F235: 232.50 | H235: 312.5 | I235: 310.00 | J235: Target Achieved | K235: 80.00 | L235: 34.41% | M235: Successful | N235: 2017-03-29
A236: 37 | B236: 2015-09-21 | D236: LLOYD ELECTRIC & ENG LTD | E236: Accu | F236: 196.50 | H236: 238 | I236: 238.00 | J236: Target Achieved | K236: 41.50 | L236: 21.12% | M236: Successful | N236: 2015-10-14
A237: 38 | B237: 2015-09-24 | D237: L&T Finance Holding | E237: Accu | F237: 65.00 | H237: 82 | I237: 82.00 | J237: Target Achieved | K237: 17.00 | L237: 26.15% | M237: Successful | N237: 2016-07-27
A238: 39 | B238: 2015-10-14 | D238: KEC International ltd | E238: Accu | F238: 144.00 | H238: 182.5 | I238: 181.00 | J238: Target Achieved | K238: 38.50 | L238: 26.74% | M238: Successful | N238: 2017-03-23
A239: 40 | B239: 2015-10-14 | D239: Gruh Finance | E239: Accu | F239: 264.00 | H239: 311 | I239: 311.00 | J239: Target Achieved | K239: 47.00 | L239: 17.80% | M239: Successful | N239: 2016-08-22
A240: 41 | B240: 2015-11-10 | D240: Pidilitind | E240: Buy | F240: 549.50 | H240: 630 | I240: 630.00 | J240: Target Achieved | K240: 80.50 | L240: 14.65% | M240: Successful | N240: 2016-02-19
A241: 42 | B241: 2015-12-04 | D241: Zensar Technology | E241: Accu | F241: 1027.50 | H241: 1315 | I241: 1250.00 | J241: Target Achieved | K241: =H241-F241 -> 287.50 | L241: 27.98% | M241: Successful | N241: 2018-05-24
A242: 43 | B242: 2015-12-29 | D242: Vinati Organics Ltd | E242: Accu | F242: 465.00 | H242: 540 | I242: 540.00 | J242: Target Achieved | K242: 75.00 | L242: =K242/F242 -> 16.13% | M242: Successful | N242: 2016-06-09
A243: 44 | B243: 2016-01-11 | D243: GSFC | E243: Buy | F243: 81.00 | H243: 110 | I243: 110.00 | J243: Target Achieved | K243: 29.00 | L243: 35.80% | M243: Successful | N243: 2017-01-10
A244: 45 | B244: 2016-01-13 | D244: SSWL | E244: Buy | F244: 417.50 | H244: 547 | I244: 535.00 | J244: Target Achieved | K244: 129.50 | L244: 31.02% | M244: Successful | N244: 2016-07-27
A245: 46 | B245: 2016-02-08 | D245: Persistent System Ltd | E245: Accu | F245: 650.00 | H245: 800 | I245: 800.00 | J245: Target Achieved | K245: 150.00 | L245: 23.08% | M245: Successful | N245: 2018-02-23
A246: 47 | B246: 2016-03-04 | D246: UPL | E246: Accu | F246: 437.50 | H246: 504.5 | I246: 522.00 | J246: Profit of Rs.67/- | K246: 67.00 | L246: 15.31% | M246: Successful | N246: 2016-04-20
A247: 48 | B247: 2016-03-09 | D247: Ashoka Buildcon Ltd | E247: Accu | F247: 189.50 | H247: 218 | I247: 218.00 | J247: Target Achieved | K247: 28.50 | L247: 15.04% | M247: Successful | N247: 2017-10-26
A248: 49 | B248: 2016-04-11 | D248: PTC INDIA FIN SERV LTD | E248: Accu | F248: 36-37 | I248: 60.00 | J248: Open
... 86 more rows

Sheet Sheet2 (hidden)
A1: SYMBOL | B1: SERIES | C1: OPEN | D1: HIGH | E1: LOW | F1: CLOSE | G1: LAST | H1: PREVCLOSE | I1: TOTTRDQTY | J1: TOTTRDVAL | K1: TIMESTAMP | L1: TOTALTRADES | M1: ISIN | N1: ISIN
A2: 20MICRONS | B2: EQ | C2: 44.2 | D2: 48.8 | E2: 44.2 | F2: 46.4 | G2: 46.3 | H2: 44.2 | I2: 174792 | J2: 8177648.35 | K2: 2018-09-26 | L2: 1753 | M2: INE144J01027
A3: 21STCENMGM | B3: EQ | C3: 29.95 | D3: 31 | E3: 29.95 | F3: 29.95 | G3: 29.95 | H3: 30.55 | I3: 730 | J3: 21885.95 | K3: 2018-09-26 | L3: 12 | M3: INE253B01015
A4: 3IINFOTECH | B4: EQ | C4: 3.65 | D4: 3.7 | E4: 3.45 | F4: 3.45 | G4: 3.45 | H4: 3.6 | I4: 3197014 | J4: 11304765.5 | K4: 2018-09-26 | L4: 991 | M4: INE748C01020
A5: 3MINDIA | B5: EQ | C5: 23312.05 | D5: 23656.7 | E5: 22802.1 | F5: 22879.1 | G5: 22850 | H5: 23127 | I5: 1343 | J5: 31078375.55 | K5: 2018-09-26 | L5: 795 | M5: INE470A01017
A6: 3PLAND | B6: BE | C6: 11.45 | D6: 11.45 | E6: 11.45 | F6: 11.45 | G6: 11.45 | H6: 11.5 | I6: 2000 | J6: 22900 | K6: 2018-09-26 | L6: 1 | M6: INE105C01023
A7: 5PAISA | B7: EQ | C7: 248.95 | D7: 248.95 | E7: 230.05 | F7: 244.95 | G7: 248.6 | H7: 238.75 | I7: 4505 | J7: 1092351.4 | K7: 2018-09-26 | L7: 310 | M7: INE618L01018
A8: 63MOONS | B8: EQ | C8: 71.1 | D8: 73.05 | E8: 69.4 | F8: 70.3 | G8: 70.1 | H8: 72.05 | I8: 189308 | J8: 13489132.3 | K8: 2018-09-26 | L8: 2255 | M8: INE111B01023
A9: 8KMILES | B9: BE | C9: 211.95 | D9: 211.95 | E9: 211.95 | F9: 211.95 | G9: 211.95 | H9: 223.1 | I9: 16759 | J9: 3552070.05 | K9: 2018-09-26 | L9: 483 | M9: INE650K01021
A10: A2ZINFRA | B10: EQ | C10: 16.6 | D10: 16.6 | E10: 15.7 | F10: 15.8 | G10: 15.8 | H10: 16 | I10: 385113 | J10: 6165124.3 | K10: 2018-09-26 | L10: 926 | M10: INE619I01012
A11: AARTIDRUGS | B11: EQ | C11: 574.2 | D11: 597.55 | E11: 574.2 | F11: 589.15 | G11: 585 | H11: 570.7 | I11: 14398 | J11: 8483803.8 | K11: 2018-09-26 | L11: 865 | M11: INE767A01016
A12: AARTIIND | B12: EQ | C12: 1249.7 | D12: 1249.7 | E12: 1186.25 | F12: 1198.45 | G12: 1199.25 | H12: 1229.05 | I12: 41142 | J12: 49439506.55 | K12: 2018-09-26 | L12: 3631 | M12: INE769A01020
A13: AARVEEDEN | B13: EQ | C13: 26.05 | D13: 28.4 | E13: 25.35 | F13: 26.4 | G13: 26.25 | H13: 26.45 | I13: 29443 | J13: 784174.3 | K13: 2018-09-26 | L13: 160 | M13: INE273D01019
A14: ABAN | B14: EQ | C14: 89 | D14: 92 | E14: 87.2 | F14: 88.2 | G14: 87.9 | H14: 88.15 | I14: 538214 | J14: 47686290.55 | K14: 2018-09-26 | L14: 6784 | M14: INE421A01028
A15: ABB | B15: EQ | C15: 1443.2 | D15: 1470 | E15: 1419.65 | F15: 1436 | G15: 1440 | H15: 1429.05 | I15: 106689 | J15: 154835598.2 | K15: 2018-09-26 | L15: 10964 | M15: INE117A01022
A16: ABBOTINDIA | B16: EQ | C16: 8168 | D16: 8200 | E16: 7864.45 | F16: 7934.95 | G16: 7900 | H16: 8102.75 | I16: 7160 | J16: 57394426.05 | K16: 2018-09-26 | L16: 2212 | M16: INE358A01014
A17: ABCAPITAL | B17: EQ | C17: 120.1 | D17: 121.5 | E17: 118.25 | F17: 119.45 | G17: 119.45 | H17: 119.55 | I17: 1146982 | J17: 137275453.3 | K17: 2018-09-26 | L17: 12762 | M17: INE674K01013
A18: ABFRL | B18: EQ | C18: 184.1 | D18: 188 | E18: 180.1 | F18: 184.4 | G18: 184.7 | H18: 182.55 | I18: 345016 | J18: 63401105.9 | K18: 2018-09-26 | L18: 6361 | M18: INE647O01011
A19: ABMINTLTD | B19: BE | C19: 18.95 | D19: 18.95 | E19: 18.95 | F19: 18.95 | G19: 18.95 | H19: 18.95 | I19: 48 | J19: 909.6 | K19: 2018-09-26 | L19: 2 | M19: INE251C01017
A20: ACC | B20: EQ | C20: 1570.8 | D20: 1592.1 | E20: 1550 | F20: 1582.15 | G20: 1585.1 | H20: 1563.8 | I20: 589965 | J20: 929755750.4 | K20: 2018-09-26 | L20: 17716 | M20: INE012A01025
A21: ACCELYA | B21: EQ | C21: 1049.4 | D21: 1050 | E21: 1035 | F21: 1040.4 | G21: 1038 | H21: 1049.4 | I21: 6691 | J21: 6973252 | K21: 2018-09-26 | L21: 505 | M21: INE793A01012
A22: ACE | B22: EQ | C22: 105.1 | D22: 107.05 | E22: 100.5 | F22: 103.8 | G22: 104.8 | H22: 105.15 | I22: 168576 | J22: 17388617.4 | K22: 2018-09-26 | L22: 2884 | M22: INE731H01025
A23: ADANIENT | B23: EQ | C23: 140.4 | D23: 142.5 | E23: 133.7 | F23: 136.5 | G23: 135.5 | H23: 138.35 | I23: 6768299 | J23: 925271624.6 | K23: 2018-09-26 | L23: 31886 | M23: INE423A01024
A24: ADANIGREEN | B24: EQ | C24: 46.45 | D24: 46.75 | E24: 44.6 | F24: 45.2 | G24: 45.3 | H24: 44.55 | I24: 757920 | J24: 34854797.15 | K24: 2018-09-26 | L24: 4251 | M24: INE364U01010
A25: ADANIPORTS | B25: EQ | C25: 340.5 | D25: 344.9 | E25: 330.6 | F25: 338.55 | G25: 338 | H25: 337.95 | I25: 3424347 | J25: 1157629425 | K25: 2018-09-26 | L25: 66899 | M25: INE742F01042
A26: ADANIPOWER | B26: EQ | C26: 25.2 | D26: 26.6 | E26: 24.7 | F26: 26 | G26: 25.65 | H26: 25 | I26: 19034630 | J26: 484496408.1 | K26: 2018-09-26 | L26: 19247 | M26: INE814H01011
A27: ADANITRANS | B27: EQ | C27: 172.65 | D27: 174.8 | E27: 167.15 | F27: 172.45 | G27: 172.25 | H27: 172.25 | I27: 306381 | J27: 52675812.2 | K27: 2018-09-26 | L27: 8083 | M27: INE931S01010
A28: ADFFOODS | B28: EQ | C28: 232.4 | D28: 234.55 | E28: 228.35 | F28: 231.75 | G28: 231.15 | H28: 231.3 | I28: 22164 | J28: 5102178.1 | K28: 2018-09-26 | L28: 470 | M28: INE982B01019
A29: ADHUNIK | B29: BE | C29: 2.8 | D29: 2.8 | E29: 2.7 | F29: 2.75 | G29: 2.8 | H29: 2.8 | I29: 29724 | J29: 81318.6 | K29: 2018-09-26 | L29: 50 | M29: INE400H01019
A30: ADHUNIKIND | B30: EQ | C30: 61.25 | D30: 64.55 | E30: 58.5 | F30: 60.5 | G30: 60.5 | H30: 63.7 | I30: 13582 | J30: 817317.15 | K30: 2018-09-26 | L30: 110 | M30: INE452L01012
A31: ADLABS | B31: EQ | C31: 23.55 | D31: 25.4 | E31: 23.4 | F31: 23.7 | G31: 23.7 | H31: 22.95 | I31: 404923 | J31: 9784236.4 | K31: 2018-09-26 | L31: 2317 | M31: INE172N01012
A32: ADORWELD | B32: EQ | C32: 304 | D32: 324.95 | E32: 301.05 | F32: 317.15 | G32: 324.95 | H32: 301.85 | I32: 5150 | J32: 1583013.55 | K32: 2018-09-26 | L32: 366 | M32: INE045A01017
A33: ADROITINFO | B33: BE | C33: 26.1 | D33: 26.1 | E33: 25.75 | F33: 25.75 | G33: 25.75 | H33: 27.1 | I33: 2249 | J33: 57931.1 | K33: 2018-09-26 | L33: 12 | M33: INE737B01033
A34: ADSL | B34: EQ | C34: 14.85 | D34: 15.3 | E34: 14.15 | F34: 14.25 | G34: 14.2 | H34: 14.55 | I34: 11300 | J34: 163514.35 | K34: 2018-09-26 | L34: 76 | M34: INE102I01027
A35: ADVANIHOTR | B35: EQ | C35: 45.25 | D35: 46.25 | E35: 44.95 | F35: 45.8 | G35: 45.05 | H35: 44.75 | I35: 14760 | J35: 665814.5 | K35: 2018-09-26 | L35: 73 | M35: INE199C01026
A36: ADVENZYMES | B36: EQ | C36: 201 | D36: 201.85 | E36: 194 | F36: 194.65 | G36: 194.5 | H36: 198.15 | I36: 98110 | J36: 19305516.15 | K36: 2018-09-26 | L36: 2754 | M36: INE837H01020
A37: AEGISCHEM | B37: EQ | C37: 203.55 | D37: 205.6 | E37: 196 | F37: 199.75 | G37: 199.15 | H37: 202.35 | I37: 136121 | J37: 27279843.1 | K37: 2018-09-26 | L37: 8702 | M37: INE208C01025
A38: AFL | B38: EQ | C38: 72 | D38: 74.55 | E38: 70.55 | F38: 72.6 | G38: 73 | H38: 71.85 | I38: 29069 | J38: 2103850.45 | K38: 2018-09-26 | L38: 292 | M38: INE020G01017
A39: AGARIND | B39: EQ | C39: 239.15 | D39: 254 | E39: 239.15 | F39: 250.1 | G39: 254 | H39: 246.25 | I39: 7714 | J39: 1928159.1 | K39: 2018-09-26 | L39: 34 | M39: INE204E01012
A40: AGCNET | B40: EQ | C40: 78 | D40: 78.15 | E40: 74.05 | F40: 74.55 | G40: 74.05 | H40: 78 | I40: 9767 | J40: 745456.35 | K40: 2018-09-26 | L40: 117 | M40: INE676A01019
A41: AGLSL | B41: EQ | C41: 71 | D41: 73 | E41: 68.45 | F41: 72.85 | G41: 73 | H41: 70.95 | I41: 10291 | J41: 721664.6 | K41: 2018-09-26 | L41: 40 | M41: INE517U01013
A42: AGRITECH | B42: EQ | C42: 58.95 | D42: 62 | E42: 58.5 | F42: 61.25 | G42: 61.45 | H42: 58.35 | I42: 14872 | J42: 904909.65 | K42: 2018-09-26 | L42: 290 | M42: INE449G01018
A43: AHLEAST | B43: EQ | C43: 260 | D43: 266 | E43: 258 | F43: 259.55 | G43: 266 | H43: 259.35 | I43: 801 | J43: 208939.2 | K43: 2018-09-26 | L43: 37 | M43: INE926K01017
A44: AHLUCONT | B44: EQ | C44: 294.75 | D44: 294.75 | E44: 283.25 | F44: 284.4 | G44: 284 | H44: 287.65 | I44: 1179 | J44: 339451.2 | K44: 2018-09-26 | L44: 144 | M44: INE758C01029
A45: AHLWEST | B45: EQ | C45: 290.05 | D45: 297.95 | E45: 290.05 | F45: 297.95 | G45: 297.95 | H45: 290 | I45: 95 | J45: 27909.85 | K45: 2018-09-26 | L45: 4 | M45: INE915K01010
A46: AIAENG | B46: EQ | C46: 1740 | D46: 1789 | E46: 1737 | F46: 1763.35 | G46: 1759.85 | H46: 1738.45 | I46: 15336 | J46: 26945209.85 | K46: 2018-09-26 | L46: 2747 | M46: INE212H01026
A47: AIFL | B47: EQ | C47: 432.6 | D47: 435.65 | E47: 428.05 | F47: 431.9 | G47: 430 | H47: 430.05 | I47: 164539 | J47: 70956646.3 | K47: 2018-09-26 | L47: 1820 | M47: INE428O01016
A48: AIONJSW | B48: BE | C48: 30.95 | D48: 30.95 | E48: 30.95 | F48: 30.95 | G48: 30.95 | H48: 29.5 | I48: 6861 | J48: 212347.95 | K48: 2018-09-26 | L48: 53 | M48: INE743C01021
A49: AJANTPHARM | B49: EQ | C49: 1120 | D49: 1131 | E49: 1093.55 | F49: 1114.45 | G49: 1113.8 | H49: 1109.45 | I49: 275687 | J49: 307526320.8 | K49: 2018-09-26 | L49: 7836 | M49: INE031B01049
A50: AJMERA | B50: EQ | C50: 170.25 | D50: 185 | E50: 166.6 | F50: 174.9 | G50: 174 | H50: 169.05 | I50: 129703 | J50: 23010074.55 | K50: 2018-09-26 | L50: 3407 | M50: INE298G01027
A51: AKSHARCHEM | B51: EQ | C51: 482 | D51: 498.65 | E51: 472 | F51: 475.8 | G51: 472 | H51: 489.1 | I51: 2218 | J51: 1067772.2 | K51: 2018-09-26 | L51: 253 | M51: INE542B01011
A52: AKSHOPTFBR | B52: EQ | C52: 26.05 | D52: 27.65 | E52: 25.85 | F52: 26.95 | G52: 26.85 | H52: 25.75 | I52: 3225190 | J52: 86970048.6 | K52: 2018-09-26 | L52: 9324 | M52: INE523B01011
A53: AKZOINDIA | B53: EQ | C53: 1636.7 | D53: 1656 | E53: 1616.95 | F53: 1635.65 | G53: 1627 | H53: 1637.95 | I53: 2887 | J53: 4732903.4 | K53: 2018-09-26 | L53: 455 | M53: INE133A01011
A54: ALANKIT | B54: EQ | C54: 19.2 | D54: 19.95 | E54: 17.55 | F54: 19.1 | G54: 19.5 | H54: 18 | I54: 2186795 | J54: 41510085.6 | K54: 2018-09-26 | L54: 1913 | M54: INE914E01040
A55: ALBERTDAVD | B55: EQ | C55: 635 | D55: 647.95 | E55: 591.2 | F55: 599.65 | G55: 595.2 | H55: 621.3 | I55: 28423 | J55: 17632351.3 | K55: 2018-09-26 | L55: 1581 | M55: INE155C01010
A56: ALBK | B56: EQ | C56: 38.1 | D56: 38.2 | E56: 37.1 | F56: 37.35 | G56: 37.25 | H56: 37.75 | I56: 4042749 | J56: 151477018.3 | K56: 2018-09-26 | L56: 8594 | M56: INE428A01015
A57: ALCHEM | B57: BE | C57: 4.65 | D57: 4.9 | E57: 4.65 | F57: 4.75 | G57: 4.7 | H57: 4.7 | I57: 7164 | J57: 33739.15 | K57: 2018-09-26 | L57: 14 | M57: INE964B01033
A58: ALEMBICLTD | B58: EQ | C58: 43.1 | D58: 45.5 | E58: 42.9 | F58: 45 | G58: 45 | H58: 42.75 | I58: 501104 | J58: 22211967.4 | K58: 2018-09-26 | L58: 3329 | M58: INE426A01027
A59: ALICON | B59: EQ | C59: 694.05 | D59: 720 | E59: 690 | F59: 709.55 | G59: 705 | H59: 696 | I59: 3038 | J59: 2146629.45 | K59: 2018-09-26 | L59: 226 | M59: INE062D01024
A60: ALKALI | B60: EQ | C60: 61 | D60: 63 | E60: 61 | F60: 61.4 | G60: 61.15 | H60: 61.05 | I60: 2969 | J60: 183214.25 | K60: 2018-09-26 | L60: 77 | M60: INE773I01017
A61: ALKEM | B61: EQ | C61: 2082 | D61: 2097.55 | E61: 2043 | F61: 2069 | G61: 2070 | H61: 2060.55 | I61: 16395 | J61: 33920219.6 | K61: 2018-09-26 | L61: 2734 | M61: INE540L01014
A62: ALKYLAMINE | B62: EQ | C62: 607.15 | D62: 609 | E62: 603.3 | F62: 604.85 | G62: 603.35 | H62: 604.85 | I62: 1488 | J62: 899494.8 | K62: 2018-09-26 | L62: 65 | M62: INE150B01021
A63: ALLCARGO | B63: EQ | C63: 109 | D63: 109.85 | E63: 106.3 | F63: 107.3 | G63: 107.1 | H63: 107.95 | I63: 180270 | J63: 19467773.5 | K63: 2018-09-26 | L63: 2249 | M63: INE418H01029
A64: ALLSEC | B64: EQ | C64: 280 | D64: 280 | E64: 261.05 | F64: 264.8 | G64: 262.2 | H64: 272.35 | I64: 3839 | J64: 1027221.8 | K64: 2018-09-26 | L64: 338 | M64: INE835G01018
A65: ALMONDZ | B65: BE | C65: 33.8 | D65: 33.8 | E65: 30.7 | F65: 31.05 | G65: 31 | H65: 32.3 | I65: 3872 | J65: 127238.85 | K65: 2018-09-26 | L65: 18 | M65: INE326B01027
A66: ALOKTEXT | B66: BE | C66: 3.4 | D66: 3.45 | E66: 3.35 | F66: 3.35 | G66: 3.4 | H66: 3.5 | I66: 1313600 | J66: 4423780.85 | K66: 2018-09-26 | L66: 1202 | M66: INE270A01011
A67: ALPA | B67: EQ | C67: 29.5 | D67: 29.8 | E67: 28 | F67: 28.6 | G67: 28.8 | H67: 28.6 | I67: 17927 | J67: 513378.9 | K67: 2018-09-26 | L67: 114 | M67: INE385I01010
A68: ALPHAGEO | B68: EQ | C68: 564.8 | D68: 591 | E68: 564 | F68: 569.55 | G68: 570 | H68: 564.85 | I68: 8055 | J68: 4643853.65 | K68: 2018-09-26 | L68: 1022 | M68: INE137C01018
A69: ALPSINDUS | B69: BE | C69: 2.85 | D69: 3.05 | E69: 2.85 | F69: 2.9 | G69: 2.85 | H69: 2.95 | I69: 42666 | J69: 125308.95 | K69: 2018-09-26 | L69: 35 | M69: INE093B01015
A70: AMARAJABAT | B70: EQ | C70: 768 | D70: 792.85 | E70: 765.1 | F70: 786.45 | G70: 786.25 | H70: 768 | I70: 532443 | J70: 416779337.2 | K70: 2018-09-26 | L70: 19658 | M70: INE885A01032
A71: AMBER | B71: EQ | C71: 931 | D71: 939.05 | E71: 929.8 | F71: 932 | G71: 932 | H71: 929.8 | I71: 5965 | J71: 5555340.25 | K71: 2018-09-26 | L71: 442 | M71: INE371P01015
A72: AMBIKCO | B72: EQ | C72: 1234.95 | D72: 1249.2 | E72: 1230 | F72: 1234.95 | G72: 1235 | H72: 1226.9 | I72: 783 | J72: 968660.95 | K72: 2018-09-26 | L72: 205 | M72: INE540G01014
A73: AMBUJACEM | B73: EQ | C73: 227.65 | D73: 229.2 | E73: 223.45 | F73: 226.1 | G73: 226 | H73: 225.65 | I73: 2420982 | J73: 548771543.4 | K73: 2018-09-26 | L73: 24061 | M73: INE079A01024
A74: AMDIND | B74: EQ | C74: 20.5 | D74: 21.25 | E74: 20.3 | F74: 20.65 | G74: 20.9 | H74: 20.65 | I74: 5267 | J74: 107921.35 | K74: 2018-09-26 | L74: 27 | M74: INE005I01014
A75: AMJLAND | B75: EQ | C75: 22.25 | D75: 22.65 | E75: 21.8 | F75: 22.05 | G75: 22.2 | H75: 22.1 | I75: 15930 | J75: 353305.45 | K75: 2018-09-26 | L75: 58 | M75: INE606A01024
A76: AMRUTANJAN | B76: EQ | C76: 260.8 | D76: 268.5 | E76: 255.05 | F76: 263.05 | G76: 264 | H76: 258.2 | I76: 19529 | J76: 5099778.85 | K76: 2018-09-26 | L76: 1018 | M76: INE098F01031
A77: ANANTRAJ | B77: EQ | C77: 41.45 | D77: 41.45 | E77: 39.85 | F77: 40.6 | G77: 40.55 | H77: 40.45 | I77: 421360 | J77: 17127178.75 | K77: 2018-09-26 | L77: 3408 | M77: INE242C01024
A78: ANDHRABANK | B78: EQ | C78: 30.6 | D78: 30.9 | E78: 29.05 | F78: 30.25 | G78: 30.3 | H78: 30.6 | I78: 7095184 | J78: 211560217.7 | K78: 2018-09-26 | L78: 10867 | M78: INE434A01013
A79: ANDHRACEMT | B79: EQ | C79: 7.15 | D79: 7.2 | E79: 6.9 | F79: 6.95 | G79: 7.05 | H79: 7.05 | I79: 119673 | J79: 838733.55 | K79: 2018-09-26 | L79: 234 | M79: INE666E01012
A80: ANDHRSUGAR | B80: EQ | C80: 382 | D80: 388 | E80: 360.05 | F80: 363.25 | G80: 360.05 | H80: 375.75 | I80: 204915 | J80: 76437720.75 | K80: 2018-09-26 | L80: 5726 | M80: INE715B01013
A81: ANGIND | B81: BE | C81: 2.5 | D81: 2.5 | E81: 2.35 | F81: 2.5 | G81: 2.5 | H81: 2.45 | I81: 1147 | J81: 2712.1 | K81: 2018-09-26 | L81: 9 | M81: INE017D01010
A82: ANIKINDS | B82: EQ | C82: 27.25 | D82: 27.9 | E82: 26.6 | F82: 27.55 | G82: 27.7 | H82: 26.8 | I82: 4140 | J82: 112849.55 | K82: 2018-09-26 | L82: 49 | M82: INE087B01017
A83: ANKITMETAL | B83: BE | C83: 0.55 | D83: 0.55 | E83: 0.55 | F83: 0.55 | G83: 0.55 | H83: 0.6 | I83: 1394 | J83: 766.7 | K83: 2018-09-26 | L83: 13 | M83: INE106I01010
A84: ANSALAPI | B84: EQ | C84: 12.4 | D84: 12.85 | E84: 11.75 | F84: 11.9 | G84: 11.9 | H84: 12.1 | I84: 150646 | J84: 1827686.2 | K84: 2018-09-26 | L84: 503 | M84: INE436A01026
A85: ANSALHSG | B85: EQ | C85: 12.6 | D85: 12.7 | E85: 11.05 | F85: 11.55 | G85: 11.5 | H85: 11.75 | I85: 57640 | J85: 681889.8 | K85: 2018-09-26 | L85: 226 | M85: INE880B01015
A86: ANTGRAPHIC | B86: BE | C86: 0.45 | D86: 0.5 | E86: 0.45 | F86: 0.5 | G86: 0.5 | H86: 0.5 | I86: 13264 | J86: 6529.45 | K86: 2018-09-26 | L86: 13 | M86: INE414B01021
A87: APARINDS | B87: EQ | C87: 582.5 | D87: 602.65 | E87: 582.5 | F87: 598.5 | G87: 598.2 | H87: 585 | I87: 13492 | J87: 8026275.15 | K87: 2018-09-26 | L87: 356 | M87: INE372A01015
A88: APCL | B88: EQ | C88: 140 | D88: 141.9 | E88: 134 | F88: 135.2 | G88: 135.9 | H88: 134.8 | I88: 622 | J88: 84566.1 | K88: 2018-09-26 | L88: 25 | M88: INE071F01012
A89: APCOTEXIND | B89: EQ | C89: 585 | D89: 598.5 | E89: 585 | F89: 595.15 | G89: 592.05 | H89: 587.85 | I89: 5050 | J89: 2984232.7 | K89: 2018-09-26 | L89: 316 | M89: INE116A01024
A90: APEX | B90: EQ | C90: 354.05 | D90: 363.05 | E90: 352 | F90: 358.65 | G90: 358.9 | H90: 351.3 | I90: 55578 | J90: 19855577.05 | K90: 2018-09-26 | L90: 1916 | M90: INE346W01013
A91: APLAPOLLO | B91: EQ | C91: 1469 | D91: 1475 | E91: 1380 | F91: 1396.55 | G91: 1398 | H91: 1453.3 | I91: 24218 | J91: 34154635.5 | K91: 2018-09-26 | L91: 2308 | M91: INE702C01019
A92: APLLTD | B92: EQ | C92: 636 | D92: 659 | E92: 636 | F92: 649.05 | G92: 650 | H92: 647.4 | I92: 203536 | J92: 132324842.7 | K92: 2018-09-26 | L92: 6760 | M92: INE901L01018
A93: APOLLO | B93: EQ | C93: 129 | D93: 135.95 | E93: 128 | F93: 129.3 | G93: 129.05 | H93: 129.15 | I93: 16610 | J93: 2153951.6 | K93: 2018-09-26 | L93: 589 | M93: INE713T01010
A94: APOLLOHOSP | B94: EQ | C94: 1049 | D94: 1060 | E94: 1032 | F94: 1043.3 | G94: 1039 | H94: 1046.1 | I94: 668783 | J94: 698599289.5 | K94: 2018-09-26 | L94: 20668 | M94: INE437A01024
A95: APOLLOTYRE | B95: EQ | C95: 235 | D95: 235 | E95: 226.55 | F95: 228.3 | G95: 227.9 | H95: 231.1 | I95: 2397083 | J95: 550430696.9 | K95: 2018-09-26 | L95: 32170 | M95: INE438A01022
A96: APOLSINHOT | B96: EQ | C96: 1350 | D96: 1350 | E96: 1261.4 | F96: 1263 | G96: 1263 | H96: 1260.3 | I96: 61 | J96: 79412.15 | K96: 2018-09-26 | L96: 19 | M96: INE451F01016
A97: APTECHT | B97: EQ | C97: 175 | D97: 178.05 | E97: 171.35 | F97: 173.65 | G97: 173.5 | H97: 175.9 | I97: 217393 | J97: 37830667.9 | K97: 2018-09-26 | L97: 7960 | M97: INE266F01018
A98: ARCHIDPLY | B98: EQ | C98: 48.5 | D98: 48.5 | E98: 45.7 | F98: 46 | G98: 45.8 | H98: 47.2 | I98: 13493 | J98: 630348 | K98: 2018-09-26 | L98: 162 | M98: INE877I01016
A99: ARCHIES | B99: EQ | C99: 26.45 | D99: 26.75 | E99: 25.65 | F99: 26.15 | G99: 26.5 | H99: 25.9 | I99: 22326 | J99: 583682.6 | K99: 2018-09-26 | L99: 178 | M99: INE731A01020
A100: ARCOTECH | B100: BE | C100: 12 | D100: 12.4 | E100: 11.4 | F100: 11.4 | G100: 11.4 | H100: 12 | I100: 213130 | J100: 2440279.05 | K100: 2018-09-26 | L100: 284 | M100: INE574I01035
A101: ARIES | B101: EQ | C101: 101 | D101: 102.55 | E101: 99.55 | F101: 100 | G101: 99.6 | H101: 100 | I101: 23719 | J101: 2385135.4 | K101: 2018-09-26 | L101: 311 | M101: INE298I01015
A102: ARIHANT | B102: EQ | C102: 31.25 | D102: 35 | E102: 31.25 | F102: 32.9 | G102: 32.9 | H102: 33.9 | I102: 101 | J102: 3374.7 | K102: 2018-09-26 | L102: 14 | M102: INE413D01011
A103: ARIHANTSUP | B103: EQ | C103: 69.9 | D103: 78 | E103: 65.6 | F103: 66.2 | G103: 66 | H103: 65.3 | I103: 26259 | J103: 1778893.3 | K103: 2018-09-26 | L103: 793 | M103: INE643K01018
A104: ARMANFIN | B104: EQ | C104: 363 | D104: 373 | E104: 345.05 | F104: 368.6 | G104: 372 | H104: 350 | I104: 5329 | J104: 1904889.75 | K104: 2018-09-26 | L104: 121 | M104: INE109C01017
A105: AROGRANITE | B105: EQ | C105: 53.95 | D105: 55 | E105: 53.35 | F105: 53.6 | G105: 53.8 | H105: 53.6 | I105: 10425 | J105: 562929.15 | K105: 2018-09-26 | L105: 130 | M105: INE210C01013
A106: ARROWGREEN | B106: EQ | C106: 117.05 | D106: 128.5 | E106: 117.05 | F106: 118.5 | G106: 118.95 | H106: 123.1 | I106: 10050 | J106: 1200521.25 | K106: 2018-09-26 | L106: 229 | M106: INE570D01018
A107: ARROWTEX | B107: EQ | C107: 28.1 | D107: 28.95 | E107: 28.1 | F107: 28.2 | G107: 28.1 | H107: 28.1 | I107: 8205 | J107: 231413.95 | K107: 2018-09-26 | L107: 36 | M107: INE933J01015
A108: ARSHIYA | B108: EQ | C108: 36.05 | D108: 39.6 | E108: 36.05 | F108: 38.35 | G108: 38.25 | H108: 36.15 | I108: 208569 | J108: 7980591.6 | K108: 2018-09-26 | L108: 1315 | M108: INE968D01022
A109: ARSSINFRA | B109: EQ | C109: 24.9 | D109: 25.95 | E109: 24.4 | F109: 25.4 | G109: 25.9 | H109: 25.65 | I109: 19787 | J109: 494531.35 | K109: 2018-09-26 | L109: 109 | M109: INE267I01010
A110: ARVIND | B110: EQ | C110: 343.5 | D110: 358.75 | E110: 343.5 | F110: 352.2 | G110: 352.7 | H110: 344.75 | I110: 2724729 | J110: 958676669.9 | K110: 2018-09-26 | L110: 41673 | M110: INE034A01011
A111: ARVSMART | B111: EQ | C111: 134.75 | D111: 136 | E111: 133 | F111: 133.65 | G111: 133.5 | H111: 134.75 | I111: 12600 | J111: 1691641.4 | K111: 2018-09-26 | L111: 145 | M111: INE034S01021
A112: ASAHIINDIA | B112: EQ | C112: 326.05 | D112: 338 | E112: 324.5 | F112: 335.95 | G112: 337.25 | H112: 325.4 | I112: 22216 | J112: 7342770.2 | K112: 2018-09-26 | L112: 392 | M112: INE439A01020
A113: ASAHISONG | B113: EQ | C113: 259.25 | D113: 272 | E113: 250.3 | F113: 254.9 | G113: 254.2 | H113: 254.2 | I113: 3145 | J113: 818394 | K113: 2018-09-26 | L113: 180 | M113: INE228I01012
A114: ASAL | B114: EQ | C114: 53.05 | D114: 53.05 | E114: 50.6 | F114: 50.85 | G114: 51 | H114: 51.5 | I114: 5502 | J114: 283043.8 | K114: 2018-09-26 | L114: 96 | M114: INE900C01027
A115: ASHAPURMIN | B115: EQ | C115: 35 | D115: 35 | E115: 33.5 | F115: 34.65 | G115: 35 | H115: 34.55 | I115: 48131 | J115: 1663012.8 | K115: 2018-09-26 | L115: 355 | M115: INE348A01023
A116: ASHIANA | B116: EQ | C116: 134.6 | D116: 139.2 | E116: 133.95 | F116: 136.7 | G116: 138.8 | H116: 134.2 | I116: 34008 | J116: 4611770.65 | K116: 2018-09-26 | L116: 980 | M116: INE365D01021
A117: ASHIMASYN | B117: EQ | C117: 16.3 | D117: 17 | E117: 16.25 | F117: 16.6 | G117: 16.5 | H117: 16.4 | I117: 42329 | J117: 701794.05 | K117: 2018-09-26 | L117: 234 | M117: INE440A01010
A118: ASHOKA | B118: EQ | C118: 120 | D118: 120 | E118: 111.1 | F118: 113.9 | G118: 113 | H118: 116.8 | I118: 307034 | J118: 35045651.55 | K118: 2018-09-26 | L118: 6043 | M118: INE442H01029
A119: ASHOKLEY | B119: EQ | C119: 122.25 | D119: 123.3 | E119: 119.5 | F119: 120.65 | G119: 120.55 | H119: 121.9 | I119: 11082330 | J119: 1341451789 | K119: 2018-09-26 | L119: 48363 | M119: INE208A01029
A120: ASIANHOTNR | B120: EQ | C120: 201.05 | D120: 201.05 | E120: 200.05 | F120: 200.15 | G120: 200.05 | H120: 201.3 | I120: 127 | J120: 25421.1 | K120: 2018-09-26 | L120: 7 | M120: INE363A01022
A121: ASIANPAINT | B121: EQ | C121: 1300 | D121: 1303.5 | E121: 1274 | F121: 1282 | G121: 1280 | H121: 1289.9 | I121: 1338324 | J121: 1717295637 | K121: 2018-09-26 | L121: 51746 | M121: INE021A01026
A122: ASIANTILES | B122: EQ | C122: 214.8 | D122: 214.8 | E122: 200.15 | F122: 202.55 | G122: 202.15 | H122: 211.8 | I122: 30649 | J122: 6316991.55 | K122: 2018-09-26 | L122: 1444 | M122: INE022I01019
A123: ASPINWALL | B123: EQ | C123: 200 | D123: 211 | E123: 200 | F123: 211 | G123: 211 | H123: 200 | I123: 4430 | J123: 927462.65 | K123: 2018-09-26 | L123: 60 | M123: INE991I01015
A124: ASSAMCO | B124: BE | C124: 3.55 | D124: 3.55 | E124: 3.55 | F124: 3.55 | G124: 3.55 | H124: 3.7 | I124: 236268 | J124: 838751.4 | K124: 2018-09-26 | L124: 109 | M124: INE442A01024
A125: ASTEC | B125: EQ | C125: 560 | D125: 568.1 | E125: 540 | F125: 545 | G125: 541 | H125: 550.9 | I125: 19708 | J125: 10810737.25 | K125: 2018-09-26 | L125: 1493 | M125: INE563J01010
A126: ASTERDM | B126: EQ | C126: 156.05 | D126: 160.9 | E126: 156 | F126: 159.45 | G126: 160.7 | H126: 155.45 | I126: 26694 | J126: 4236985.7 | K126: 2018-09-26 | L126: 1680 | M126: INE914M01019
A127: ASTRAL | B127: EQ | C127: 1000 | D127: 1040 | E127: 972.3 | F127: 989.6 | G127: 973.25 | H127: 1008.5 | I127: 54413 | J127: 53821243.5 | K127: 2018-09-26 | L127: 4042 | M127: INE006I01046
A128: ASTRAMICRO | B128: EQ | C128: 86.3 | D128: 97.05 | E128: 81.45 | F128: 91.95 | G128: 95.05 | H128: 86.1 | I128: 5747004 | J128: 501010328.5 | K128: 2018-09-26 | L128: 11817 | M128: INE386C01029
A129: ASTRAZEN | B129: EQ | C129: 1661 | D129: 1708.8 | E129: 1661 | F129: 1688.6 | G129: 1680.5 | H129: 1660.05 | I129: 7726 | J129: 13031425.6 | K129: 2018-09-26 | L129: 1043 | M129: INE203A01020
A130: ASTRON | B130: EQ | C130: 127.15 | D130: 129.15 | E130: 122.35 | F130: 124 | G130: 123 | H130: 126.1 | I130: 200404 | J130: 25258717.2 | K130: 2018-09-26 | L130: 2757 | M130: INE646X01014
A131: ATFL | B131: EQ | C131: 619.15 | D131: 630 | E131: 610 | F131: 618.95 | G131: 618.4 | H131: 614.25 | I131: 4259 | J131: 2640175.9 | K131: 2018-09-26 | L131: 387 | M131: INE209A01019
A132: ATLANTA | B132: EQ | C132: 31.25 | D132: 32.2 | E132: 29.3 | F132: 30.2 | G132: 30.75 | H132: 30.7 | I132: 43262 | J132: 1335747.8 | K132: 2018-09-26 | L132: 519 | M132: INE285H01022
A133: ATUL | B133: EQ | C133: 3100.05 | D133: 3257.95 | E133: 3100.05 | F133: 3225.5 | G133: 3200.05 | H133: 3150.55 | I133: 10907 | J133: 35029295.1 | K133: 2018-09-26 | L133: 1623 | M133: INE100A01010
A134: ATULAUTO | B134: EQ | C134: 342 | D134: 345.45 | E134: 337.05 | F134: 337.6 | G134: 337.05 | H134: 341.7 | I134: 16550 | J134: 5618249.75 | K134: 2018-09-26 | L134: 1902 | M134: INE951D01028
A135: AUBANK | B135: EQ | C135: 628.3 | D135: 634.9 | E135: 613.3 | F135: 617.8 | G135: 614.9 | H135: 623.65 | I135: 441370 | J135: 275101951.6 | K135: 2018-09-26 | L135: 18218 | M135: INE949L01017
A136: AURIONPRO | B136: EQ | C136: 168 | D136: 170 | E136: 160.35 | F136: 164.6 | G136: 162.55 | H136: 172.1 | I136: 15235 | J136: 2504643.85 | K136: 2018-09-26 | L136: 329 | M136: INE132H01018
A137: AUROPHARMA | B137: EQ | C137: 768.5 | D137: 785.1 | E137: 755.1 | F137: 759.1 | G137: 759.6 | H137: 761.05 | I137: 4947221 | J137: 3803127391 | K137: 2018-09-26 | L137: 102826 | M137: INE406A01037
A138: AUSOMENT | B138: EQ | C138: 57.05 | D138: 58.6 | E138: 55.1 | F138: 55.65 | G138: 55.1 | H138: 57.6 | I138: 1801 | J138: 101941.05 | K138: 2018-09-26 | L138: 61 | M138: INE218C01016
A139: AUTOAXLES | B139: EQ | C139: 1334.8 | D139: 1349.55 | E139: 1292 | F139: 1312.2 | G139: 1312 | H139: 1320.75 | I139: 14629 | J139: 19343792.6 | K139: 2018-09-26 | L139: 1377 | M139: INE449A01011
A140: AUTOIND | B140: EQ | C140: 74 | D140: 74 | E140: 70.45 | F140: 71.55 | G140: 71.9 | H140: 70.6 | I140: 90419 | J140: 6531873.85 | K140: 2018-09-26 | L140: 1086 | M140: INE718H01014
A141: AUTOLITIND | B141: EQ | C141: 49.45 | D141: 50.5 | E141: 45 | F141: 46.35 | G141: 45.05 | H141: 48.85 | I141: 29616 | J141: 1401598.5 | K141: 2018-09-26 | L141: 247 | M141: INE448A01013
A142: AVADHSUGAR | B142: EQ | C142: 540.5 | D142: 546.8 | E142: 482.2 | F142: 492.8 | G142: 485.05 | H142: 521.65 | I142: 515817 | J142: 265101003.1 | K142: 2018-09-26 | L142: 18572 | M142: INE349W01017
A143: AVANTIFEED | B143: EQ | C143: 411.95 | D143: 418.35 | E143: 406 | F143: 408.9 | G143: 410.4 | H143: 408.3 | I143: 644550 | J143: 264875057.1 | K143: 2018-09-26 | L143: 12252 | M143: INE871C01038
A144: AVTNPL | B144: EQ | C144: 28.25 | D144: 29.2 | E144: 28 | F144: 28.5 | G144: 28.5 | H144: 28.3 | I144: 31597 | J144: 906971.9 | K144: 2018-09-26 | L144: 195 | M144: INE488D01021
A145: AXISBANK | B145: EQ | C145: 619 | D145: 624.35 | E145: 612.05 | F145: 617.45 | G145: 617.65 | H145: 614.35 | I145: 8725133 | J145: 5398700373 | K145: 2018-09-26 | L145: 107346 | M145: INE238A01034
A146: AXISCADES | B146: EQ | C146: 85.05 | D146: 88.8 | E146: 85.05 | F146: 86.75 | G146: 86.8 | H146: 84.8 | I146: 32098 | J146: 2776443.5 | K146: 2018-09-26 | L146: 416 | M146: INE555B01013
A147: AXISGOLD | B147: EQ | C147: 2700 | D147: 2716 | E147: 2678.1 | F147: 2678.1 | G147: 2678.1 | H147: 2703.4 | I147: 547 | J147: 1474159.5 | K147: 2018-09-26 | L147: 56 | M147: INF846K01347
A148: AXISNIFTY | B148: EQ | C148: 1132.17 | D148: 1132.17 | E148: 1115.42 | F148: 1125.76 | G148: 1125.76 | H148: 1120.39 | I148: 116 | J148: 130542.07 | K148: 2018-09-26 | L148: 7 | M148: INF846K01ZL0
A149: AYMSYNTEX | B149: EQ | C149: 36.3 | D149: 38 | E149: 36.3 | F149: 37.1 | G149: 37 | H149: 37.05 | I149: 3539 | J149: 131649.95 | K149: 2018-09-26 | L149: 34 | M149: INE193B01039
A150: BAFNAPHARM | B150: EQ | C150: 17.25 | D150: 17.25 | E150: 15 | F150: 15.25 | G150: 15.6 | H150: 15.4 | I150: 23185 | J150: 358455.45 | K150: 2018-09-26 | L150: 120 | M150: INE878I01014
A151: BAGFILMS | B151: BE | C151: 4.9 | D151: 5 | E151: 4.6 | F151: 4.85 | G151: 4.95 | H151: 4.8 | I151: 83524 | J151: 402397.85 | K151: 2018-09-26 | L151: 221 | M151: INE116D01028
A152: BAJAJ-AUTO | B152: EQ | C152: 2796.5 | D152: 2808.75 | E152: 2743.6 | F152: 2773.3 | G152: 2773.35 | H152: 2788.7 | I152: 494874 | J152: 1371155350 | K152: 2018-09-26 | L152: 21337 | M152: INE917I01010
A153: BAJAJCORP | B153: EQ | C153: 449.6 | D153: 463 | E153: 434 | F153: 437.65 | G153: 435.6 | H153: 444.2 | I153: 62240 | J153: 27551182.9 | K153: 2018-09-26 | L153: 5742 | M153: INE933K01021
A154: BAJAJELEC | B154: EQ | C154: 505 | D154: 511 | E154: 478.65 | F154: 491.9 | G154: 491 | H154: 503.05 | I154: 468936 | J154: 232213848.8 | K154: 2018-09-26 | L154: 12770 | M154: INE193E01025
A155: BAJAJFINSV | B155: EQ | C155: 6207 | D155: 6289 | E155: 6188 | F155: 6212.55 | G155: 6205 | H155: 6185.65 | I155: 164588 | J155: 1025928074 | K155: 2018-09-26 | L155: 24835 | M155: INE918I01018
A156: BAJAJHIND | B156: EQ | C156: 10.85 | D156: 10.85 | E156: 9.25 | F156: 9.4 | G156: 9.5 | H156: 10.2 | I156: 21343540 | J156: 215976018.3 | K156: 2018-09-26 | L156: 19512 | M156: INE306A01021
A157: BAJAJHLDNG | B157: EQ | C157: 3068.25 | D157: 3109.85 | E157: 3020 | F157: 3095.85 | G157: 3033 | H157: 3080.8 | I157: 35026 | J157: 108039437.3 | K157: 2018-09-26 | L157: 5825 | M157: INE118A01012
A158: BAJFINANCE | B158: EQ | C158: 2329 | D158: 2353.95 | E158: 2295.1 | F158: 2315.55 | G158: 2299.05 | H158: 2299.2 | I158: 2728756 | J158: 6356543237 | K158: 2018-09-26 | L158: 121960 | M158: INE296A01024
A159: BALAJITELE | B159: EQ | C159: 95.9 | D159: 101.1 | E159: 95.75 | F159: 100.1 | G159: 100.5 | H159: 95.25 | I159: 115123 | J159: 11267749.7 | K159: 2018-09-26 | L159: 644 | M159: INE794B01026
A160: BALAMINES | B160: EQ | C160: 513.9 | D160: 517.15 | E160: 503 | F160: 506.95 | G160: 506.5 | H160: 499.6 | I160: 13464 | J160: 6848315.65 | K160: 2018-09-26 | L160: 1110 | M160: INE050E01027
A161: BALKRISHNA | B161: EQ | C161: 57.5 | D161: 58.15 | E161: 55.65 | F161: 56.5 | G161: 56 | H161: 57.25 | I161: 14327 | J161: 809238.7 | K161: 2018-09-26 | L161: 290 | M161: INE875R01011
A162: BALKRISIND | B162: EQ | C162: 1094.1 | D162: 1111 | E162: 1088.6 | F162: 1104.6 | G162: 1101 | H162: 1094 | I162: 318022 | J162: 349306226.6 | K162: 2018-09-26 | L162: 22886 | M162: INE787D01026
A163: BALLARPUR | B163: EQ | C163: 7.8 | D163: 8.1 | E163: 7.55 | F163: 7.6 | G163: 7.6 | H163: 7.8 | I163: 991230 | J163: 7720106.25 | K163: 2018-09-26 | L163: 990 | M163: INE294A01037
A164: BALMLAWRIE | B164: EQ | C164: 199.25 | D164: 200 | E164: 187.3 | F164: 190.75 | G164: 191 | H164: 196.35 | I164: 89825 | J164: 17257227.85 | K164: 2018-09-26 | L164: 2247 | M164: INE164A01016
A165: BALPHARMA | B165: EQ | C165: 90.3 | D165: 93.8 | E165: 89 | F165: 90.6 | G165: 91.4 | H165: 89.3 | I165: 50670 | J165: 4644862.05 | K165: 2018-09-26 | L165: 1003 | M165: INE083D01012
A166: BALRAMCHIN | B166: EQ | C166: 85.8 | D166: 86.4 | E166: 76.55 | F166: 77.85 | G166: 78.15 | H166: 82.25 | I166: 40123867 | J166: 3271262857 | K166: 2018-09-26 | L166: 143604 | M166: INE119A01028
A167: BANARBEADS | B167: EQ | C167: 48.3 | D167: 50 | E167: 47.95 | F167: 47.95 | G167: 47.95 | H167: 49 | I167: 1042 | J167: 50580.5 | K167: 2018-09-26 | L167: 22 | M167: INE655B01011
A168: BANARISUG | B168: EQ | C168: 1668 | D168: 1742 | E168: 1625.1 | F168: 1652.05 | G168: 1650 | H168: 1668.3 | I168: 2283 | J168: 3857535.7 | K168: 2018-09-26 | L168: 387 | M168: INE459A01010
A169: BANCOINDIA | B169: EQ | C169: 202.7 | D169: 207.45 | E169: 200.55 | F169: 202.4 | G169: 202.05 | H169: 201.7 | I169: 33040 | J169: 6740240.85 | K169: 2018-09-26 | L169: 2129 | M169: INE213C01025
A170: BANDHANBNK | B170: EQ | C170: 572 | D170: 575.95 | E170: 548 | F170: 552.6 | G170: 551.9 | H170: 567.05 | I170: 625749 | J170: 349221184.2 | K170: 2018-09-26 | L170: 29358 | M170: INE545U01014
A171: BANG | B171: EQ | C171: 49 | D171: 53 | E171: 47.75 | F171: 52.35 | G171: 51.3 | H171: 48.7 | I171: 56878 | J171: 2904641.45 | K171: 2018-09-26 | L171: 361 | M171: INE863I01016
A172: BANKBARODA | B172: EQ | C172: 110.95 | D172: 111.25 | E172: 107.4 | F172: 109.15 | G172: 108.85 | H172: 109.45 | I172: 25692758 | J172: 2808851823 | K172: 2018-09-26 | L172: 76758 | M172: INE028A01039
A173: BANKBEES | B173: EQ | C173: 2600 | D173: 2600.78 | E173: 2566.35 | F173: 2580.19 | G173: 2585.59 | H173: 2589.82 | I173: 2143 | J173: 5541397.48 | K173: 2018-09-26 | L173: 256 | M173: INF732E01078
A174: BANKINDIA | B174: EQ | C174: 84.7 | D174: 85.4 | E174: 81.75 | F174: 83.85 | G174: 83.8 | H174: 84.25 | I174: 8849865 | J174: 741928885.5 | K174: 2018-09-26 | L174: 25879 | M174: INE084A01016
A175: BANSWRAS | B175: EQ | C175: 64.95 | D175: 70.8 | E175: 64.95 | F175: 70 | G175: 69.1 | H175: 65.85 | I175: 4901 | J175: 340391.85 | K175: 2018-09-26 | L175: 110 | M175: INE629D01012
A176: BARTRONICS | B176: EQ | C176: 7.75 | D176: 7.85 | E176: 7.3 | F176: 7.55 | G176: 7.5 | H176: 7.65 | I176: 41487 | J176: 312613.4 | K176: 2018-09-26 | L176: 96 | M176: INE855F01034
A177: BASF | B177: EQ | C177: 1809 | D177: 1835.3 | E177: 1772.2 | F177: 1785.95 | G177: 1775 | H177: 1791.05 | I177: 3442 | J177: 6203139.25 | K177: 2018-09-26 | L177: 551 | M177: INE373A01013
A178: BASML | B178: EQ | C178: 205.05 | D178: 206 | E178: 205 | F178: 205 | G178: 205 | H178: 208.9 | I178: 602 | J178: 123569.35 | K178: 2018-09-26 | L178: 13 | M178: INE186H01014
A179: BATAINDIA | B179: EQ | C179: 966 | D179: 967.85 | E179: 948.5 | F179: 956.5 | G179: 954.1 | H179: 960.85 | I179: 603206 | J179: 576553627 | K179: 2018-09-26 | L179: 15275 | M179: INE176A01028
A180: BAYERCROP | B180: EQ | C180: 4361.05 | D180: 4450 | E180: 4215.95 | F180: 4372.25 | G180: 4400 | H180: 4360.55 | I180: 6597 | J180: 28472446.3 | K180: 2018-09-26 | L180: 2671 | M180: INE462A01022
A181: BBL | B181: EQ | C181: 1300 | D181: 1300 | E181: 1260.1 | F181: 1272.65 | G181: 1266.95 | H181: 1256.75 | I181: 4973 | J181: 6343371.4 | K181: 2018-09-26 | L181: 682 | M181: INE464A01028
A182: BBTC | B182: EQ | C182: 1463.45 | D182: 1481.75 | E182: 1411.5 | F182: 1426.9 | G182: 1418 | H182: 1442.8 | I182: 270758 | J182: 392607464.8 | K182: 2018-09-26 | L182: 11950 | M182: INE050A01025
A183: BDL | B183: EQ | C183: 299 | D183: 307 | E183: 298.7 | F183: 300.75 | G183: 302 | H183: 299.25 | I183: 17525 | J183: 5293935.05 | K183: 2018-09-26 | L183: 1064 | M183: INE171Z01018
A184: BEARDSELL | B184: EQ | C184: 34.45 | D184: 34.45 | E184: 31.1 | F184: 31.3 | G184: 33.4 | H184: 32.65 | I184: 1046 | J184: 33355.4 | K184: 2018-09-26 | L184: 34 | M184: INE520H01022
A185: BEDMUTHA | B185: EQ | C185: 24.65 | D185: 25.35 | E185: 24.4 | F185: 24.8 | G185: 24.75 | H185: 25.65 | I185: 44500 | J185: 1099393.8 | K185: 2018-09-26 | L185: 132 | M185: INE844K01012
A186: BEL | B186: EQ | C186: 78.7 | D186: 86.3 | E186: 78.25 | F186: 84.2 | G186: 84.4 | H186: 76.2 | I186: 47334109 | J186: 3966491497 | K186: 2018-09-26 | L186: 172796 | M186: INE263A01024
A187: BEML | B187: EQ | C187: 648 | D187: 672.75 | E187: 642.15 | F187: 661.2 | G187: 662 | H187: 646.45 | I187: 1052639 | J187: 696502794.4 | K187: 2018-09-26 | L187: 27199 | M187: INE258A01016
A188: BEPL | B188: EQ | C188: 131.4 | D188: 136.85 | E188: 128.4 | F188: 131.1 | G188: 131.5 | H188: 129.65 | I188: 558441 | J188: 73935227.5 | K188: 2018-09-26 | L188: 7003 | M188: INE922A01025
A189: BERGEPAINT | B189: EQ | C189: 301.05 | D189: 305.95 | E189: 292.9 | F189: 295.65 | G189: 296 | H189: 298.5 | I189: 925942 | J189: 275422999.2 | K189: 2018-09-26 | L189: 16399 | M189: INE463A01038
A190: BFINVEST | B190: EQ | C190: 300.9 | D190: 313.3 | E190: 292 | F190: 303.25 | G190: 305 | H190: 298.55 | I190: 226171 | J190: 68785951.05 | K190: 2018-09-26 | L190: 7596 | M190: INE878K01010
A191: BFUTILITIE | B191: EQ | C191: 265.3 | D191: 268.7 | E191: 256.1 | F191: 260.1 | G191: 258.85 | H191: 262.95 | I191: 287543 | J191: 75570920.15 | K191: 2018-09-26 | L191: 8853 | M191: INE243D01012
A192: BGLOBAL | B192: BE | C192: 2.4 | D192: 2.55 | E192: 2.35 | F192: 2.55 | G192: 2.55 | H192: 2.45 | I192: 11591 | J192: 27293.85 | K192: 2018-09-26 | L192: 17 | M192: INE224M01013
A193: BGRENERGY | B193: EQ | C193: 61 | D193: 63.25 | E193: 61 | F193: 62.25 | G193: 62 | H193: 61.7 | I193: 35640 | J193: 2218659.2 | K193: 2018-09-26 | L193: 683 | M193: INE661I01014
A194: BHAGERIA | B194: EQ | C194: 265 | D194: 269 | E194: 261.9 | F194: 264.85 | G194: 262.55 | H194: 264.75 | I194: 12032 | J194: 3200610.15 | K194: 2018-09-26 | L194: 259 | M194: INE354C01027
A195: BHAGYANGR | B195: BE | C195: 33.5 | D195: 33.5 | E195: 30.5 | F195: 31.9 | G195: 31.9 | H195: 32.05 | I195: 3679 | J195: 115776.2 | K195: 2018-09-26 | L195: 47 | M195: INE458B01036
A196: BHAGYAPROP | B196: EQ | C196: 23.5 | D196: 24.4 | E196: 23.5 | F196: 24.05 | G196: 24 | H196: 23 | I196: 800 | J196: 19140 | K196: 2018-09-26 | L196: 4 | M196: INE363W01018
A197: BHANDARI | B197: EQ | C197: 2.15 | D197: 2.25 | E197: 2.1 | F197: 2.1 | G197: 2.15 | H197: 2.1 | I197: 158344 | J197: 340909.15 | K197: 2018-09-26 | L197: 152 | M197: INE474E01029
A198: BHARATFIN | B198: EQ | C198: 1058 | D198: 1065.6 | E198: 1048.1 | F198: 1063 | G198: 1063.25 | H198: 1056.35 | I198: 1968359 | J198: 2080568092 | K198: 2018-09-26 | L198: 44191 | M198: INE180K01011
A199: BHARATFORG | B199: EQ | C199: 622.2 | D199: 631.4 | E199: 618.25 | F199: 625 | G199: 625.95 | H199: 616.6 | I199: 911023 | J199: 568535991.3 | K199: 2018-09-26 | L199: 20678 | M199: INE465A01025
A200: BHARATGEAR | B200: EQ | C200: 171 | D200: 175 | E200: 166.35 | F200: 170.25 | G200: 172 | H200: 171.55 | I200: 18532 | J200: 3159173.9 | K200: 2018-09-26 | L200: 676 | M200: INE561C01019
... 1437 more rows
